Workbook

Sheet SISFV
B1: Versión: 04 | C1: Fecha: | D1: 2023-10-03
B3: 1. PARÁMETROS DE CÁLCULO DE LA SISFV
B5: Ubicación de la SISFV
B6: Departamento | C6: Municipio | D6: DIVIPOLA | E6: Radiación
B7: LA GUAJIRA | C7: URIBIA | D7: =TEXT(SUM((Tabla_Municipios[Municipio]=MUN)*(Tabla_Municipios[Codigo_D]=INDEX(Tabla_Departamentos[[Codigo ]],MATCH(DEP,Tabla_Departamentos[Departamento],0)))*Tabla_Municipios[Codigo_M]),"00000") -> 44847 | E7: =IFERROR(INDEX(Tabla_Municipios[Radiación minima (kWh/m2)],MATCH(Punto_Instalacion,Tabla_Municipios[Codigo_M],0)),"") -> 5
B9: Nivel de servicio
B10: Tipo de sistema | C10: AC
B11: Almacenamiento | C11: SI
B12: Whd | C12: 2156
B14: IPPm-1 | C14: 175.01
B17: 2. COSTOS DE INVERSIÓN
B19: Unidad Constructiva | C19: VIj,0 | D19: VUj | E19: Ij,0 | F19: Ij,m | G19: ISj,m
B20: 1. PANEL | C20: =INDEX(Tabla_Costos_Transporte[VI+CT],MATCH(Tabla_SISFV[[#This Row],[Unidad Constructiva]],Tabla_Costos_Transporte[Unidad constructiva],0))+INDEX(Tabla_Costos_Transporte[% VI+CT],MATCH(Tabla_SISFV[[#This Row],[Unidad Constructiva]],Tabla_Costos_Transporte[Unidad constructiva],0))*Costo_visita_instalacion -> 1701763.832 | D20: =IFERROR(INDEX(Tabla_UCPA[VU],MATCH(INDEX(Tabla_Costos_Transporte[Codigo],MATCH(Tabla_SISFV[[#This Row],[Unidad Constructiva]],Tabla_Costos_Transporte[Unidad constructiva],0)),Tabla_UCPA[Codigo],0)),"NA") -> 25 | E20: =Tabla_SISFV[[#This Row],[VIj,0]]*Tasa_descuento/(1-POWER(1+Tasa_descuento,-IF(Tabla_SISFV[[#This Row],[VUj]]="NA",1,Tabla_SISFV[[#This Row],[VUj]])))/365 -> 579.6545062 | F20: =Tabla_SISFV[[#This Row],[Ij,0]]*IPP_m1/IPP_0 -> 687.0662725 | G20: NO
B21: 2. INVERSOR | C21: =INDEX(Tabla_Costos_Transporte[VI+CT],MATCH(Tabla_SISFV[[#This Row],[Unidad Constructiva]],Tabla_Costos_Transporte[Unidad constructiva],0))+INDEX(Tabla_Costos_Transporte[% VI+CT],MATCH(Tabla_SISFV[[#This Row],[Unidad Constructiva]],Tabla_Costos_Transporte[Unidad constructiva],0))*Costo_visita_instalacion -> 940371.729 | D21: =IFERROR(INDEX(Tabla_UCIN[VU],MATCH(INDEX(Tabla_Costos_Transporte[Codigo],MATCH(Tabla_SISFV[[#This Row],[Unidad Constructiva]],Tabla_Costos_Transporte[Unidad constructiva],0)),Tabla_UCIN[Codigo],0)),"NA") -> 10 | E21: =Tabla_SISFV[[#This Row],[VIj,0]]*Tasa_descuento/(1-POWER(1+Tasa_descuento,-IF(Tabla_SISFV[[#This Row],[VUj]]="NA",1,Tabla_SISFV[[#This Row],[VUj]])))/365 -> 449.276215 | F21: =Tabla_SISFV[[#This Row],[Ij,0]]*IPP_m1/IPP_0 -> 532.5284821 | G21: NO
B22: 3. REGULADOR | C22: =INDEX(Tabla_Costos_Transporte[VI+CT],MATCH(Tabla_SISFV[[#This Row],[Unidad Constructiva]],Tabla_Costos_Transporte[Unidad constructiva],0))+INDEX(Tabla_Costos_Transporte[% VI+CT],MATCH(Tabla_SISFV[[#This Row],[Unidad Constructiva]],Tabla_Costos_Transporte[Unidad constructiva],0))*Costo_visita_instalacion -> 1113803.838 | D22: =IFERROR(INDEX(Tabla_UCRG[VU],MATCH(INDEX(Tabla_Costos_Transporte[Codigo],MATCH(Tabla_SISFV[[#This Row],[Unidad Constructiva]],Tabla_Costos_Transporte[Unidad constructiva],0)),Tabla_UCRG[Codigo],0)),"NA") -> 10 | E22: =Tabla_SISFV[[#This Row],[VIj,0]]*Tasa_descuento/(1-POWER(1+Tasa_descuento,-IF(Tabla_SISFV[[#This Row],[VUj]]="NA",1,Tabla_SISFV[[#This Row],[VUj]])))/365 -> 532.1359172 | F22: =Tabla_SISFV[[#This Row],[Ij,0]]*IPP_m1/IPP_0 -> 630.7423425 | G22: NO
B23: 4. BANCO DE BATERIAS | C23: =INDEX(Tabla_Costos_Transporte[VI+CT],MATCH(Tabla_SISFV[[#This Row],[Unidad Constructiva]],Tabla_Costos_Transporte[Unidad constructiva],0))+INDEX(Tabla_Costos_Transporte[% VI+CT],MATCH(Tabla_SISFV[[#This Row],[Unidad Constructiva]],Tabla_Costos_Transporte[Unidad constructiva],0))*Costo_visita_instalacion -> 3120053.451 | D23: =IFERROR(INDEX(Tabla_UCBB[VU],MATCH(INDEX(Tabla_Costos_Transporte[Codigo],MATCH(Tabla_SISFV[[#This Row],[Unidad Constructiva]],Tabla_Costos_Transporte[Unidad constructiva],0)),Tabla_UCBB[Codigo],0)),"NA") -> 4.246575342 | E23: =Tabla_SISFV[[#This Row],[VIj,0]]*Tasa_descuento/(1-POWER(1+Tasa_descuento,-IF(Tabla_SISFV[[#This Row],[VUj]]="NA",1,Tabla_SISFV[[#This Row],[VUj]])))/365 -> 2664.07025 | F23: =Tabla_SISFV[[#This Row],[Ij,0]]*IPP_m1/IPP_0 -> 3157.730677 | G23: SI
B24: 5. ESTRUCTURA SOPORTE | C24: =INDEX(Tabla_Costos_Transporte[VI+CT],MATCH(Tabla_SISFV[[#This Row],[Unidad Constructiva]],Tabla_Costos_Transporte[Unidad constructiva],0))+INDEX(Tabla_Costos_Transporte[% VI+CT],MATCH(Tabla_SISFV[[#This Row],[Unidad Constructiva]],Tabla_Costos_Transporte[Unidad constructiva],0))*Costo_visita_instalacion -> 1745960.061 | D24: =IFERROR(INDEX(Tabla_UCES[VU],MATCH(INDEX(Tabla_Costos_Transporte[Codigo],MATCH(Tabla_SISFV[[#This Row],[Unidad Constructiva]],Tabla_Costos_Transporte[Unidad constructiva],0)),Tabla_UCES[Codigo],0)),"NA") -> 20 | E24: =Tabla_SISFV[[#This Row],[VIj,0]]*Tasa_descuento/(1-POWER(1+Tasa_descuento,-IF(Tabla_SISFV[[#This Row],[VUj]]="NA",1,Tabla_SISFV[[#This Row],[VUj]])))/365 -> 626.0059152 | F24: =Tabla_SISFV[[#This Row],[Ij,0]]*IPP_m1/IPP_0 -> 742.0067404 | G24: NO
B25: 6. RED PANEL GABINETE | C25: =INDEX(Tabla_Costos_Transporte[VI+CT],MATCH(Tabla_SISFV[[#This Row],[Unidad Constructiva]],Tabla_Costos_Transporte[Unidad constructiva],0))+INDEX(Tabla_Costos_Transporte[% VI+CT],MATCH(Tabla_SISFV[[#This Row],[Unidad Constructiva]],Tabla_Costos_Transporte[Unidad constructiva],0))*Costo_visita_instalacion -> 405070.7059 | D25: =IFERROR(INDEX(Tabla_UCRP[VU],MATCH(INDEX(Tabla_Costos_Transporte[Codigo],MATCH(Tabla_SISFV[[#This Row],[Unidad Constructiva]],Tabla_Costos_Transporte[Unidad constructiva],0)),Tabla_UCRP[Codigo],0)),"NA") -> 25 | E25: =Tabla_SISFV[[#This Row],[VIj,0]]*Tasa_descuento/(1-POWER(1+Tasa_descuento,-IF(Tabla_SISFV[[#This Row],[VUj]]="NA",1,Tabla_SISFV[[#This Row],[VUj]])))/365 -> 137.9751148 | F25: =Tabla_SISFV[[#This Row],[Ij,0]]*IPP_m1/IPP_0 -> 163.5423288 | G25: NO
B26: 7. GABINETE Y ACCESORIOS | C26: =INDEX(Tabla_Costos_Transporte[VI+CT],MATCH(Tabla_SISFV[[#This Row],[Unidad Constructiva]],Tabla_Costos_Transporte[Unidad constructiva],0))+INDEX(Tabla_Costos_Transporte[% VI+CT],MATCH(Tabla_SISFV[[#This Row],[Unidad Constructiva]],Tabla_Costos_Transporte[Unidad constructiva],0))*Costo_visita_instalacion -> 1225977.196 | D26: =IFERROR(INDEX(Tabla_UCGP[VU],MATCH(INDEX(Tabla_Costos_Transporte[Codigo],MATCH(Tabla_SISFV[[#This Row],[Unidad Constructiva]],Tabla_Costos_Transporte[Unidad constructiva],0)),Tabla_UCGP[Codigo],0)),"NA") -> 25 | E26: =Tabla_SISFV[[#This Row],[VIj,0]]*Tasa_descuento/(1-POWER(1+Tasa_descuento,-IF(Tabla_SISFV[[#This Row],[VUj]]="NA",1,Tabla_SISFV[[#This Row],[VUj]])))/365 -> 417.5921433 | F26: =Tabla_SISFV[[#This Row],[Ij,0]]*IPP_m1/IPP_0 -> 494.9732543 | G26: NO
B27: 8. RED BATERÍA A GABINETE Y ACCESORIOS | C27: =INDEX(Tabla_Costos_Transporte[VI+CT],MATCH(Tabla_SISFV[[#This Row],[Unidad Constructiva]],Tabla_Costos_Transporte[Unidad constructiva],0))+INDEX(Tabla_Costos_Transporte[% VI+CT],MATCH(Tabla_SISFV[[#This Row],[Unidad Constructiva]],Tabla_Costos_Transporte[Unidad constructiva],0))*Costo_visita_instalacion -> 977323.4847 | D27: =IFERROR(INDEX(Tabla_UCRB[VU],MATCH(INDEX(Tabla_Costos_Transporte[Codigo],MATCH(Tabla_SISFV[[#This Row],[Unidad Constructiva]],Tabla_Costos_Transporte[Unidad constructiva],0)),Tabla_UCRB[Codigo],0)),"NA") -> 25 | E27: =Tabla_SISFV[[#This Row],[VIj,0]]*Tasa_descuento/(1-POWER(1+Tasa_descuento,-IF(Tabla_SISFV[[#This Row],[VUj]]="NA",1,Tabla_SISFV[[#This Row],[VUj]])))/365 -> 332.8957587 | F27: =Tabla_SISFV[[#This Row],[Ij,0]]*IPP_m1/IPP_0 -> 394.5823687 | G27: NO
B28: 9. PUESTA A TIERRA | C28: =INDEX(Tabla_Costos_Transporte[VI+CT],MATCH(Tabla_SISFV[[#This Row],[Unidad Constructiva]],Tabla_Costos_Transporte[Unidad constructiva],0))+INDEX(Tabla_Costos_Transporte[% VI+CT],MATCH(Tabla_SISFV[[#This Row],[Unidad Constructiva]],Tabla_Costos_Transporte[Unidad constructiva],0))*Costo_visita_instalacion -> 383664.6189 | D28: =IFERROR(INDEX(Tabla_UCPT[VU],MATCH(INDEX(Tabla_Costos_Transporte[Codigo],MATCH(Tabla_SISFV[[#This Row],[Unidad Constructiva]],Tabla_Costos_Transporte[Unidad constructiva],0)),Tabla_UCPT[Codigo],0)),"NA") -> 25 | E28: =Tabla_SISFV[[#This Row],[VIj,0]]*Tasa_descuento/(1-POWER(1+Tasa_descuento,-IF(Tabla_SISFV[[#This Row],[VUj]]="NA",1,Tabla_SISFV[[#This Row],[VUj]])))/365 -> 130.6837771 | F28: =Tabla_SISFV[[#This Row],[Ij,0]]*IPP_m1/IPP_0 -> 154.8998837 | G28: NO
B29: 10. RED DOMICILIARIA | C29: =INDEX(Tabla_Costos_Transporte[VI+CT],MATCH(Tabla_SISFV[[#This Row],[Unidad Constructiva]],Tabla_Costos_Transporte[Unidad constructiva],0))+INDEX(Tabla_Costos_Transporte[% VI+CT],MATCH(Tabla_SISFV[[#This Row],[Unidad Constructiva]],Tabla_Costos_Transporte[Unidad constructiva],0))*Costo_visita_instalacion -> 1594858.346 | D29: =IFERROR(INDEX(Tabla_UCRD[VU],MATCH(INDEX(Tabla_Costos_Transporte[Codigo],MATCH(Tabla_SISFV[[#This Row],[Unidad Constructiva]],Tabla_Costos_Transporte[Unidad constructiva],0)),Tabla_UCRD[Codigo],0)),"NA") -> 25 | E29: =Tabla_SISFV[[#This Row],[VIj,0]]*Tasa_descuento/(1-POWER(1+Tasa_descuento,-IF(Tabla_SISFV[[#This Row],[VUj]]="NA",1,Tabla_SISFV[[#This Row],[VUj]])))/365 -> 543.2403779 | F29: =Tabla_SISFV[[#This Row],[Ij,0]]*IPP_m1/IPP_0 -> 643.9044939 | G29: NO
B30: 11. ELEMENTO DE MEDICIÓN | C30: =INDEX(Tabla_Costos_Transporte[VI+CT],MATCH(Tabla_SISFV[[#This Row],[Unidad Constructiva]],Tabla_Costos_Transporte[Unidad constructiva],0))+INDEX(Tabla_Costos_Transporte[% VI+CT],MATCH(Tabla_SISFV[[#This Row],[Unidad Constructiva]],Tabla_Costos_Transporte[Unidad constructiva],0))*Costo_visita_instalacion -> 387762.6515 | D30: =IFERROR(INDEX(Tabla_UCMD[VU],MATCH(INDEX(Tabla_Costos_Transporte[Codigo],MATCH(Tabla_SISFV[[#This Row],[Unidad Constructiva]],Tabla_Costos_Transporte[Unidad constructiva],0)),Tabla_UCMD[Codigo],0)),"NA") -> 10 | E30: =Tabla_SISFV[[#This Row],[VIj,0]]*Tasa_descuento/(1-POWER(1+Tasa_descuento,-IF(Tabla_SISFV[[#This Row],[VUj]]="NA",1,Tabla_SISFV[[#This Row],[VUj]])))/365 -> 185.2592235 | F30: =Tabla_SISFV[[#This Row],[Ij,0]]*IPP_m1/IPP_0 -> 219.5883286 | G30: NO
B33: 3. GASTOS DE ADMINISTRACIÓN, MANTENIMIENTO Y GESTIÓN COMERCIAL
B35: Gastos que dependen del número de usuarios atendidos por el prestador del servicio
B37: Mes de prestación del servicio | C37: NUi
B38: m-2 | C38: 321
B39: m-3 | C39: =C38 -> 321
B40: m-4 | C40: =C39 -> 321
B41: m-5 | C41: =C40 -> 321
B42: m-6 | C42: 321
B43: m-7 | C43: 321
B44: m-8 | C44: 321
B45: m-9 | C45: 321
B46: m-10 | C46: 321
B47: m-11 | C47: 321
B48: m-12 | C48: 321
B49: m-13 | C49: 321
B51: AMGCNU,m,0 | C51: =Var_NU_K * POWER(MAX(50,AVERAGE(Tabla_Usuarios[NUi])), Var_NU_Alfa) -> 1634.637764
B53: Gastos que dependen del valor de las inversiones
B55: AMGCVI,0 | C55: =SUM(Tabla_SISFV[VIj,0] * (Tabla_Tasa_Falla[Tasa de falla anual] + PAI)) / 365 -> 444.076283
B57: Gastos asociados a la atención de usuarios
B59: MPNS,u,0 | C59: =Visitas_usuario_año_preventivo * Costo_visita_preventivo / 365 -> 1728.236297
B60: MCNS,u,0 | C60: =Visitas_usuario_año_correctivo * Costo_visita_correctivo / 365 -> 102.9300841
B61: GC0 | C61: =Costo_gestion_C -> 51.96
B62: AMGCAU,0 | C62: =MP_NSu0 + MC_NSu0 + GC0 -> 1883.126381
B64: Gastos que dependen del nivel de facturación
B66: Mes de prestación del servicio | C66: FSISFVm
B67: m-2 | C67: 30500000
B68: m-3 | C68: 30500000
B69: m-4 | C69: 30500000
B70: m-5 | C70: 30500000
B71: m-6 | C71: 30500000
B72: m-7 | C72: 30500000
B73: m-8 | C73: 30500000
B74: m-9 | C74: 30500000
B75: m-10 | C75: 30500000
B76: m-11 | C76: 30500000
B77: m-12 | C77: 30500000
B78: m-13 | C78: 30500000
B80: Cartera vencida con usuarios SISFV m ($) | C80: 0
B81: Cartera subsidios SISFV m ($) | C81: 0
B82: Facturación SISFV últimos 12 meses m ($) | C82: =SUM(Tabla_Facturacion[FSISFVm]) -> 366000000
B83: Tasa costo financiero capital de trabajo (m-1) | C83: 0.1894
B85: TNFm | C85: =TSIC + IF(FSISFVm=0, 0, ((CVUm + (CSm*CFCTm)) / FSISFVm)) -> 0.0264
B86: AMGCNF,m,0 | C86: =(SUM(Tabla_SISFV[Ij,0]*(Tabla_SISFV[ISj,m]="SI")) + AMGC_NUm0 + AMGC_VI0 + AMGC_AU0) * TNFm -> 174.9240419
B88: Remuneración prestador del servicio
B90: AI0 | C90: =SUM(IFERROR(Tabla_SISFV[VIj,0]/(Tabla_SISFV[VUj]*365),0)) -> 3610.302511
B91: PPm | C91: =SUM(Tabla_SISFV[Ij,0]*(Tabla_SISFV[ISj,m]="SI")) / SUM(Tabla_SISFV[Ij,0]) -> 0.4037210721
B92: RPm,0 | C92: =(AI0*(1-PPm) + AMGC_NUm0 + AMGC_VI0 + AMGC_AU0 + AMGC_NFm0) * MP -> 677.3804188
B95: 4. RESUMEN CU
B97: COMPONENTE ($ / Usuario / Día) | C97: Ij,0 | D97: Ij,m | F97: IPRj,m ($/kWh)
B98: 1. Panel | C98: =Tabla_SISFV[Ij,0] -> 579.6545062 | D98: =Tabla_SISFV[Ij,0]*IPP_m1/IPP_0 -> 687.0662725 | F98: =D98*1000/NdS_Whd -> 318.6763787
B99: 2. Inversor | C99: 449.276215 | D99: 532.5284821 | F99: =D99*1000/NdS_Whd -> 246.9983683
B100: 3. Regulador | C100: 532.1359172 | D100: 630.7423425 | F100: 292.5521069
B101: 4. Banco baterías | C101: 2664.07025 | D101: 3157.730677 | F101: 1464.624618
B102: 5. Estructura soporte | C102: 626.0059152 | D102: 742.0067404 | F102: 344.1589705
B103: 6. Red panel gabinete | C103: 137.9751148 | D103: 163.5423288 | F103: 75.85451241
B104: 7. Gabinete y accesorios | C104: 417.5921433 | D104: 494.9732543 | F104: 229.5794315
B105: 8. Red batería a gabiente y accesorios | C105: 332.8957587 | D105: 394.5823687 | F105: 183.0159409
B106: 9. Puesta a tierra | C106: 130.6837771 | D106: 154.8998837 | F106: 71.84595718
B107: 10. Red domiciliaria | C107: 543.2403779 | D107: 643.9044939 | F107: 298.6570009
B108: 11. Elemento de medición | C108: 185.2592235 | D108: 219.5883286 | F108: 101.8498741
B109: TOTAL I | C109: =SUM(Tabla_SISFV[Ij,0]) -> 6598.789199 | D109: =SUM(Tabla_SISFV[Ij,0]) * IPP_m1 / IPP_0 -> 7821.565172 | F109: =Im*1000/NdS_Whd -> 3627.81316
B111: AMGC ($ / Usuario / Día) | C111: AMGC0 | D111: AMGCm | F111: AMGCPR,m ($/kWh)
B112: Número de usuarios | C112: =AMGC_NUm0 -> 1634.637764 | D112: =AMGC_NUm0*IPP_m1/IPP_0 -> 1937.541179 | F112: =D112*1000/NdS_Whd -> 898.6740164
B113: Valor de las inversiones | C113: =AMGC_VI0 -> 444.076283 | D113: =AMGC_VI0*IPP_m1/IPP_0 -> 526.3649868 | F113: 244.1396043
B114: Atención de usuarios | C114: =AMGC_AU0 -> 1883.126381 | D114: =AMGC_AU0*IPP_m1/IPP_0 -> 2232.075502 | F114: 1035.285483
B115: Nivel de facturación | C115: =AMGC_NFm0 -> 174.9240419 | D115: =AMGC_NFm0*IPP_m1/IPP_0 -> 207.3380059 | F115: 96.16790626
B116: Remuneración operador | C116: =RPm0 -> 677.3804188 | D116: =RPm0*IPP_m1/IPP_0 -> 802.9010978 | F116: 372.4031066
B117: TOTAL AMGC | C117: =AMGC_NUm0 + AMGC_VI0 + AMGC_AU0 + AMGC_NFm0 + RPm0 -> 4814.144889 | D117: =(AMGC_NUm0 + AMGC_VI0 + AMGC_AU0 + AMGC_NFm0 + RPm0) * IPP_m1 / IPP_0 -> 5706.220772 | F117: =AMGCm*1000/NdS_Whd -> 2646.670117
B119: TOTAL CU ($ / Usuario / Día) | C119: =I0 + AMGC0 -> 11412.93409 | D119: =Im + AMGCm -> 13527.78594 | F119: =CUm * 1000 / NdS_Whd -> 6274.483276
B122: 5. TRASLADO DE COSTOS AL USUARIO EN ESQUEMAS DE FACTURACIÓN POSPAGO
B124: Inversiónm S(Ij,i x ISj,i) ($ / día) | C124: =SUM(Tabla_SISFV[Ij,m] * (Tabla_SISFV[ISj,m]="SI")) -> 3157.730677
B125: AMGCm ($ / día) | C125: =AMGCm -> 5706.220772
B126: Suma disponibilidad del mes m (SDk,i) | C126: 14
B127: Subtotalm ($ / factura) | C127: =(Im_al_usuario + AMGCm_al_usuario) * Disponibilidad_m -> 124095.3203
B129: Scf,m ($ / mes) | C129: 0
B131: Tcf,m ($ / mes) | C131: =CUm_al_usuario - Scfm -> 124095.3203
B133: Mes | C133: Inversión ($ / día) | D133: AMGC ($ / día) | E133: Disponibilidad cf | F133: Subtotales cf ($ / factura) | G133: Scf ($ / factura) | H133: Tcf ($ / factura)
B134: m | C134: =Im_al_usuario -> 3157.730677 | D134: =AMGCm_al_usuario -> 5706.220772 | E134: =Disponibilidad_m -> 14 | F134: =(Tabla_Traslado_Costos_Pospago[[#This Row],[Inversión ($ / día)]] + Tabla_Traslado_Costos_Pospago[[#This Row],[AMGC ($ / día)]]) * Tabla_Traslado_Costos_Pospago[[#This Row],[Disponibilidad cf]] -> 124095.3203 | G134: =Scfm -> 0 | H134: =Tabla_Traslado_Costos_Pospago[[#This Row],[Subtotales cf ($ / factura)]] - Tabla_Traslado_Costos_Pospago[[#This Row],[Scf ($ / factura)]] -> 124095.3203
B135: m-1 | C135: 3202.116812 | D135: 5786.429349 | E135: 30 | F135: =(Tabla_Traslado_Costos_Pospago[[#This Row],[Inversión ($ / día)]] + Tabla_Traslado_Costos_Pospago[[#This Row],[AMGC ($ / día)]]) * Tabla_Traslado_Costos_Pospago[[#This Row],[Disponibilidad cf]] -> 269656.3848 | G135: 0 | H135: =Tabla_Traslado_Costos_Pospago[[#This Row],[Subtotales cf ($ / factura)]] - Tabla_Traslado_Costos_Pospago[[#This Row],[Scf ($ / factura)]] -> 269656.3848
B136: m-2 | C136: 3234.41404 | D136: 5844.792501 | E136: 31 | F136: =(Tabla_Traslado_Costos_Pospago[[#This Row],[Inversión ($ / día)]] + Tabla_Traslado_Costos_Pospago[[#This Row],[AMGC ($ / día)]]) * Tabla_Traslado_Costos_Pospago[[#This Row],[Disponibilidad cf]] -> 281455.4028 | G136: 0 | H136: =Tabla_Traslado_Costos_Pospago[[#This Row],[Subtotales cf ($ / factura)]] - Tabla_Traslado_Costos_Pospago[[#This Row],[Scf ($ / factura)]] -> 281455.4028
B137: m-3 | C137: 0 | D137: 6005.086343 | E137: 30 | F137: =(Tabla_Traslado_Costos_Pospago[[#This Row],[Inversión ($ / día)]] + Tabla_Traslado_Costos_Pospago[[#This Row],[AMGC ($ / día)]]) * Tabla_Traslado_Costos_Pospago[[#This Row],[Disponibilidad cf]] -> 180152.5903 | G137: 0 | H137: =Tabla_Traslado_Costos_Pospago[[#This Row],[Subtotales cf ($ / factura)]] - Tabla_Traslado_Costos_Pospago[[#This Row],[Scf ($ / factura)]] -> 180152.5903
B138: m-4 | C138: 0 | D138: 6006.080563 | E138: 31 | F138: =(Tabla_Traslado_Costos_Pospago[[#This Row],[Inversión ($ / día)]] + Tabla_Traslado_Costos_Pospago[[#This Row],[AMGC ($ / día)]]) * Tabla_Traslado_Costos_Pospago[[#This Row],[Disponibilidad cf]] -> 186188.4975 | G138: 0 | H138: =Tabla_Traslado_Costos_Pospago[[#This Row],[Subtotales cf ($ / factura)]] - Tabla_Traslado_Costos_Pospago[[#This Row],[Scf ($ / factura)]] -> 186188.4975
B139: m-5 | C139: 0 | D139: 5937.148004 | E139: 28 | F139: =(Tabla_Traslado_Costos_Pospago[[#This Row],[Inversión ($ / día)]] + Tabla_Traslado_Costos_Pospago[[#This Row],[AMGC ($ / día)]]) * Tabla_Traslado_Costos_Pospago[[#This Row],[Disponibilidad cf]] -> 166240.1441 | G139: 0 | H139: =Tabla_Traslado_Costos_Pospago[[#This Row],[Subtotales cf ($ / factura)]] - Tabla_Traslado_Costos_Pospago[[#This Row],[Scf ($ / factura)]] -> 166240.1441
B140: m-6 | C140: 0 | D140: 5827.783849 | E140: 17 | F140: =(Tabla_Traslado_Costos_Pospago[[#This Row],[Inversión ($ / día)]] + Tabla_Traslado_Costos_Pospago[[#This Row],[AMGC ($ / día)]]) * Tabla_Traslado_Costos_Pospago[[#This Row],[Disponibilidad cf]] -> 99072.32544 | G140: 0 | H140: =Tabla_Traslado_Costos_Pospago[[#This Row],[Subtotales cf ($ / factura)]] - Tabla_Traslado_Costos_Pospago[[#This Row],[Scf ($ / factura)]] -> 99072.32544
B142: Inversión promedio cf ($ / día) | C142: =SUMPRODUCT(Tabla_Traslado_Costos_Pospago[Inversión ($ / día)],Tabla_Traslado_Costos_Pospago[Disponibilidad cf])/SUM(Tabla_Traslado_Costos_Pospago[Disponibilidad cf]) -> 1328.94237
B143: AMGC promedio cf ($ / día) | C143: =SUMPRODUCT(Tabla_Traslado_Costos_Pospago[AMGC ($ / día)],Tabla_Traslado_Costos_Pospago[Disponibilidad cf])/SUM(Tabla_Traslado_Costos_Pospago[Disponibilidad cf]) -> 5891.282299
B144: Disponibilidad del cf | C144: =SUM(Tabla_Traslado_Costos_Pospago[Disponibilidad cf]) -> 181
B145: Subtotal del cf ($ / factura) | C145: =SUM(Tabla_Traslado_Costos_Pospago[Subtotales cf ($ / factura)]) -> 1306860.665
B146: S del cf ($ / factura) | C146: =SUM(Tabla_Traslado_Costos_Pospago[Scf ($ / factura)]) -> 0
B147: Total a facturar en el cf ($ / factura) | C147: =SUM(Tabla_Traslado_Costos_Pospago[Tcf ($ / factura)]) -> 1306860.665
B150: 6. TRASLADO DE COSTOS AL USUARIO EN ESQUEMAS DE FACURACIÓN PREPAGO
B152: Inversión ($ / kWh) | C152: =SUM(Tabla_SISFV[Ij,m] * (Tabla_SISFV[ISj,m]="SI")) *1000 /NdS_Whd -> 1464.624618
B153: AMGC ($ / kWh) | C153: =AMGCm * 1000 / NdS_Whd -> 2646.670117
B154: S ($ / kWh) | C154: 0
B155: Subtotal ($ / kWh) | C155: =Im_PR_al_usuario + AMGCm_PR_al_usuario - S_PR -> 4111.294735
B157: EPR (kWh) | C157: 30.184
B159: %RCA | C159: 0
B161: TPR,NdS ($ / factura) | C161: =E_PR * (Im_PR_al_usuario+AMGCm_PR_al_usuario-S_PR) / (1-RCA) -> 124095.3203

Sheet Divipola
B2: Codigo | C2: Departamento | E2: Codigo_M | F2: Codigo_D | G2: Municipio | H2: CD | I2: Tramo 1 Modalidad (CD-M) | J2: Tramo 1 Distancia (Km) | K2: Tramo 2 Modalidad (CD-M) | L2: Tramo 2 Distancia (Km) | M2: Distancia promedio a PI (km) | N2: Radiación minima (kWh/m2) | O2: Velocidad cuadrilla (km/h)
B3: 91 | C3: AMAZONAS | E3: 05001 | F3: =TEXT(MID(E3,1,2),"00") -> 05 | G3: MEDELLÍN | H3: 05001 | I3: NA | J3: 0 | K3: NA | L3: 0 | M3: 10.43180954 | N3: 3.5 | O3: 15
B4: 05 | C4: ANTIOQUIA | E4: 05002 | F4: 05 | G4: ABEJORRAL | H4: 05001 | I4: Vía Tipo 3 | J4: 80.9 | K4: NA | L4: 0 | M4: 8.11264178 | N4: 4 | O4: 15
B5: 81 | C5: ARAUCA | E5: 05004 | F5: 05 | G5: ABRIAQUÍ | H5: 05001 | I5: Vía Tipo 4 | J5: 161.6 | K5: NA | L5: 0 | M5: 6.936532274 | N5: 3.5 | O5: 15
B6: 08 | C6: ATLÁNTICO | E6: 05021 | F6: 05 | G6: ALEJANDRÍA | H6: 05001 | I6: Vía Tipo 3 | J6: 71.5 | K6: NA | L6: 0 | M6: 6.44435112 | N6: 3.5 | O6: 15
B7: 11 | C7: BOGOTÁ | E7: 05030 | F7: 05 | G7: AMAGÁ | H7: 05001 | I7: Vía Tipo 3 | J7: 33.1 | K7: NA | L7: 0 | M7: 4.199179844 | N7: 3.5 | O7: 15
B8: 13 | C8: BOLÍVAR | E8: 05031 | F8: 05 | G8: AMALFI | H8: 05001 | I8: Vía Tipo 3 | J8: 136.4 | K8: NA | L8: 0 | M8: 19.18301503 | N8: 4 | O8: 15
B9: 15 | C9: BOYACÁ | E9: 05034 | F9: 05 | G9: ANDES | H9: 05001 | I9: Vía Tipo 3 | J9: 107.4 | K9: NA | L9: 0 | M9: 7.973269334 | N9: 3.5 | O9: 15
B10: 17 | C10: CALDAS | E10: 05036 | F10: 05 | G10: ANGELÓPOLIS | H10: 05001 | I10: Vía Tipo 4 | J10: 31.9 | K10: NA | L10: 0 | M10: 3.034498036 | N10: 3.5 | O10: 15
B11: 18 | C11: CAQUETÁ | E11: 05038 | F11: 05 | G11: ANGOSTURA | H11: 05001 | I11: Vía Tipo 3 | J11: 129.24 | K11: NA | L11: 0 | M11: 7.845101669 | N11: 3.5 | O11: 15
B12: 85 | C12: CASANARE | E12: 05040 | F12: 05 | G12: ANORÍ | H12: 05001 | I12: Vía Tipo 4 | J12: 166.6 | K12: NA | L12: 0 | M12: 19.29136019 | N12: 3.5 | O12: 15
B13: 19 | C13: CAUCA | E13: 05042 | F13: 05 | G13: SANTA FÉ DE ANTIOQUIA | H13: 05001 | I13: Vía Tipo 3 | J13: 73.965 | K13: NA | L13: 0 | M13: 11.51094493 | N13: 4 | O13: 15
B14: 20 | C14: CESAR | E14: 05044 | F14: 05 | G14: ANZÁ | H14: 05001 | I14: Vía Tipo 3 | J14: 303.83 | K14: NA | L14: 0 | M14: 7.001886332 | N14: 4 | O14: 15
B15: 27 | C15: CHOCÓ | E15: 05045 | F15: 05 | G15: APARTADÓ | H15: 05001 | I15: Vía Tipo 3 | J15: 461.82 | K15: NA | L15: 0 | M15: 12.08948149 | N15: 3.5 | O15: 15
B16: 23 | C16: CÓRDOBA | E16: 05051 | F16: 05 | G16: ARBOLETES | H16: 05001 | I16: Vía Tipo 3 | J16: 135.4 | K16: NA | L16: 0 | M16: 29.60946344 | N16: 4 | O16: 15
B17: 25 | C17: CUNDINAMARCA | E17: 05055 | F17: 05 | G17: ARGELIA | H17: 05001 | I17: Vía Tipo 4 | J17: 30.7 | K17: NA | L17: 0 | M17: 7.142435493 | N17: 3.5 | O17: 15
B18: 94 | C18: GUAINÍA | E18: 05059 | F18: 05 | G18: ARMENIA | H18: 05001 | I18: Vía Tipo 4 | J18: 33.5 | K18: NA | L18: 0 | M18: 1.768702145 | N18: 3.5 | O18: 15
B19: 95 | C19: GUAVIARE | E19: 05079 | F19: 05 | G19: BARBOSA | H19: 05001 | I19: Vía Tipo 3 | J19: 2 | K19: NA | L19: 0 | M19: 10.43180954 | N19: 4 | O19: 15
B20: 41 | C20: HUILA | E20: 05086 | F20: 05 | G20: BELMIRA | H20: 05001 | I20: Vía Tipo 3 | J20: 56.4 | K20: NA | L20: 0 | M20: 8.351013131 | N20: 4 | O20: 15
B21: 44 | C21: LA GUAJIRA | E21: 05088 | F21: 05 | G21: BELLO | H21: 05001 | I21: Vía Tipo 3 | J21: 11.03 | K21: NA | L21: 0 | M21: 10.43180954 | N21: 4 | O21: 15
B22: 47 | C22: MAGDALENA | E22: 05091 | F22: 05 | G22: BETANIA | H22: 05001 | I22: Vía Tipo 3 | J22: 110.1 | K22: NA | L22: 0 | M22: 3.794373123 | N22: 3.5 | O22: 15
B23: 50 | C23: META | E23: 05093 | F23: 05 | G23: BETULIA | H23: 05001 | I23: Vía Tipo 4 | J23: 167.24 | K23: NA | L23: 0 | M23: 6.102222009 | N23: 4 | O23: 15
B24: 52 | C24: NARIÑO | E24: 05101 | F24: 05 | G24: CIUDAD BOLÍVAR | H24: 05001 | I24: Vía Tipo 3 | J24: 86.9 | K24: NA | L24: 0 | M24: 6.536170228 | N24: 4 | O24: 15
B25: 54 | C25: NORTE DE SANTANDER | E25: 05107 | F25: 05 | G25: BRICEÑO | H25: 05001 | I25: Vía Tipo 7 | J25: 219.84 | K25: NA | L25: 0 | M25: 6.576064047 | N25: 3.5 | O25: 15
B26: 86 | C26: PUTUMAYO | E26: 05113 | F26: 05 | G26: BURITICÁ | H26: 05001 | I26: Vía Tipo 3 | J26: 89.665 | K26: NA | L26: 0 | M26: 7.427177751 | N26: 3.5 | O26: 15
B27: 63 | C27: QUINDÍO | E27: 05120 | F27: 05 | G27: CÁCERES | H27: 05001 | I27: Vía Tipo 3 | J27: 16.2 | K27: NA | L27: 0 | M27: 23.78306839 | N27: 4 | O27: 15
B28: 66 | C28: RISARALDA | E28: 05125 | F28: 05 | G28: CAICEDO | H28: 05001 | I28: Vía Tipo 4 | J28: 129.74 | K28: NA | L28: 0 | M28: 6.673168335 | N28: 4 | O28: 15
B29: 88 | C29: SAN ANDRÉS | E29: 05129 | F29: 05 | G29: CALDAS | H29: 05001 | I29: Vía Tipo 3 | J29: 109.8 | K29: NA | L29: 0 | M29: 10.43180954 | N29: 3.5 | O29: 15
B30: 68 | C30: SANTANDER | E30: 05134 | F30: 05 | G30: CAMPAMENTO | H30: 05001 | I30: Vía Tipo 4 | J30: 134.12 | K30: NA | L30: 0 | M30: 9.192288327 | N30: 3 | O30: 15
B31: 70 | C31: SUCRE | E31: 05138 | F31: 05 | G31: CAÑASGORDAS | H31: 05001 | I31: Vía Tipo 4 | J31: 111.7 | K31: NA | L31: 0 | M31: 10.36956576 | N31: 3.5 | O31: 15
B32: 73 | C32: TOLIMA | E32: 05142 | F32: 05 | G32: CARACOLÍ | H32: 05001 | I32: Vía Tipo 3 | J32: 289.33 | K32: NA | L32: 0 | M32: 6.297234409 | N32: 4 | O32: 15
B33: 76 | C33: VALLE DEL CAUCA | E33: 05145 | F33: 05 | G33: CARAMANTA | H33: 05001 | I33: Vía Tipo 3 | J33: 94.2 | K33: NA | L33: 0 | M33: 2.576636174 | N33: 4 | O33: 15
B34: 97 | C34: VAUPÉS | E34: 05147 | F34: 05 | G34: CAREPA | H34: 05001 | I34: Vía Tipo 3 | J34: 275.14 | K34: NA | L34: 0 | M34: 10.43180954 | N34: 3.5 | O34: 15
B35: 99 | C35: VICHADA | E35: 05148 | F35: 05 | G35: EL CARMEN DE VIBORAL | H35: 05001 | I35: Vía Tipo 3 | J35: 280.49 | K35: NA | L35: 0 | M35: 14.58353232 | N35: 4 | O35: 15
E36: 05150 | F36: 05 | G36: CAROLINA | H36: 05001 | I36: Vía Tipo 3 | J36: 79.12 | K36: NA | L36: 0 | M36: 10.43180954 | N36: 4 | O36: 15
E37: 05154 | F37: 05 | G37: CAUCASIA | H37: 05001 | I37: Vía Tipo 3 | J37: 96.8 | K37: NA | L37: 0 | M37: 9.502828434 | N37: 4 | O37: 15
E38: 05172 | F38: 05 | G38: CHIGORODÓ | H38: 05001 | I38: Vía Tipo 3 | J38: 174.1 | K38: NA | L38: 0 | M38: 11.83874394 | N38: 3.5 | O38: 15
E39: 05190 | F39: 05 | G39: CISNEROS | H39: 05001 | I39: Vía Tipo 3 | J39: 54.6 | K39: NA | L39: 0 | M39: 10.43180954 | N39: 4 | O39: 15
E40: 05197 | F40: 05 | G40: COCORNÁ | H40: 05001 | I40: Vía Tipo 3 | J40: 86.2 | K40: NA | L40: 0 | M40: 7.796821407 | N40: 4 | O40: 15
E41: 05206 | F41: 05 | G41: CONCEPCIÓN | H41: 05001 | I41: Vía Tipo 3 | J41: 10.6 | K41: NA | L41: 0 | M41: 3.683909591 | N41: 3 | O41: 15
E42: 05209 | F42: 05 | G42: CONCORDIA | H42: 05001 | I42: Vía Tipo 3 | J42: 170.3 | K42: NA | L42: 0 | M42: 8.187120557 | N42: 4 | O42: 15
E43: 05212 | F43: 05 | G43: COPACABANA | H43: 05001 | I43: Vía Tipo 3 | J43: 40.9 | K43: NA | L43: 0 | M43: 10.43180954 | N43: 3.5 | O43: 15
E44: 05234 | F44: 05 | G44: DABEIBA | H44: 05001 | I44: Vía Tipo 3 | J44: 35.93 | K44: NA | L44: 0 | M44: 15.67858238 | N44: 3.5 | O44: 15
E45: 05237 | F45: 05 | G45: DONMATÍAS | H45: 05001 | I45: Vía Tipo 3 | J45: 355.94 | K45: NA | L45: 0 | M45: 10.43180954 | N45: 4 | O45: 15
E46: 05240 | F46: 05 | G46: EBÉJICO | H46: 05001 | I46: Vía Tipo 4 | J46: 49.6 | K46: NA | L46: 0 | M46: 4.80180448 | N46: 4 | O46: 15
E47: 05250 | F47: 05 | G47: EL BAGRE | H47: 05001 | I47: Vía Tipo 4 | J47: 55.9 | K47: NA | L47: 0 | M47: 21.92894506 | N47: 4 | O47: 15
E48: 05264 | F48: 05 | G48: ENTRERRÍOS | H48: 05001 | I48: Vía Tipo 3 | J48: 31.9 | K48: NA | L48: 0 | M48: 10.43180954 | N48: 4 | O48: 15
E49: 05266 | F49: 05 | G49: ENVIGADO | H49: 05001 | I49: Vía Tipo 3 | J49: 12.4 | K49: NA | L49: 0 | M49: 10.43180954 | N49: 3.5 | O49: 15
E50: 05282 | F50: 05 | G50: FREDONIA | H50: 05001 | I50: Vía Tipo 3 | J50: 42.8 | K50: NA | L50: 0 | M50: 7.573048618 | N50: 4 | O50: 15
E51: 05284 | F51: 05 | G51: FRONTINO | H51: 05001 | I51: Vía Tipo 3 | J51: 5 | K51: NA | L51: 0 | M51: 26.95775213 | N51: 4 | O51: 15
E52: 05306 | F52: 05 | G52: GIRALDO | H52: 05001 | I52: Vía Tipo 3 | J52: 51.2 | K52: NA | L52: 0 | M52: 2.282411827 | N52: 3.5 | O52: 15
E53: 05308 | F53: 05 | G53: GIRARDOTA | H53: 05001 | I53: Vía Tipo 3 | J53: 137.1 | K53: NA | L53: 0 | M53: 10.43180954 | N53: 3.5 | O53: 15
E54: 05310 | F54: 05 | G54: GÓMEZ PLATA | H54: 05001 | I54: Vía Tipo 3 | J54: 90.9 | K54: NA | L54: 0 | M54: 8.722745513 | N54: 4 | O54: 15
E55: 05313 | F55: 05 | G55: GRANADA | H55: 05001 | I55: Vía Tipo 3 | J55: 17.8 | K55: NA | L55: 0 | M55: 7.061557255 | N55: 4 | O55: 15
E56: 05315 | F56: 05 | G56: GUADALUPE | H56: 05001 | I56: Vía Tipo 3 | J56: 81.4 | K56: NA | L56: 0 | M56: 6.974124497 | N56: 4 | O56: 15
E57: 05318 | F57: 05 | G57: GUARNE | H57: 05001 | I57: Vía Tipo 3 | J57: 67 | K57: NA | L57: 0 | M57: 4.392191175 | N57: 3.5 | O57: 15
E58: 05321 | F58: 05 | G58: GUATAPÉ | H58: 05001 | I58: Vía Tipo 3 | J58: 114.2 | K58: NA | L58: 0 | M58: 4.956061665 | N58: 4 | O58: 15
E59: 05347 | F59: 05 | G59: HELICONIA | H59: 05001 | I59: Vía Tipo 4 | J59: 23.1 | K59: NA | L59: 0 | M59: 10.43180954 | N59: 3.5 | O59: 15
E60: 05353 | F60: 05 | G60: HISPANIA | H60: 05001 | I60: Vía Tipo 3 | J60: 70.9 | K60: NA | L60: 0 | M60: 2.956182582 | N60: 4 | O60: 15
E61: 05360 | F61: 05 | G61: ITAGÜÍ | H61: 05001 | I61: Vía Tipo 3 | J61: 12.8 | K61: NA | L61: 0 | M61: 10.43180954 | N61: 4 | O61: 15
E62: 05361 | F62: 05 | G62: ITUANGO | H62: 05001 | I62: Vía Tipo 3 | J62: 91.3 | K62: NA | L62: 0 | M62: 15.151328 | N62: 3.5 | O62: 15
E63: 05364 | F63: 05 | G63: JARDÍN | H63: 05001 | I63: Vía Tipo 4 | J63: 5 | K63: NA | L63: 0 | M63: 3.240062977 | N63: 4 | O63: 15
E64: 05368 | F64: 05 | G64: JERICÓ | H64: 05001 | I64: Vía Tipo 3 | J64: 187.24 | K64: NA | L64: 0 | M64: 5.216202294 | N64: 4 | O64: 15
E65: 05376 | F65: 05 | G65: LA CEJA | H65: 05001 | I65: Vía Tipo 3 | J65: 124.9 | K65: NA | L65: 0 | M65: 10.43180954 | N65: 4 | O65: 15
E66: 05380 | F66: 05 | G66: LA ESTRELLA | H66: 05001 | I66: Vía Tipo 3 | J66: 15 | K66: NA | L66: 0 | M66: 10.43180954 | N66: 3.5 | O66: 15
E67: 05390 | F67: =TEXT(MID(E67,1,2),"00") -> 05 | G67: LA PINTADA | H67: 05001 | I67: Vía Tipo 3 | J67: 40.1 | K67: NA | L67: 0 | M67: 10.43180954 | N67: 4 | O67: 15
E68: 05400 | F68: 05 | G68: LA UNIÓN | H68: 05001 | I68: Vía Tipo 3 | J68: 9.5 | K68: NA | L68: 0 | M68: 10.43180954 | N68: 4 | O68: 15
E69: 05411 | F69: 05 | G69: LIBORINA | H69: 05001 | I69: Vía Tipo 3 | J69: 73.5 | K69: NA | L69: 0 | M69: 8.026648864 | N69: 3.5 | O69: 15
E70: 05425 | F70: 05 | G70: MACEO | H70: 05001 | I70: Vía Tipo 3 | J70: 54.8 | K70: NA | L70: 0 | M70: 6.63641806 | N70: 4 | O70: 15
E71: 05440 | F71: 05 | G71: MARINILLA | H71: 05001 | I71: Vía Tipo 3 | J71: 72.4 | K71: NA | L71: 0 | M71: 6.581655554 | N71: 4 | O71: 15
E72: 05467 | F72: 05 | G72: MONTEBELLO | H72: 05001 | I72: Vía Tipo 3 | J72: 126.52 | K72: NA | L72: 0 | M72: 4.56101265 | N72: 4 | O72: 15
E73: 05475 | F73: 05 | G73: MURINDÓ | H73: 05001 | I73: Vía Tipo 1 | J73: 265 | K73: Fluvial | L73: 115 | M73: 26.85333338 | N73: 3.5 | O73: 15
E74: 05480 | F74: 05 | G74: MUTATÁ | H74: 05001 | I74: Vía Tipo 3 | J74: 46.2 | K74: NA | L74: 0 | M74: 11.81641446 | N74: 3.5 | O74: 15
E75: 05483 | F75: 05 | G75: NARIÑO | H75: 05001 | I75: Vía Tipo 4 | J75: 144 | K75: NA | L75: 0 | M75: 6.537338849 | N75: 4 | O75: 15
E76: 05490 | F76: 05 | G76: NECOCLÍ | H76: 05001 | I76: Vía Tipo 3 | J76: 220.99 | K76: NA | L76: 0 | M76: 18.37490186 | N76: 3.5 | O76: 15
E77: 05495 | F77: 05 | G77: NECHÍ | H77: 05001 | I77: Vía Tipo 4 | J77: 135.9 | K77: NA | L77: 0 | M77: 15.14695561 | N77: 4.5 | O77: 15
E78: 05501 | F78: 05 | G78: OLAYA | H78: 05001 | I78: Vía Tipo 3 | J78: 349.74 | K78: NA | L78: 0 | M78: 5.83501134 | N78: 4 | O78: 15
E79: 05541 | F79: 05 | G79: PEÑOL | H79: 05001 | I79: Vía Tipo 3 | J79: 380.32 | K79: NA | L79: 0 | M79: 3.002455432 | N79: 4 | O79: 15
E80: 05543 | F80: 05 | G80: PEQUE | H80: 05001 | I80: Vía Tipo 4 | J80: 64.9 | K80: NA | L80: 0 | M80: 7.019218929 | N80: 3.5 | O80: 15
E81: 05576 | F81: 05 | G81: PUEBLORRICO | H81: 05001 | I81: Vía Tipo 3 | J81: 199 | K81: NA | L81: 0 | M81: 2.338115067 | N81: 4 | O81: 15
E82: 05579 | F82: 05 | G82: PUERTO BERRÍO | H82: 05001 | I82: Vía Tipo 3 | J82: 108.54 | K82: NA | L82: 0 | M82: 20.65161554 | N82: 4 | O82: 15
E83: 05585 | F83: 05 | G83: PUERTO NARE | H83: 05001 | I83: Vía Tipo 4 | J83: 177.25 | K83: NA | L83: 0 | M83: 11.36271773 | N83: 4 | O83: 15
E84: 05591 | F84: 05 | G84: PUERTO TRIUNFO | H84: 05001 | I84: Vía Tipo 3 | J84: 219.7 | K84: NA | L84: 0 | M84: 5.380764813 | N84: 4.5 | O84: 15
E85: 05604 | F85: 05 | G85: REMEDIOS | H85: 05001 | I85: Vía Tipo 4 | J85: 179.1 | K85: NA | L85: 0 | M85: 20.56887528 | N85: 4 | O85: 15
E86: 05607 | F86: 05 | G86: RETIRO | H86: 05001 | I86: Vía Tipo 3 | J86: 181.6 | K86: NA | L86: 0 | M86: 8.558362462 | N86: 3.5 | O86: 15
E87: 05615 | F87: 05 | G87: RIONEGRO | H87: 05001 | I87: Vía Tipo 3 | J87: 40.1 | K87: NA | L87: 0 | M87: 7.463871969 | N87: 4 | O87: 15
E88: 05628 | F88: 05 | G88: SABANALARGA | H88: 05001 | I88: Vía Tipo 4 | J88: 107.1 | K88: NA | L88: 0 | M88: 8.637349954 | N88: 3 | O88: 15
E89: 05631 | F89: 05 | G89: SABANETA | H89: 05001 | I89: Vía Tipo 3 | J89: 7.5 | K89: NA | L89: 0 | M89: 10.43180954 | N89: 3.5 | O89: 15
E90: 05642 | F90: 05 | G90: SALGAR | H90: 05001 | I90: Vía Tipo 3 | J90: 89.9 | K90: NA | L90: 0 | M90: 4.785598673 | N90: 3.5 | O90: 15
E91: 05647 | F91: 05 | G91: SAN ANDRÉS DE CUERQUÍA | H91: 05001 | I91: Vía Tipo 3 | J91: 127.24 | K91: NA | L91: 0 | M91: 6.168456502 | N91: 3 | O91: 15
E92: 05649 | F92: 05 | G92: SAN CARLOS | H92: 05001 | I92: Vía Tipo 3 | J92: 137.6 | K92: NA | L92: 0 | M92: 10.70736824 | N92: 4 | O92: 15
E93: 05652 | F93: 05 | G93: SAN FRANCISCO | H93: 05001 | I93: Vía Tipo 4 | J93: 94.7 | K93: NA | L93: 0 | M93: 17.09531687 | N93: 3.5 | O93: 15
E94: 05656 | F94: 05 | G94: SAN JERÓNIMO | H94: 05001 | I94: Vía Tipo 3 | J94: 30.33 | K94: NA | L94: 0 | M94: 5.839041446 | N94: 4 | O94: 15
E95: 05658 | F95: 05 | G95: SAN JOSÉ DE LA MONTAÑA | H95: 05001 | I95: Vía Tipo 3 | J95: 118.04 | K95: NA | L95: 0 | M95: 2.690554894 | N95: 3.5 | O95: 15
E96: 05659 | F96: 05 | G96: SAN JUAN DE URABÁ | H96: 05001 | I96: Vía Tipo 3 | J96: 442.52 | K96: NA | L96: 0 | M96: 10.59695212 | N96: 4 | O96: 15
E97: 05660 | F97: 05 | G97: SAN LUIS | H97: 05001 | I97: Vía Tipo 3 | J97: 126.27 | K97: NA | L97: 0 | M97: 7.579919762 | N97: 4 | O97: 15
E98: 05664 | F98: 05 | G98: SAN PEDRO DE LOS MILAGROS | H98: 05001 | I98: Vía Tipo 3 | J98: 32.3 | K98: NA | L98: 0 | M98: 6.026142481 | N98: 4 | O98: 15
E99: 05665 | F99: 05 | G99: SAN PEDRO DE URABÁ | H99: 05001 | I99: Vía Tipo 4 | J99: 377.33 | K99: NA | L99: 0 | M99: 18.40490088 | N99: 4 | O99: 15
E100: 05667 | F100: 05 | G100: SAN RAFAEL | H100: 05001 | I100: Vía Tipo 3 | J100: 95.5 | K100: NA | L100: 0 | M100: 8.326741978 | N100: 4 | O100: 15
E101: 05670 | F101: 05 | G101: SAN ROQUE | H101: 05001 | I101: Vía Tipo 3 | J101: 100.12 | K101: NA | L101: 0 | M101: 8.982661831 | N101: 4 | O101: 15
E102: 05674 | F102: 05 | G102: SAN VICENTE FERRER | H102: 05001 | I102: Vía Tipo 3 | J102: 42.6 | K102: NA | L102: 0 | M102: 5.695059533 | N102: 4 | O102: 15
E103: 05679 | F103: 05 | G103: SANTA BÁRBARA | H103: 05001 | I103: Vía Tipo 3 | J103: 45.2 | K103: NA | L103: 0 | M103: 7.451788385 | N103: 3 | O103: 15
E104: 05686 | F104: 05 | G104: SANTA ROSA DE OSOS | H104: 05001 | I104: Vía Tipo 3 | J104: 51.03 | K104: NA | L104: 0 | M104: 23.76832004 | N104: 3.5 | O104: 15
E105: 05690 | F105: 05 | G105: SANTO DOMINGO | H105: 05001 | I105: Vía Tipo 3 | J105: 68 | K105: NA | L105: 0 | M105: 7.271076465 | N105: 4 | O105: 15
E106: 05697 | F106: 05 | G106: EL SANTUARIO | H106: 05001 | I106: Vía Tipo 3 | J106: 63.2 | K106: NA | L106: 0 | M106: 3.756286853 | N106: 4 | O106: 15
E107: 05736 | F107: 05 | G107: SEGOVIA | H107: 05001 | I107: Vía Tipo 4 | J107: 190.6 | K107: NA | L107: 0 | M107: 27.3675231 | N107: 4 | O107: 15
E108: 05756 | F108: 05 | G108: SONSÓN | H108: 05001 | I108: Vía Tipo 4 | J108: 104 | K108: NA | L108: 0 | M108: 20.65081386 | N108: 4 | O108: 15
E109: 05761 | F109: 05 | G109: SOPETRÁN | H109: 05001 | I109: Vía Tipo 3 | J109: 42.3 | K109: NA | L109: 0 | M109: 7.004744586 | N109: 4 | O109: 15
E110: 05789 | F110: 05 | G110: TÁMESIS | H110: 05001 | I110: Vía Tipo 3 | J110: 103.5 | K110: NA | L110: 0 | M110: 5.167152042 | N110: 4 | O110: 15
E111: 05790 | F111: 05 | G111: TARAZÁ | H111: 05001 | I111: Vía Tipo 3 | J111: 212.34 | K111: NA | L111: 0 | M111: 15.99983671 | N111: 4 | O111: 15
E112: 05792 | F112: 05 | G112: TARSO | H112: 05001 | I112: Vía Tipo 3 | J112: 94.34 | K112: NA | L112: 0 | M112: 4.079693899 | N112: 4 | O112: 15
E113: 05809 | F113: 05 | G113: TITIRIBÍ | H113: 05001 | I113: Vía Tipo 3 | J113: 51.25 | K113: NA | L113: 0 | M113: 4.880636693 | N113: 3.5 | O113: 15
E114: 05819 | F114: 05 | G114: TOLEDO | H114: 05001 | I114: Vía Tipo 4 | J114: 164.04 | K114: NA | L114: 0 | M114: 2.711275079 | N114: 3 | O114: 15
E115: 05837 | F115: 05 | G115: TURBO | H115: 05001 | I115: Vía Tipo 3 | J115: 333.83 | K115: NA | L115: 0 | M115: 30.76681329 | N115: 3.5 | O115: 15
E116: 05842 | F116: 05 | G116: URAMITA | H116: 05001 | I116: Vía Tipo 3 | J116: 135.9 | K116: NA | L116: 0 | M116: 5.158836268 | N116: 4 | O116: 15
E117: 05847 | F117: 05 | G117: URRAO | H117: 05001 | I117: Vía Tipo 4 | J117: 148.9 | K117: NA | L117: 0 | M117: 16.20848917 | N117: 4 | O117: 15
E118: 05854 | F118: 05 | G118: VALDIVIA | H118: 05001 | I118: Vía Tipo 3 | J118: 150.04 | K118: NA | L118: 0 | M118: 14.16228632 | N118: 3.5 | O118: 15
E119: 05856 | F119: 05 | G119: VALPARAÍSO | H119: 05001 | I119: Vía Tipo 3 | J119: 95.2 | K119: NA | L119: 0 | M119: 3.990986489 | N119: 4 | O119: 15
E120: 05858 | F120: 05 | G120: VEGACHÍ | H120: 05001 | I120: Vía Tipo 3 | J120: 138.1 | K120: NA | L120: 0 | M120: 6.784203143 | N120: 4 | O120: 15
E121: 05861 | F121: 05 | G121: VENECIA | H121: 05001 | I121: Vía Tipo 3 | J121: 51.6 | K121: NA | L121: 0 | M121: 2.288016659 | N121: 4 | O121: 15
E122: 05873 | F122: 05 | G122: VIGÍA DEL FUERTE | H122: 05001 | I122: Fluvial | J122: 182 | K122: NA | L122: 0 | M122: 18.96678355 | N122: 3.5 | O122: 15
E123: 05885 | F123: 05 | G123: YALÍ | H123: 05001 | I123: Vía Tipo 4 | J123: 123.6 | K123: NA | L123: 0 | M123: 7.926629953 | N123: 4 | O123: 15
E124: 05887 | F124: 05 | G124: YARUMAL | H124: 05001 | I124: Vía Tipo 3 | J124: 111.24 | K124: NA | L124: 0 | M124: 13.4666829 | N124: 3.5 | O124: 15
E125: 05890 | F125: 05 | G125: YOLOMBÓ | H125: 05001 | I125: Vía Tipo 3 | J125: 89.5 | K125: NA | L125: 0 | M125: 11.4246192 | N125: 4 | O125: 15
E126: 05893 | F126: 05 | G126: YONDÓ | H126: 05001 | I126: Vía Tipo 3 | J126: 330.4 | K126: NA | L126: 0 | M126: 20.62633264 | N126: 4 | O126: 15
E127: 05895 | F127: 05 | G127: ZARAGOZA | H127: 05001 | I127: Vía Tipo 4 | J127: 360.04 | K127: NA | L127: 0 | M127: 15.86882382 | N127: 4 | O127: 15
E128: 08001 | F128: 08 | G128: BARRANQUILLA | H128: 08001 | I128: NA | J128: 0 | K128: NA | L128: 0 | M128: 5.969783645 | N128: 5 | O128: 15
E129: 08078 | F129: 08 | G129: BARANOA | H129: 08001 | I129: Vía Tipo 3 | J129: 30 | K129: NA | L129: 0 | M129: 4.07055815 | N129: 5 | O129: 15
E130: 08137 | F130: 08 | G130: CAMPO DE LA CRUZ | H130: 08001 | I130: Vía Tipo 3 | J130: 83.1 | K130: NA | L130: 0 | M130: 4.868166663 | N130: 5 | O130: 15
E131: 08141 | F131: =TEXT(MID(E131,1,2),"00") -> 08 | G131: CANDELARIA | H131: 08001 | I131: Vía Tipo 3 | J131: 74.4 | K131: NA | L131: 0 | M131: 6.354068935 | N131: 4.5 | O131: 15
E132: 08296 | F132: 08 | G132: GALAPA | H132: 08001 | I132: Vía Tipo 3 | J132: 17.8 | K132: NA | L132: 0 | M132: 5.001648571 | N132: 5.5 | O132: 15
E133: 08372 | F133: 08 | G133: JUAN DE ACOSTA | H133: 08001 | I133: Vía Tipo 3 | J133: 43 | K133: NA | L133: 0 | M133: 4.583744326 | N133: 5 | O133: 15
E134: 08421 | F134: 08 | G134: LURUACO | H134: 08001 | I134: Vía Tipo 3 | J134: 69 | K134: NA | L134: 0 | M134: 6.154716129 | N134: 5 | O134: 15
E135: 08433 | F135: 08 | G135: MALAMBO | H135: 08001 | I135: Vía Tipo 3 | J135: 21.7 | K135: NA | L135: 0 | M135: 5.066426364 | N135: 5.5 | O135: 15
E136: 08436 | F136: 08 | G136: MANATÍ | H136: 08001 | I136: Vía Tipo 3 | J136: 74.9 | K136: NA | L136: 0 | M136: 6.58144255 | N136: 5 | O136: 15
E137: 08520 | F137: 08 | G137: PALMAR DE VARELA | H137: 08001 | I137: Vía Tipo 3 | J137: 35.1 | K137: NA | L137: 0 | M137: 6.498382296 | N137: 5 | O137: 15
E138: 08549 | F138: 08 | G138: PIOJÓ | H138: 08001 | I138: Vía Tipo 3 | J138: 61.4 | K138: NA | L138: 0 | M138: 6.627471697 | N138: 5 | O138: 15
E139: 08558 | F139: 08 | G139: POLONUEVO | H139: 08001 | I139: Vía Tipo 3 | J139: 37.5 | K139: NA | L139: 0 | M139: 4.388097004 | N139: 5 | O139: 15
E140: 08560 | F140: 08 | G140: PONEDERA | H140: 08001 | I140: Vía Tipo 3 | J140: 50.8 | K140: NA | L140: 0 | M140: 7.702932416 | N140: 4.5 | O140: 15
E141: 08573 | F141: 08 | G141: PUERTO COLOMBIA | H141: 08001 | I141: Vía Tipo 3 | J141: 18.4 | K141: NA | L141: 0 | M141: 7.184459438 | N141: 4 | O141: 15
E142: 08606 | F142: 08 | G142: REPELÓN | H142: 08001 | I142: Vía Tipo 3 | J142: 86.4 | K142: NA | L142: 0 | M142: 8.522259961 | N142: 5 | O142: 15
E143: 08634 | F143: 08 | G143: SABANAGRANDE | H143: 08001 | I143: Vía Tipo 3 | J143: 29.4 | K143: NA | L143: 0 | M143: 4.007495672 | N143: 5.5 | O143: 15
E144: 08638 | F144: 08 | G144: SABANALARGA | H144: 08001 | I144: Vía Tipo 3 | J144: 50.6 | K144: NA | L144: 0 | M144: 6.64900662 | N144: 4.5 | O144: 15
E145: 08675 | F145: 08 | G145: SANTA LUCÍA | H145: 08001 | I145: Vía Tipo 3 | J145: 95.3 | K145: NA | L145: 0 | M145: 5.655901832 | N145: 5 | O145: 15
E146: 08685 | F146: 08 | G146: SANTO TOMÁS | H146: 08001 | I146: Vía Tipo 3 | J146: 32.4 | K146: NA | L146: 0 | M146: 7.335609909 | N146: 5 | O146: 15
E147: 08758 | F147: 08 | G147: SOLEDAD | H147: 08001 | I147: Vía Tipo 3 | J147: 12.5 | K147: NA | L147: 0 | M147: 3.233461413 | N147: 5.5 | O147: 15
E148: 08770 | F148: 08 | G148: SUAN | H148: 08001 | I148: Vía Tipo 3 | J148: 87.3 | K148: NA | L148: 0 | M148: 4.222634838 | N148: 4.5 | O148: 15
E149: 08832 | F149: 08 | G149: TUBARÁ | H149: 08001 | I149: Vía Tipo 3 | J149: 28.6 | K149: NA | L149: 0 | M149: 5.402162068 | N149: 5 | O149: 15
E150: 08849 | F150: 08 | G150: USIACURÍ | H150: 08001 | I150: Vía Tipo 3 | J150: 40.8 | K150: NA | L150: 0 | M150: 4.077266982 | N150: 5 | O150: 15
E151: 11001 | F151: 11 | G151: BOGOTÁ D.C. | H151: 11001 | I151: NA | J151: 0 | K151: NA | L151: 0 | M151: 5.108556749 | N151: 3.5 | O151: 15
E152: 13001 | F152: 13 | G152: CARTAGENA DE INDIAS | H152: 13001 | I152: NA | J152: 0 | K152: NA | L152: 0 | M152: 22.1674943 | N152: 4.5 | O152: 15
E153: 13006 | F153: 13 | G153: ACHÍ | H153: 70001 | I153: Vía Tipo 6 | J153: 231.4 | K153: NA | L153: 0 | M153: 13.93717285 | N153: 4.5 | O153: 15
E154: 13030 | F154: 13 | G154: ALTOS DEL ROSARIO | H154: 13001 | I154: Vía Tipo 5 | J154: 589 | K154: NA | L154: 0 | M154: 7.857834956 | N154: 4.5 | O154: 15
E155: 13042 | F155: 13 | G155: ARENAL | H155: 13001 | I155: Vía Tipo 5 | J155: 527 | K155: NA | L155: 0 | M155: 16.39026357 | N155: 4 | O155: 15
E156: 13052 | F156: 13 | G156: ARJONA | H156: 13001 | I156: Vía Tipo 3 | J156: 53.4 | K156: NA | L156: 0 | M156: 10.50756562 | N156: 5 | O156: 15
E157: 13062 | F157: 13 | G157: ARROYOHONDO | H157: 13001 | I157: Vía Tipo 4 | J157: 87.9 | K157: NA | L157: 0 | M157: 20.83010525 | N157: 5 | O157: 15
E158: 13074 | F158: 13 | G158: BARRANCO DE LOBA | H158: 13001 | I158: Vía Tipo 5 | J158: 529 | K158: NA | L158: 0 | M158: 10.94098686 | N158: 4.5 | O158: 15
E159: 13140 | F159: 13 | G159: CALAMAR | H159: 13001 | I159: Vía Tipo 3 | J159: 94.5 | K159: NA | L159: 0 | M159: 10.17796614 | N159: 4 | O159: 15
E160: 13160 | F160: 13 | G160: CANTAGALLO | H160: 68081 | I160: Fluvial | J160: 50 | K160: NA | L160: 0 | M160: 33.59650057 | N160: 4.5 | O160: 15
E161: 13188 | F161: 13 | G161: CICUCO | H161: 13001 | I161: Vía Tipo 5 | J161: 273 | K161: NA | L161: 0 | M161: 11.32747287 | N161: 5.5 | O161: 15
E162: 13212 | F162: 13 | G162: CÓRDOBA | H162: 13001 | I162: Vía Tipo 4 | J162: 200 | K162: NA | L162: 0 | M162: 17.07342363 | N162: 4.5 | O162: 15
E163: 13222 | F163: 13 | G163: CLEMENCIA | H163: 13001 | I163: Vía Tipo 3 | J163: 25 | K163: NA | L163: 0 | M163: 4.833841123 | N163: 5 | O163: 15
E164: 13244 | F164: 13 | G164: EL CARMEN DE BOLÍVAR | H164: 13001 | I164: Vía Tipo 3 | J164: 148 | K164: NA | L164: 0 | M164: 14.22968679 | N164: 5 | O164: 15
E165: 13248 | F165: 13 | G165: EL GUAMO | H165: 13001 | I165: Vía Tipo 4 | J165: 130 | K165: NA | L165: 0 | M165: 13.85900446 | N165: 5 | O165: 15
E166: 13268 | F166: 13 | G166: EL PEÑÓN | H166: 47001 | I166: Vía Tipo 5 | J166: 594 | K166: NA | L166: 0 | M166: 11.91177904 | N166: 4 | O166: 15
E167: 13300 | F167: 13 | G167: HATILLO DE LOBA | H167: 13001 | I167: Vía Tipo 5 | J167: 338 | K167: NA | L167: 0 | M167: 14.90323316 | N167: 5 | O167: 15
E168: 13430 | F168: 13 | G168: MAGANGUÉ | H168: 13001 | I168: Vía Tipo 3 | J168: 216 | K168: NA | L168: 0 | M168: 22.80701514 | N168: 5 | O168: 15
E169: 13433 | F169: 13 | G169: MAHATES | H169: 13001 | I169: Vía Tipo 3 | J169: 87.1 | K169: NA | L169: 0 | M169: 10.87385014 | N169: 4.5 | O169: 15
E170: 13440 | F170: 13 | G170: MARGARITA | H170: 13001 | I170: Vía Tipo 5 | J170: 306 | K170: NA | L170: 0 | M170: 13.5321605 | N170: 5 | O170: 15
E171: 13442 | F171: 13 | G171: MARÍA LA BAJA | H171: 13001 | I171: Vía Tipo 3 | J171: 95.2 | K171: NA | L171: 0 | M171: 7.2035863 | N171: 5 | O171: 15
E172: 13458 | F172: 13 | G172: MONTECRISTO | H172: 13001 | I172: Vía Tipo 3 | J172: 252 | K172: Fluvial | L172: 140 | M172: 26.451606 | N172: 4 | O172: 15
E173: 13468 | F173: 13 | G173: SANTA CRUZ DE MOMPOX | H173: 13001 | I173: Vía Tipo 5 | J173: 272 | K173: NA | L173: 0 | M173: 25.24457638 | N173: 5 | O173: 15
E174: 13473 | F174: 13 | G174: MORALES | H174: 68081 | I174: Fluvial | J174: 219 | K174: NA | L174: 0 | M174: 28.75563087 | N174: 4 | O174: 15
E175: 13490 | F175: 13 | G175: NOROSÍ | H175: 13001 | I175: Vía Tipo 5 | J175: 453 | K175: NA | L175: 0 | M175: 9.348990671 | N175: 4.5 | O175: 15
E176: 13549 | F176: 13 | G176: PINILLOS | H176: 13001 | I176: Fluvial | J176: 253.2 | K176: NA | L176: 0 | M176: 13.77914483 | N176: 4.5 | O176: 15
E177: 13580 | F177: 13 | G177: REGIDOR | H177: 13001 | I177: Vía Tipo 6 | J177: 547 | K177: NA | L177: 0 | M177: 10.39065405 | N177: 4.5 | O177: 15
E178: 13600 | F178: 13 | G178: RÍO VIEJO | H178: 13001 | I178: Vía Tipo 5 | J178: 508 | K178: NA | L178: 0 | M178: 13.71401625 | N178: 4 | O178: 15
E179: 13620 | F179: 13 | G179: SAN CRISTÓBAL | H179: 13001 | I179: Vía Tipo 5 | J179: 70.1 | K179: NA | L179: 0 | M179: 2.235738187 | N179: 5.5 | O179: 15
E180: 13647 | F180: 13 | G180: SAN ESTANISLAO | H180: 13001 | I180: Vía Tipo 3 | J180: 56.6 | K180: NA | L180: 0 | M180: 9.086953079 | N180: 5 | O180: 15
E181: 13650 | F181: 13 | G181: SAN FERNANDO | H181: 13001 | I181: Vía Tipo 3 | J181: 284 | K181: NA | L181: 0 | M181: 15.1627382 | N181: 5 | O181: 15
E182: 13654 | F182: 13 | G182: SAN JACINTO | H182: 13001 | I182: Vía Tipo 3 | J182: 134 | K182: NA | L182: 0 | M182: 8.284993724 | N182: 5 | O182: 15
E183: 13655 | F183: 13 | G183: SAN JACINTO DEL CAUCA | H183: 13001 | I183: Vía Tipo 5 | J183: 436.8 | K183: NA | L183: 0 | M183: 12.95267854 | N183: 4.5 | O183: 15
E184: 13657 | F184: 13 | G184: SAN JUAN NEPOMUCENO | H184: 13001 | I184: Vía Tipo 3 | J184: 112 | K184: NA | L184: 0 | M184: 11.60783795 | N184: 5 | O184: 15
E185: 13667 | F185: 13 | G185: SAN MARTÍN DE LOBA | H185: 13001 | I185: Vía Tipo 5 | J185: 525 | K185: NA | L185: 0 | M185: 15.38957737 | N185: 4.5 | O185: 15
E186: 13670 | F186: 13 | G186: SAN PABLO | H186: 68081 | I186: Fluvial | J186: 58 | K186: NA | L186: 0 | M186: 21.14331261 | N186: 4.5 | O186: 15
E187: 13673 | F187: 13 | G187: SANTA CATALINA | H187: 13001 | I187: Vía Tipo 3 | J187: 31.2 | K187: NA | L187: 0 | M187: 5.852305375 | N187: 5 | O187: 15
E188: 13683 | F188: 13 | G188: SANTA ROSA | H188: 13001 | I188: Vía Tipo 3 | J188: 26 | K188: NA | L188: 0 | M188: 4.751200116 | N188: 3.5 | O188: 15
E189: 13688 | F189: 13 | G189: SANTA ROSA DEL SUR | H189: 13001 | I189: Fluvial | J189: 398 | K189: NA | L189: 0 | M189: 23.54280403 | N189: 4 | O189: 15
E190: 13744 | F190: 13 | G190: SIMITÍ | H190: 68081 | I190: Fluvial | J190: 146 | K190: NA | L190: 0 | M190: 19.1411883 | N190: 4 | O190: 15
E191: 13760 | F191: 13 | G191: SOPLAVIENTO | H191: 13001 | I191: Vía Tipo 5 | J191: 57.9 | K191: NA | L191: 0 | M191: 8.283701932 | N191: 5 | O191: 15
E192: 13780 | F192: 13 | G192: TALAIGUA NUEVO | H192: 13001 | I192: Vía Tipo 5 | J192: 315 | K192: NA | L192: 0 | M192: 9.313071269 | N192: 5.5 | O192: 15
E193: 13810 | F193: 13 | G193: TIQUISIO | H193: 13001 | I193: Vía Tipo 5 | J193: 443 | K193: NA | L193: 0 | M193: 13.46223825 | N193: 4.5 | O193: 15
E194: 13836 | F194: 13 | G194: TURBACO | H194: 13001 | I194: Vía Tipo 3 | J194: 40.5 | K194: NA | L194: 0 | M194: 8.890948427 | N194: 5 | O194: 15
E195: 13838 | F195: =TEXT(MID(E195,1,2),"00") -> 13 | G195: TURBANÁ | H195: 13001 | I195: Vía Tipo 3 | J195: 44.1 | K195: NA | L195: 0 | M195: 8.215191302 | N195: 4.5 | O195: 15
E196: 13873 | F196: 13 | G196: VILLANUEVA | H196: 13001 | I196: Vía Tipo 3 | J196: 40 | K196: NA | L196: 0 | M196: 4.637826575 | N196: 5 | O196: 15
E197: 13894 | F197: 13 | G197: ZAMBRANO | H197: 13001 | I197: Vía Tipo 3 | J197: 186 | K197: NA | L197: 0 | M197: 7.972494439 | N197: 5.5 | O197: 15
E198: 15001 | F198: 15 | G198: TUNJA | H198: 15001 | I198: NA | J198: 0 | K198: NA | L198: 0 | M198: 5.452038573 | N198: 4.5 | O198: 15
E199: 15022 | F199: 15 | G199: ALMEIDA | H199: 15001 | I199: Vía Tipo 4 | J199: 99.8 | K199: NA | L199: 0 | M199: 2.564264159 | N199: 4 | O199: 15
E200: 15047 | F200: 15 | G200: AQUITANIA | H200: 15001 | I200: Vía Tipo 3 | J200: 89 | K200: NA | L200: 0 | M200: 11.39475684 | N200: 4.5 | O200: 15
E201: 15051 | F201: 15 | G201: ARCABUCO | H201: 15001 | I201: Vía Tipo 1 | J201: 34 | K201: NA | L201: 0 | M201: 6.406251975 | N201: 4.5 | O201: 15
... 922 more rows

Sheet UC
B2: 1. TABLA UNIDAD CONSTRUCTIVA PANEL
B4: Codigo | C4: Wp | D4: VI_CR | E4: Kg | F4: VU | G4: Modulos | H4: Min_Costo
B5: UCPA01 | C5: 20 | D5: 55616.67173 | E5: 2.978836659 | F5: 25 | G5: =(ROUNDUP(NdS_Wp / Tabla_UCPA[[#This Row],[Wp]],0)+(INT(NdS_Wp / Tabla_UCPA[[#This Row],[Wp]])>UCPA_MinPan)*IFERROR(MOD(ROUNDUP(NdS_Wp/ Tabla_UCPA[[#This Row],[Wp]],0),UCPA_Escala)*(UCPA_Escala-MOD(ROUNDUP(NdS_Wp / Tabla_UCPA[[#This Row],[Wp]],0),UCPA_Escala))/MOD(ROUNDUP(NdS_Wp / Tabla_UCPA[[#This Row],[Wp]],0),UCPA_Escala),0)) -> 38 | H5: =Tabla_UCPA[[#This Row],[Modulos]]*Tabla_UCPA[[#This Row],[VI_CR]] -> 2113433.526
B6: UCPA02 | C6: 40 | D6: 100384.4978 | E6: 4.889665356 | F6: 25 | G6: =(ROUNDUP(NdS_Wp / Tabla_UCPA[[#This Row],[Wp]],0)+(INT(NdS_Wp / Tabla_UCPA[[#This Row],[Wp]])>UCPA_MinPan)*IFERROR(MOD(ROUNDUP(NdS_Wp/ Tabla_UCPA[[#This Row],[Wp]],0),UCPA_Escala)*(UCPA_Escala-MOD(ROUNDUP(NdS_Wp / Tabla_UCPA[[#This Row],[Wp]],0),UCPA_Escala))/MOD(ROUNDUP(NdS_Wp / Tabla_UCPA[[#This Row],[Wp]],0),UCPA_Escala),0)) -> 20 | H6: =Tabla_UCPA[[#This Row],[Modulos]]*Tabla_UCPA[[#This Row],[VI_CR]] -> 2007689.956
B7: UCPA03 | C7: 60 | D7: 141803.5494 | E7: 6.534043903 | F7: 25 | G7: =(ROUNDUP(NdS_Wp / Tabla_UCPA[[#This Row],[Wp]],0)+(INT(NdS_Wp / Tabla_UCPA[[#This Row],[Wp]])>UCPA_MinPan)*IFERROR(MOD(ROUNDUP(NdS_Wp/ Tabla_UCPA[[#This Row],[Wp]],0),UCPA_Escala)*(UCPA_Escala-MOD(ROUNDUP(NdS_Wp / Tabla_UCPA[[#This Row],[Wp]],0),UCPA_Escala))/MOD(ROUNDUP(NdS_Wp / Tabla_UCPA[[#This Row],[Wp]],0),UCPA_Escala),0)) -> 14 | H7: =Tabla_UCPA[[#This Row],[Modulos]]*Tabla_UCPA[[#This Row],[VI_CR]] -> 1985249.692
B8: UCPA04 | C8: 80 | D8: 181187.5304 | E8: 8.026229709 | F8: 25 | G8: =(ROUNDUP(NdS_Wp / Tabla_UCPA[[#This Row],[Wp]],0)+(INT(NdS_Wp / Tabla_UCPA[[#This Row],[Wp]])>UCPA_MinPan)*IFERROR(MOD(ROUNDUP(NdS_Wp/ Tabla_UCPA[[#This Row],[Wp]],0),UCPA_Escala)*(UCPA_Escala-MOD(ROUNDUP(NdS_Wp / Tabla_UCPA[[#This Row],[Wp]],0),UCPA_Escala))/MOD(ROUNDUP(NdS_Wp / Tabla_UCPA[[#This Row],[Wp]],0),UCPA_Escala),0)) -> 10 | H8: =Tabla_UCPA[[#This Row],[Modulos]]*Tabla_UCPA[[#This Row],[VI_CR]] -> 1811875.304
B9: UCPA05 | C9: 100 | D9: 219124.2877 | E9: 9.414580144 | F9: 25 | G9: =(ROUNDUP(NdS_Wp / Tabla_UCPA[[#This Row],[Wp]],0)+(INT(NdS_Wp / Tabla_UCPA[[#This Row],[Wp]])>UCPA_MinPan)*IFERROR(MOD(ROUNDUP(NdS_Wp/ Tabla_UCPA[[#This Row],[Wp]],0),UCPA_Escala)*(UCPA_Escala-MOD(ROUNDUP(NdS_Wp / Tabla_UCPA[[#This Row],[Wp]],0),UCPA_Escala))/MOD(ROUNDUP(NdS_Wp / Tabla_UCPA[[#This Row],[Wp]],0),UCPA_Escala),0)) -> 8 | H9: =Tabla_UCPA[[#This Row],[Modulos]]*Tabla_UCPA[[#This Row],[VI_CR]] -> 1752994.302
B10: UCPA06 | C10: 150 | D10: 309535.8591 | E10: 12.58067281 | F10: 25 | G10: =(ROUNDUP(NdS_Wp / Tabla_UCPA[[#This Row],[Wp]],0)+(INT(NdS_Wp / Tabla_UCPA[[#This Row],[Wp]])>UCPA_MinPan)*IFERROR(MOD(ROUNDUP(NdS_Wp/ Tabla_UCPA[[#This Row],[Wp]],0),UCPA_Escala)*(UCPA_Escala-MOD(ROUNDUP(NdS_Wp / Tabla_UCPA[[#This Row],[Wp]],0),UCPA_Escala))/MOD(ROUNDUP(NdS_Wp / Tabla_UCPA[[#This Row],[Wp]],0),UCPA_Escala),0)) -> 6 | H10: =Tabla_UCPA[[#This Row],[Modulos]]*Tabla_UCPA[[#This Row],[VI_CR]] -> 1857215.154
B11: UCPA07 | C11: 200 | D11: 354261.8324 | E11: 15.453733 | F11: 25 | G11: =(ROUNDUP(NdS_Wp / Tabla_UCPA[[#This Row],[Wp]],0)+(INT(NdS_Wp / Tabla_UCPA[[#This Row],[Wp]])>UCPA_MinPan)*IFERROR(MOD(ROUNDUP(NdS_Wp/ Tabla_UCPA[[#This Row],[Wp]],0),UCPA_Escala)*(UCPA_Escala-MOD(ROUNDUP(NdS_Wp / Tabla_UCPA[[#This Row],[Wp]],0),UCPA_Escala))/MOD(ROUNDUP(NdS_Wp / Tabla_UCPA[[#This Row],[Wp]],0),UCPA_Escala),0)) -> 4 | H11: =Tabla_UCPA[[#This Row],[Modulos]]*Tabla_UCPA[[#This Row],[VI_CR]] -> 1417047.33
B12: UCPA08 | C12: 250 | D12: 428436.6123 | E12: 18.12686816 | F12: 25 | G12: =(ROUNDUP(NdS_Wp / Tabla_UCPA[[#This Row],[Wp]],0)+(INT(NdS_Wp / Tabla_UCPA[[#This Row],[Wp]])>UCPA_MinPan)*IFERROR(MOD(ROUNDUP(NdS_Wp/ Tabla_UCPA[[#This Row],[Wp]],0),UCPA_Escala)*(UCPA_Escala-MOD(ROUNDUP(NdS_Wp / Tabla_UCPA[[#This Row],[Wp]],0),UCPA_Escala))/MOD(ROUNDUP(NdS_Wp / Tabla_UCPA[[#This Row],[Wp]],0),UCPA_Escala),0)) -> 4 | H12: =Tabla_UCPA[[#This Row],[Modulos]]*Tabla_UCPA[[#This Row],[VI_CR]] -> 1713746.449
B13: UCPA09 | C13: 275 | D13: 464676.7657 | E13: 19.40519432 | F13: 25 | G13: =(ROUNDUP(NdS_Wp / Tabla_UCPA[[#This Row],[Wp]],0)+(INT(NdS_Wp / Tabla_UCPA[[#This Row],[Wp]])>UCPA_MinPan)*IFERROR(MOD(ROUNDUP(NdS_Wp/ Tabla_UCPA[[#This Row],[Wp]],0),UCPA_Escala)*(UCPA_Escala-MOD(ROUNDUP(NdS_Wp / Tabla_UCPA[[#This Row],[Wp]],0),UCPA_Escala))/MOD(ROUNDUP(NdS_Wp / Tabla_UCPA[[#This Row],[Wp]],0),UCPA_Escala),0)) -> 3 | H13: =Tabla_UCPA[[#This Row],[Modulos]]*Tabla_UCPA[[#This Row],[VI_CR]] -> 1394030.297
B14: UCPA10 | C14: 320 | D14: 528717.6488 | E14: 21.62601402 | F14: 25 | G14: =(ROUNDUP(NdS_Wp / Tabla_UCPA[[#This Row],[Wp]],0)+(INT(NdS_Wp / Tabla_UCPA[[#This Row],[Wp]])>UCPA_MinPan)*IFERROR(MOD(ROUNDUP(NdS_Wp/ Tabla_UCPA[[#This Row],[Wp]],0),UCPA_Escala)*(UCPA_Escala-MOD(ROUNDUP(NdS_Wp / Tabla_UCPA[[#This Row],[Wp]],0),UCPA_Escala))/MOD(ROUNDUP(NdS_Wp / Tabla_UCPA[[#This Row],[Wp]],0),UCPA_Escala),0)) -> 3 | H14: =Tabla_UCPA[[#This Row],[Modulos]]*Tabla_UCPA[[#This Row],[VI_CR]] -> 1586152.946
B15: UCPA11 | C15: 345 | D15: 563710.5584 | E15: 22.82098915 | F15: 25 | G15: =(ROUNDUP(NdS_Wp / Tabla_UCPA[[#This Row],[Wp]],0)+(INT(NdS_Wp / Tabla_UCPA[[#This Row],[Wp]])>UCPA_MinPan)*IFERROR(MOD(ROUNDUP(NdS_Wp/ Tabla_UCPA[[#This Row],[Wp]],0),UCPA_Escala)*(UCPA_Escala-MOD(ROUNDUP(NdS_Wp / Tabla_UCPA[[#This Row],[Wp]],0),UCPA_Escala))/MOD(ROUNDUP(NdS_Wp / Tabla_UCPA[[#This Row],[Wp]],0),UCPA_Escala),0)) -> 3 | H15: =Tabla_UCPA[[#This Row],[Modulos]]*Tabla_UCPA[[#This Row],[VI_CR]] -> 1691131.675
B16: UCPA12 | C16: 380 | D16: 612079.322 | E16: 24.45335911 | F16: 25 | G16: =(ROUNDUP(NdS_Wp / Tabla_UCPA[[#This Row],[Wp]],0)+(INT(NdS_Wp / Tabla_UCPA[[#This Row],[Wp]])>UCPA_MinPan)*IFERROR(MOD(ROUNDUP(NdS_Wp/ Tabla_UCPA[[#This Row],[Wp]],0),UCPA_Escala)*(UCPA_Escala-MOD(ROUNDUP(NdS_Wp / Tabla_UCPA[[#This Row],[Wp]],0),UCPA_Escala))/MOD(ROUNDUP(NdS_Wp / Tabla_UCPA[[#This Row],[Wp]],0),UCPA_Escala),0)) -> 2 | H16: =Tabla_UCPA[[#This Row],[Modulos]]*Tabla_UCPA[[#This Row],[VI_CR]] -> 1224158.644
B17: UCPA13 | C17: 400 | D17: 639419.7104 | E17: 25.36680976 | F17: 25 | G17: =(ROUNDUP(NdS_Wp / Tabla_UCPA[[#This Row],[Wp]],0)+(INT(NdS_Wp / Tabla_UCPA[[#This Row],[Wp]])>UCPA_MinPan)*IFERROR(MOD(ROUNDUP(NdS_Wp/ Tabla_UCPA[[#This Row],[Wp]],0),UCPA_Escala)*(UCPA_Escala-MOD(ROUNDUP(NdS_Wp / Tabla_UCPA[[#This Row],[Wp]],0),UCPA_Escala))/MOD(ROUNDUP(NdS_Wp / Tabla_UCPA[[#This Row],[Wp]],0),UCPA_Escala),0)) -> 2 | H17: =Tabla_UCPA[[#This Row],[Modulos]]*Tabla_UCPA[[#This Row],[VI_CR]] -> 1278839.421
B20: 2. TABLA UNIDAD CONSTRUCTIVA INVERSOR
B22: Codigo | C22: Capacidad (VA) | D22: VA_Carga_Min | E22: VA_Carga_Max | F22: VI_CR | G22: Kg | H22: VU
B23: UCIN01 | C23: 300 | D23: 0 | E23: 330 | F23: 343060.211 | G23: 2.37442442 | H23: 10
B24: UCIN02 | C24: 500 | D24: 330.01 | E24: 550 | F24: 510996.9288 | G24: 3.355383457 | H24: 10
B25: UCIN03 | C25: 600 | D25: 550.01 | E25: 660 | F25: 589090.1662 | G25: 3.796164999 | H25: 10
B26: UCIN04 | C26: 800 | D26: 660.01 | E26: 880 | F26: 684627.0907 | G26: 4.389763399 | H26: 10
B27: UCIN05 | C27: 1000 | D27: 880.01 | E27: 1100 | F27: 725782.9584 | G27: 5.105588246 | H27: 10
B28: UCIN06 | C28: 1500 | D28: 1100.01 | E28: 1650 | F28: 995778.2673 | G28: 6.718207022 | H28: 10
B29: UCIN07 | C29: 2000 | D29: 1650.01 | E29: 2200 | F29: 1246287.357 | G29: 8.162675231 | H29: 10
B30: UCIN08 | C30: 3000 | D30: 2200.01 | E30: 3300 | F30: 3338483.49 | G30: 19.11383812 | H30: 10
B31: UCIN09 | C31: 4000 | D31: 3300.01 | E31: 4400 | F31: 4178349.64 | G31: 23.2234661 | H31: 10
B32: UCIN10 | C32: 5000 | D32: 4400.01 | E32: 5500 | F32: 4972756.256 | G32: 27.01044333 | H32: 10
B33: UCIN11 | C33: 6000 | D33: 5500.01 | E33: 6600 | F33: 5732719.013 | G33: 30.55868305 | H33: 10
B34: UCIN12 | C34: 10000 | D34: 6600.01 | E34: 11000 | F34: 8539031.097 | G34: 43.18356008 | H34: 10
B37: 3. TABLA UNIDAD CONSTRUCTIVA REGULADOR
B39: Codigo | C39: A_Min | D39: A_Max | E39: VI_CR | F39: Kg | G39: VU
B40: UCRG01 | C40: 0.01 | D40: 10 | E40: 213964.3745 | F40: 0.3360817397 | G40: 10
B41: UCRG02 | C41: 10.01 | D41: 15 | E41: 320946.5618 | F41: 0.5468534132 | G41: 10
B42: UCRG03 | C42: 15.01 | D42: 20 | E42: 427928.749 | F42: 0.7724672376 | G42: 10
B43: UCRG04 | C43: 20.01 | D43: 30 | E43: 641893.1235 | F43: 1.256915493 | G43: 10
B44: UCRG05 | C44: 30.01 | D44: 40 | E44: 855857.4981 | F44: 1.775477697 | G44: 10
B45: UCRG06 | C45: 40.01 | D45: 50 | E45: 1069821.873 | F45: 2.320979749 | G45: 10
B46: UCRG07 | C46: 50.01 | D46: 60 | E46: 2041995.422 | F46: 2.888958024 | G46: 10
B47: UCRG08 | C47: 60.01 | D47: 70 | E47: 2382327.993 | F47: 3.476335396 | G47: 10
B48: UCRG09 | C48: 70.01 | D48: 80 | E48: 2722660.563 | F48: 4.080847574 | G48: 10
B49: UCRG10 | C49: 80.01 | D49: 100 | E49: 3403325.704 | F49: 5.33465703 | G49: 10
B52: 4. TABLA UNIDAD CONSTRUCTIVA BANCO DE BATERIAS
B54: Codigo | C54: Whd_Min | D54: Whd_Max | E54: VI_CR | F54: Kg | G54: VU
B55: UCBB01 | C55: 0.01 | D55: 79.2 | E55: 155162.9061 | F55: 7.2 | G55: 3.150684932
B56: UCBB02 | C56: 79.21 | D56: 118.8990826 | E56: 244228.3722 | F56: 10.6 | G56: 4.109589041
B57: UCBB03 | C57: 118.9090826 | D57: 330 | E57: 376610.3656 | F57: 16.6 | G57: 4.246575342
B58: UCBB04 | C58: 330.01 | D58: 600 | E58: 608742.9264 | F58: 31.2 | G58: 4.246575342
B59: UCBB05 | C59: 600.01 | D59: 900 | E59: 859401.7785 | F59: 42.6 | G59: 4.246575342
B60: UCBB06 | C60: 900.01 | D60: 1200 | E60: 1181677.445 | F60: 60.2 | G60: 4.246575342
B61: UCBB07 | C61: 1200.01 | D61: 1800 | E61: 1718803.557 | F61: 85.2 | G61: 4.246575342
B62: UCBB08 | C62: 1800.01 | D62: 2400 | E62: 2363354.891 | F62: 120.4 | G62: 4.246575342
B63: UCBB09 | C63: 2400.01 | D63: 3600 | E63: 3437607.114 | F63: 170.4 | G63: 4.246575342
B64: UCBB10 | C64: 3600.01 | D64: 4800 | E64: 4726709.782 | F64: 240.8 | G64: 4.246575342
B65: UCBB11 | C65: 4800.01 | D65: 7200 | E65: 6875214.228 | F65: 340.8 | G65: 4.246575342
B66: UCBB12 | C66: 7200.01 | D66: 12000 | E66: 11315456.75 | F66: 569.6 | G66: 4.246575342
B67: UCBB13 | C67: 12000.01 | D67: 18000 | E67: 16973185.13 | F67: 854.4 | G67: 4.246575342
B68: UCBB14 | C68: 18000.01 | D68: 24000 | E68: 22630913.5 | F68: 1139.2 | G68: 4.246575342
B71: 5. TABLA UNIDAD CONSTRUCTIVA ESTRUCTURA
B73: Codigo | C73: No_Paneles | D73: Wp_Min | E73: Wp_Max | F73: VI_CR | G73: Kg | H73: VU | I73: Min_Costo
B74: UCES01 | C74: 1 | D74: 0 | E74: 270 | F74: 104472.2223 | G74: 4 | H74: 20
B75: UCES02 | C75: 1 | D75: 270.01 | E75: 310 | F75: 117005.1649 | G75: 4 | H75: 20
B76: UCES03 | C76: 1 | D76: 310.01 | E76: 410 | F76: 142071.0501 | G76: 4 | H76: 20
B77: UCES04 | C77: 2 | D77: 0 | E77: 270 | F77: 146947.5584 | G77: 4 | H77: 20
B78: UCES05 | C78: 2 | D78: 270.01 | E78: 310 | F78: 172013.4436 | G78: 4 | H78: 20
B79: UCES06 | C79: 2 | D79: 310.01 | E79: 410 | F79: 222145.214 | G79: 4 | H79: 20
B80: UCES07 | C80: 1 | F80: 1041314.414 | G80: 45 | H80: 20 | I80: =ROUNDUP(UCPA_NUM/Tabla_UCES[[#This Row],[No_Paneles]],0)*Tabla_UCES[[#This Row],[VI_CR]] -> 2082628.829
B81: UCES08 | C81: 2 | F81: 1239159.208 | G81: 70 | H81: 20 | I81: =ROUNDUP(UCPA_NUM/Tabla_UCES[[#This Row],[No_Paneles]],0)*Tabla_UCES[[#This Row],[VI_CR]] -> 1239159.208
B82: UCES09 | C82: 3 | F82: 1706390.173 | G82: 94 | H82: 20 | I82: =ROUNDUP(UCPA_NUM/Tabla_UCES[[#This Row],[No_Paneles]],0)*Tabla_UCES[[#This Row],[VI_CR]] -> 1706390.173
B83: UCES10 | C83: 4 | F83: 2311568.491 | G83: 113 | H83: 20 | I83: =ROUNDUP(UCPA_NUM/Tabla_UCES[[#This Row],[No_Paneles]],0)*Tabla_UCES[[#This Row],[VI_CR]] -> 2311568.491
B84: UCES11 | C84: 6 | F84: 3503290.434 | G84: 162 | H84: 20 | I84: =ROUNDUP(UCPA_NUM/Tabla_UCES[[#This Row],[No_Paneles]],0)*Tabla_UCES[[#This Row],[VI_CR]] -> 3503290.434
B85: UCES12 | C85: 8 | F85: 4404194.634 | G85: 198 | H85: 20 | I85: =ROUNDUP(UCPA_NUM/Tabla_UCES[[#This Row],[No_Paneles]],0)*Tabla_UCES[[#This Row],[VI_CR]] -> 4404194.634
B88: 6. TABLA UNIDAD CONSTRUCTIVA RED PANEL
B90: Codigo | C90: Wp_Min | D90: Wp_Max | E90: VI_CR | F90: Kg | G90: VU
B91: UCRP01 | C91: 0 | D91: 275 | E91: 48155.14632 | F91: 0.9 | G91: 25
B92: UCRP02 | C92: 275.01 | D92: 550 | E92: 56510.44139 | F92: 0.9 | G92: 25
B93: UCRP04 | C93: 550.01 | D93: 760 | E93: 238039.9693 | F93: 3.55 | G93: 25
B94: UCRP05 | C94: 760.01 | D94: 1520 | E94: 321924.2671 | F94: 5.5 | G94: 25
B95: UCRP06 | C95: 1520.01 | D95: 1140 | E95: 335258.1244 | F95: 5.5 | G95: 25
B96: UCRP07 | C96: 1140.01 | D96: 2280 | E96: 364501.6572 | F96: 5.5 | G96: 25
B97: UCRP08 | C97: 2280.01 | D97: 3420 | E97: 393745.1899 | F97: 5.5 | G97: 25
B98: UCRP09 | C98: 3420.01 | D98: 4560 | E98: 765023.7075 | F98: 15 | G98: 25
B99: UCRP10 | C99: 4560.01 | D99: 5700 | E99: 794267.2403 | F99: 15 | G99: 25
B100: UCRP11 | C100: 5700.01 | D100: 6840 | E100: 1107031.955 | F100: 21 | G100: 25
B101: UCRP12 | C101: 6840.01 | D101: 7980 | E101: 1136275.488 | F101: 21 | G101: 25
B102: UCRP13 | C102: 7980.01 | D102: 9120 | E102: 1165519.021 | F102: 21 | G102: 25
B103: UCRP14 | C103: 9120.01 | D103: 10260 | E103: 1194762.554 | F103: 21 | G103: 25
B106: 7. TABLA UNIDAD CONSTRUCTIVA GABINETE Y PROTECCIONES
B108: Codigo | C108: VA_Inv_Min | D108: VA_Inv_Max | E108: VI_CR | F108: Kg | G108: VU
B109: UCGP01 | C109: DC | D109: DC | E109: 226572.3268 | F109: 4.32 | G109: 25
B110: UCGP02 | C110: 0.01 | D110: 300 | E110: 575735.3333 | F110: 7.02 | G110: 25
B111: UCGP03 | C111: 300.01 | D111: 500 | E111: 706219.3795 | F111: 17.28 | G111: 25
B112: UCGP04 | C112: 500.01 | D112: 800 | E112: 852186.3844 | F112: 28.08 | G112: 25
B113: UCGP05 | C113: 800.01 | D113: 2000 | E113: 1061794.478 | F113: 33 | G113: 25
B114: UCGP06 | C114: 2000.01 | D114: 3000 | E114: 1223887.203 | F114: 33.3 | G114: 25
B115: UCGP07 | C115: 3000.01 | D115: 5000 | E115: 2688406.903 | F115: 33.6 | G115: 25
B118: 8. TABLA UNIDAD CONSTRUCTIVA RED BATERÍA A GABINETE Y ACCESORIOS
B120: Codigo | C120: VA_Inv_Min | D120: VA_Inv_Max | E120: VI_CR | F120: Kg | G120: VU
B121: UCRB01 | C121: DC | D121: DC | E121: 9923.703314 | F121: 4.32 | G121: 25
B122: UCRB02 | C122: 0.01 | D122: 300 | E122: 246222.1904 | F122: 7.02 | G122: 25
B123: UCRB03 | C123: 300.01 | D123: 500 | E123: 406443.3286 | F123: 17.28 | G123: 25
B124: UCRB04 | C124: 500.01 | D124: 800 | E124: 641811.9907 | F124: 28.08 | G124: 25
B125: UCRB07 | C125: 800.01 | D125: 2000 | E125: 932361.4086 | F125: 33 | G125: 25
B126: UCRB08 | C126: 2000.01 | D126: 3000 | E126: 1895037.021 | F126: 33.3 | G126: 25
B127: UCRB09 | C127: 3000.01 | D127: 5000 | E127: 4954685.201 | F127: 33.6 | G127: 25
B130: 9. TABLA UNIDAD CONSTRUCTIVA PUESTA A TIERRA
B132: Codigo | C132: No_UCPA_Min | D132: No_UCPA_Max | E132: VI_CR | F132: Kg | G132: VU
B133: UCPT01 | C133: 0.01 | D133: 1 | E133: 172394.8032 | F133: 11.09 | G133: 25
B134: UCPT02 | C134: 1.01 | D134: 2 | E134: 180594.9285 | F134: 11.3 | G134: 25
B135: UCPT03 | C135: 2.01 | D135: 4 | E135: 197291.1952 | F135: 11.9 | G135: 25
B136: UCPT04 | C136: 4.01 | D136: 8 | E136: 746817.7583 | F136: 12.91 | G136: 25
B137: UCPT05 | C137: 8.01 | D137: 10 | E137: 787233.5141 | F137: 14.24 | G137: 25
B140: 10. TABLA UNIDAD CONSTRUCTIVA RED DOMICILIARIA
B142: Codigo | C142: VI_CR | D142: Kg | E142: VU
B143: UCRD01 | C143: 76955.84842 | D143: 16.32 | E143: 25
B144: UCRD02 | C144: 285133.3963 | D144: 10.88 | E144: 25
B147: 11. TABLA UNIDAD CONSTRUCTIVA ELEMENTO DE MEDICIÓN
B149: Codigo | C149: VI_CR | D149: Kg | E149: VU
B150: UCMD01 | C150: 254239.6928 | D150: 1 | E150: 10

Sheet NdS
B2: Niveles de servicio
B4: AC Wp | C4: AC Whd | E4: DC Wp | F4: DC Whd
B5: 320 | C5: =INT(Tabla_NdS_AC[[#This Row],[AC Wp]]*Radiacion*Ef_SISFV) -> 907 | E5: 20 | F5: =INT(Tabla_NdS_DC[[#This Row],[DC Wp]]*Radiacion*Ef_SISFV) -> 56
B6: 345 | C6: =INT(Tabla_NdS_AC[[#This Row],[AC Wp]]*Radiacion*Ef_SISFV) -> 978 | E6: 40 | F6: =INT(Tabla_NdS_DC[[#This Row],[DC Wp]]*Radiacion*Ef_SISFV) -> 113
B7: 380 | C7: =INT(Tabla_NdS_AC[[#This Row],[AC Wp]]*Radiacion*Ef_SISFV) -> 1078 | E7: 60 | F7: =INT(Tabla_NdS_DC[[#This Row],[DC Wp]]*Radiacion*Ef_SISFV) -> 170
B8: 400 | C8: =INT(Tabla_NdS_AC[[#This Row],[AC Wp]]*Radiacion*Ef_SISFV) -> 1134 | E8: 80 | F8: =INT(Tabla_NdS_DC[[#This Row],[DC Wp]]*Radiacion*Ef_SISFV) -> 226
B9: 500 | C9: =INT(Tabla_NdS_AC[[#This Row],[AC Wp]]*Radiacion*Ef_SISFV) -> 1418 | E9: 100 | F9: =INT(Tabla_NdS_DC[[#This Row],[DC Wp]]*Radiacion*Ef_SISFV) -> 283
B10: 550 | C10: =INT(Tabla_NdS_AC[[#This Row],[AC Wp]]*Radiacion*Ef_SISFV) -> 1560 | E10: 120 | F10: =INT(Tabla_NdS_DC[[#This Row],[DC Wp]]*Radiacion*Ef_SISFV) -> 340
B11: 640 | C11: =INT(Tabla_NdS_AC[[#This Row],[AC Wp]]*Radiacion*Ef_SISFV) -> 1815 | E11: 150 | F11: =INT(Tabla_NdS_DC[[#This Row],[DC Wp]]*Radiacion*Ef_SISFV) -> 425
B12: 690 | C12: =INT(Tabla_NdS_AC[[#This Row],[AC Wp]]*Radiacion*Ef_SISFV) -> 1957 | E12: 200 | F12: =INT(Tabla_NdS_DC[[#This Row],[DC Wp]]*Radiacion*Ef_SISFV) -> 567
B13: 760 | C13: =INT(Tabla_NdS_AC[[#This Row],[AC Wp]]*Radiacion*Ef_SISFV) -> 2156 | E13: 250 | F13: =INT(Tabla_NdS_DC[[#This Row],[DC Wp]]*Radiacion*Ef_SISFV) -> 709
B14: 800 | C14: =INT(Tabla_NdS_AC[[#This Row],[AC Wp]]*Radiacion*Ef_SISFV) -> 2269 | E14: 275 | F14: =INT(Tabla_NdS_DC[[#This Row],[DC Wp]]*Radiacion*Ef_SISFV) -> 780
B15: 825 | C15: =INT(Tabla_NdS_AC[[#This Row],[AC Wp]]*Radiacion*Ef_SISFV) -> 2340
B16: 960 | C16: =INT(Tabla_NdS_AC[[#This Row],[AC Wp]]*Radiacion*Ef_SISFV) -> 2723
B17: 1035 | C17: =INT(Tabla_NdS_AC[[#This Row],[AC Wp]]*Radiacion*Ef_SISFV) -> 2936
B18: 1140 | C18: =INT(Tabla_NdS_AC[[#This Row],[AC Wp]]*Radiacion*Ef_SISFV) -> 3234
B19: 1200 | C19: =INT(Tabla_NdS_AC[[#This Row],[AC Wp]]*Radiacion*Ef_SISFV) -> 3404
B20: 1280 | C20: =INT(Tabla_NdS_AC[[#This Row],[AC Wp]]*Radiacion*Ef_SISFV) -> 3631
B21: 1380 | C21: =INT(Tabla_NdS_AC[[#This Row],[AC Wp]]*Radiacion*Ef_SISFV) -> 3915
B22: 1520 | C22: =INT(Tabla_NdS_AC[[#This Row],[AC Wp]]*Radiacion*Ef_SISFV) -> 4312
B23: 1600 | C23: =INT(Tabla_NdS_AC[[#This Row],[AC Wp]]*Radiacion*Ef_SISFV) -> 4539
B24: 1650 | C24: =INT(Tabla_NdS_AC[[#This Row],[AC Wp]]*Radiacion*Ef_SISFV) -> 4681
B25: 1920 | C25: =INT(Tabla_NdS_AC[[#This Row],[AC Wp]]*Radiacion*Ef_SISFV) -> 5447
B26: 2070 | C26: =INT(Tabla_NdS_AC[[#This Row],[AC Wp]]*Radiacion*Ef_SISFV) -> 5873
B27: 2280 | C27: =INT(Tabla_NdS_AC[[#This Row],[AC Wp]]*Radiacion*Ef_SISFV) -> 6469
B28: 2400 | C28: =INT(Tabla_NdS_AC[[#This Row],[AC Wp]]*Radiacion*Ef_SISFV) -> 6809
B29: 2560 | C29: =INT(Tabla_NdS_AC[[#This Row],[AC Wp]]*Radiacion*Ef_SISFV) -> 7263
B30: 2760 | C30: =INT(Tabla_NdS_AC[[#This Row],[AC Wp]]*Radiacion*Ef_SISFV) -> 7831
B31: 3040 | C31: =INT(Tabla_NdS_AC[[#This Row],[AC Wp]]*Radiacion*Ef_SISFV) -> 8625
B32: 3200 | C32: =INT(Tabla_NdS_AC[[#This Row],[AC Wp]]*Radiacion*Ef_SISFV) -> 9079
B33: 3300 | C33: =INT(Tabla_NdS_AC[[#This Row],[AC Wp]]*Radiacion*Ef_SISFV) -> 9363
B34: 3450 | C34: =INT(Tabla_NdS_AC[[#This Row],[AC Wp]]*Radiacion*Ef_SISFV) -> 9789
B35: 3500 | C35: =INT(Tabla_NdS_AC[[#This Row],[AC Wp]]*Radiacion*Ef_SISFV) -> 9930
B36: 3800 | C36: =INT(Tabla_NdS_AC[[#This Row],[AC Wp]]*Radiacion*Ef_SISFV) -> 10782
B37: 3840 | C37: =INT(Tabla_NdS_AC[[#This Row],[AC Wp]]*Radiacion*Ef_SISFV) -> 10895
B38: 4000 | C38: =INT(Tabla_NdS_AC[[#This Row],[AC Wp]]*Radiacion*Ef_SISFV) -> 11349
B39: 4140 | C39: =INT(Tabla_NdS_AC[[#This Row],[AC Wp]]*Radiacion*Ef_SISFV) -> 11746
B40: 4560 | C40: =INT(Tabla_NdS_AC[[#This Row],[AC Wp]]*Radiacion*Ef_SISFV) -> 12938
B41: 4800 | C41: =INT(Tabla_NdS_AC[[#This Row],[AC Wp]]*Radiacion*Ef_SISFV) -> 13619
B42: 4830 | C42: =INT(Tabla_NdS_AC[[#This Row],[AC Wp]]*Radiacion*Ef_SISFV) -> 13704
B43: 4950 | C43: =INT(Tabla_NdS_AC[[#This Row],[AC Wp]]*Radiacion*Ef_SISFV) -> 14045
B44: 5120 | C44: =INT(Tabla_NdS_AC[[#This Row],[AC Wp]]*Radiacion*Ef_SISFV) -> 14527
B45: 5320 | C45: =INT(Tabla_NdS_AC[[#This Row],[AC Wp]]*Radiacion*Ef_SISFV) -> 15095
B46: 5600 | C46: =INT(Tabla_NdS_AC[[#This Row],[AC Wp]]*Radiacion*Ef_SISFV) -> 15889
B47: 5760 | C47: =INT(Tabla_NdS_AC[[#This Row],[AC Wp]]*Radiacion*Ef_SISFV) -> 16343
B48: 6080 | C48: =INT(Tabla_NdS_AC[[#This Row],[AC Wp]]*Radiacion*Ef_SISFV) -> 17251
B49: 6210 | C49: =INT(Tabla_NdS_AC[[#This Row],[AC Wp]]*Radiacion*Ef_SISFV) -> 17620
B50: 6400 | C50: =INT(Tabla_NdS_AC[[#This Row],[AC Wp]]*Radiacion*Ef_SISFV) -> 18159
B51: 6840 | C51: =INT(Tabla_NdS_AC[[#This Row],[AC Wp]]*Radiacion*Ef_SISFV) -> 19407
B52: 6900 | C52: =INT(Tabla_NdS_AC[[#This Row],[AC Wp]]*Radiacion*Ef_SISFV) -> 19578
B53: 7200 | C53: =INT(Tabla_NdS_AC[[#This Row],[AC Wp]]*Radiacion*Ef_SISFV) -> 20429
B54: 7600 | C54: =INT(Tabla_NdS_AC[[#This Row],[AC Wp]]*Radiacion*Ef_SISFV) -> 21564
B55: 7680 | C55: =INT(Tabla_NdS_AC[[#This Row],[AC Wp]]*Radiacion*Ef_SISFV) -> 21791
B56: 8000 | C56: =INT(Tabla_NdS_AC[[#This Row],[AC Wp]]*Radiacion*Ef_SISFV) -> 22699
B57: 8360 | C57: =INT(Tabla_NdS_AC[[#This Row],[AC Wp]]*Radiacion*Ef_SISFV) -> 23720
B58: 8800 | C58: =INT(Tabla_NdS_AC[[#This Row],[AC Wp]]*Radiacion*Ef_SISFV) -> 24969
B59: 8970 | C59: =INT(Tabla_NdS_AC[[#This Row],[AC Wp]]*Radiacion*Ef_SISFV) -> 25451
B60: 9120 | C60: =INT(Tabla_NdS_AC[[#This Row],[AC Wp]]*Radiacion*Ef_SISFV) -> 25877
B61: 9600 | C61: =INT(Tabla_NdS_AC[[#This Row],[AC Wp]]*Radiacion*Ef_SISFV) -> 27239
B62: 9660 | C62: =INT(Tabla_NdS_AC[[#This Row],[AC Wp]]*Radiacion*Ef_SISFV) -> 27409
B63: 9880 | C63: =INT(Tabla_NdS_AC[[#This Row],[AC Wp]]*Radiacion*Ef_SISFV) -> 28033

Sheet Parámetros
B2: 1. PARÁMETROS DE LA SISFV
B4: 1.1. Parámetros Eficiencia SISFV
B6: Factor | C6: % perdidas | D6: Tipo SISFV | E6: % Ef SISFV
B7: Módulo (mismatch) | C7: 0.01 | D7: =TRUE -> TRUE | E7: =1-(Tabla_Ef_SISFV[[#This Row],[% perdidas]]*Tabla_Ef_SISFV[[#This Row],[Tipo SISFV]]) -> 0.99
B8: Diodos y conexiones | C8: 0.003 | D8: =TRUE -> TRUE | E8: =1-(Tabla_Ef_SISFV[[#This Row],[% perdidas]]*Tabla_Ef_SISFV[[#This Row],[Tipo SISFV]]) -> 0.997
B9: Alambrado DC | C9: 0.01 | D9: =TRUE -> TRUE | E9: =1-(Tabla_Ef_SISFV[[#This Row],[% perdidas]]*Tabla_Ef_SISFV[[#This Row],[Tipo SISFV]]) -> 0.99
B10: Alambrado AC | C10: 0.007 | D10: =Tipo_Sistema="AC" -> TRUE | E10: =1-(Tabla_Ef_SISFV[[#This Row],[% perdidas]]*Tabla_Ef_SISFV[[#This Row],[Tipo SISFV]]) -> 0.993
B11: Suciedad | C11: 0.005 | D11: =TRUE -> TRUE | E11: =1-(Tabla_Ef_SISFV[[#This Row],[% perdidas]]*Tabla_Ef_SISFV[[#This Row],[Tipo SISFV]]) -> 0.995
B12: Disponibilidad | C12: 0.005 | D12: =TRUE -> TRUE | E12: =1-(Tabla_Ef_SISFV[[#This Row],[% perdidas]]*Tabla_Ef_SISFV[[#This Row],[Tipo SISFV]]) -> 0.995
B13: Sombras | C13: 0.01 | D13: =TRUE -> TRUE | E13: =1-(Tabla_Ef_SISFV[[#This Row],[% perdidas]]*Tabla_Ef_SISFV[[#This Row],[Tipo SISFV]]) -> 0.99
B14: Eficiencia Inversor | C14: 0.15 | D14: =Tipo_Sistema="AC" -> TRUE | E14: =1-(Tabla_Ef_SISFV[[#This Row],[% perdidas]]*Tabla_Ef_SISFV[[#This Row],[Tipo SISFV]]) -> 0.85
B15: Eficiencia de las baterías | C15: 0.2 | D15: =Almacenamiento="SI" -> TRUE | E15: =1-(Tabla_Ef_SISFV[[#This Row],[% perdidas]]*Tabla_Ef_SISFV[[#This Row],[Tipo SISFV]]) -> 0.8
B16: Temperatura celda 60°C | C16: 0.1225 | D16: =TRUE -> TRUE | E16: =1-(Tabla_Ef_SISFV[[#This Row],[% perdidas]]*Tabla_Ef_SISFV[[#This Row],[Tipo SISFV]]) -> 0.8775
B18: Eficiencia SISFV | E18: =PRODUCT(Tabla_Ef_SISFV[% Ef SISFV]) -> 0.5674821297
B20: 1.2. Parámetros selección UC Panel
B22: No. mínimo de paneles antes de escalar la instalación | C22: 2
B23: Modulo para escalar la instalación de paneles | C23: 2
B25: 1.3. Parámetros UC Inversor
B27: Factor Dda Whd a Dda pico VA con factor de seguridad | C27: 0.3499999997
B28: Demanda pico con factor de seguridad (VA) | C28: =NdS_Whd*Factor_Whd_VA_con_seguridad -> 754.5999992
B30: 1.4. Potencia máxima de carga al inversor de onda seno (VA)
B32: Factor de potencia máxima para el inversor | C32: 1.1
B33: Máxima capacidad inversor onda seno | C33: 800
B34: Límite inversor onda seno | C34: =Factor_potencia_inv * Max_cap_inv -> 880
B36: 1.5. Voltaje del sistema
B38: Nivel de servicio
B39: NdS_Whd_Min | C39: NdS_Whd_Max | D39: Voltaje
B40: 0 | C40: 1000 | D40: 12
B41: 1000.01 | C41: 4000 | D41: 24
B42: 4000.01 | C42: > 4000 | D42: 48
B44: 1.6. Parámetros para UCES Riel
B46: Potencia máxima SISFV (Wp) | C46: 500
B48: 1.7. Módulo W (Potencia) para UCRD
B50: Módulo UCRD DC - W | C50: 8
B51: Módulo UCRD AC - W | C51: 18
B54: 2. TASA DE DESCUENTO
B56: Tasa de descuento | C56: 0.1164
B59: 3. PARÁMETROS COSTOS DE TRANSPORTE DE SISFV HASTA PUNTO DE INSTALACIÓN
B61: 3.1. Transporte de ciudad de referencia (CR) a centro logístico (CL)
B63: Divipola CL | C63: CR a CL (km) | D63: Modalidad
B64: 05001 | C64: 0 | D64: Vía Tipo 1
B65: 08001 | C65: 0 | D65: Vía Tipo 1
B66: 11001 | C66: 416 | D66: Vía Tipo 1
B67: 41001 | C67: 579 | D67: Vía Tipo 1
B68: 44001 | C68: 891 | D68: Vía Tipo 1
B69: 50001 | C69: 582 | D69: Vía Tipo 1
B70: 68001 | C70: 390 | D70: Vía Tipo 1
B71: 76001 | C71: 0 | D71: Vía Tipo 1
B73: 3.2. Transporte de centro logístico (CL) a centro de distribución (CD)
B75: Divipola CD | C75: Divipola CL | D75: CL a CD (km) | E75: Modalidad
B76: 05001 | C76: 05001 | D76: 0 | E76: NA
B77: 05837 | C77: 05001 | D77: 333.83 | E77: Vía Tipo 3
B78: 08001 | C78: 08001 | D78: 0 | E78: NA
B79: 11001 | C79: 11001 | D79: 0 | E79: NA
B80: 13001 | C80: 08001 | D80: 113 | E80: Vía Tipo 1
B81: 15001 | C81: 11001 | D81: 146.995 | E81: Vía Tipo 1
B82: 17001 | C82: 05001 | D82: 208.5 | E82: Vía Tipo 1
B83: 18001 | C83: 41001 | D83: 237 | E83: Vía Tipo 1
B84: 19001 | C84: 76001 | D84: 140 | E84: Vía Tipo 1
B85: 20001 | C85: 08001 | D85: 301 | E85: Vía Tipo 1
B86: 23001 | C86: 08001 | D86: 354 | E86: Vía Tipo 1
B87: 27001 | C87: 05001 | D87: 237 | E87: Vía Tipo 4
B88: 41001 | C88: 41001 | D88: 0 | E88: NA
B89: 44001 | C89: 44001 | D89: 0 | E89: NA
B90: 47001 | C90: 08001 | D90: 104 | E90: Vía Tipo 1
B91: 50001 | C91: 50001 | D91: 0 | E91: NA
B92: 52001 | C92: 76001 | D92: 384 | E92: Vía Tipo 1
B93: 52835 | C93: 76001 | D93: 662 | E93: Vía Tipo 1
B94: 54001 | C94: 68001 | D94: 196 | E94: Vía Tipo 1
B95: 63001 | C95: 76001 | D95: 179 | E95: Vía Tipo 1
B96: 66001 | C96: 76001 | D96: 209 | E96: Vía Tipo 1
B97: 68001 | C97: 68001 | D97: 0 | E97: NA
B98: 68081 | C98: 68001 | D98: 115 | E98: Vía Tipo 3
B99: 70001 | C99: 08001 | D99: 238 | E99: Vía Tipo 1
B100: 73001 | C100: 11001 | D100: 167.542 | E100: Vía Tipo 3
B101: 76001 | C101: 76001 | D101: 0 | E101: NA
B102: 76109 | C102: 76001 | D102: 115 | E102: Vía Tipo 1
B103: 81001 | C103: 50001 | D103: 614 | E103: Vía Tipo 4
B104: 85001 | C104: 50001 | D104: 252 | E104: Vía Tipo 1
B105: 86001 | C105: 41001 | D105: 320 | E105: Vía Tipo 1
B106: 94001 | C106: 50001 | D106: 633 | E106: Aéreo
B107: 95001 | C107: 50001 | D107: 285 | E107: Vía Tipo 4
B108: 97001 | C108: 50001 | D108: 500 | E108: Aéreo
B109: 99001 | C109: 50001 | D109: 718 | E109: Aéreo
B111: 3.3. Parámetros modelo de costos - transporte terrestre
B113: Transporte terrestre
B114: Variable | C114: Parámetro | D114: Valor
B115: Constante (Col$ 2021-Dic /(kg*km)) | C115: C | D115: 3674.054582
B116: Distancia (km) | C116: α | D116: -0.6529983151
B117: Peso (kg) | C117: β | D117: -0.7244674953
B119: Tipo via | C119: Factor
B120: Vía Tipo 1 | C120: 0.9450267957
B121: Vía Tipo 2 | C121: 1
B122: Vía Tipo 3 | C122: 1.086339885
B123: Vía Tipo 4 | C123: 1.393513942
B124: Vía Tipo 5 | C124: 1.463189639
B125: Vía Tipo 6 | C125: 1.536349121
B126: Vía Tipo 7 | C126: 1.613166577
B127: Vía Tipo 8 | C127: 1.693824906
B129: 3.4. Parámetros modelo de costos - transporte aéreo
B131: Transporte aéreo
B132: Variable | C132: Parámetro | D132: Valor
B133: Constante (Col$ 2021-Dic /(kg*km)) | C133: C | D133: 24879.68575
B134: Distancia (km) | C134: α | D134: -0.8545856016
B135: Peso (kg) | C135: β | D135: -0.405316061
B136: Densidad (kg/m3) | C136: γ | D136: -0.08878434744
B138: 3.5. Parámetros modelo de costos - transporte fluvial
B140: Transporte fluvial
B141: Variable | C141: Parámetro | D141: Valor
B142: Constante (Col$ 2021-Dic /(kg*km)) | C142: C | D142: 58.45695932
B143: Distancia (km) | C143: α | D143: -0.715
B145: 3.6. Parámetros modelo de costos - transporte marítimo
B147: Transporte marítimo
B148: Variable | C148: Parámetro | D148: Valor
B149: Constante (Col$ 2021-Dic /(kg*km)) | C149: C | D149: 1463.560741
B150: Distancia (km) | C150: α | D150: -1.161
B152: 3.7. Cantidad de unidades para descuento en costos de transporte
B154: Descuento transporte por volumen | C154: 0.1
B156: 3.8. Ruta desde ciudad de referencia (CR) hasta punto de instalación (PI)
B158: Logistica | C158: Trayecto | D158: Tramo | E158: Modalidad | F158: Tipo | G158: Distancia (km)
B159: Ciudad Referencia a Centro Logístico | C159: ="Ciudad de referencia -> " & INDEX(Tabla_Municipios[Municipio],MATCH(INDEX(Tabla_CD[Divipola CL],MATCH(INDEX(Tabla_Municipios[CD],MATCH(Punto_Instalacion,Tabla_Municipios[Codigo_M],0)),Tabla_CD[Divipola CD],0)),Tabla_Municipios[Codigo_M],0)) -> Ciudad de referencia -> RIOHACHA | D159: T de CR a CL | E159: =IF(Tabla_Ruta_CR_PI[[#This Row],[Tipo]]="NA","NA",IF(Tabla_Ruta_CR_PI[[#This Row],[Tipo]]="Aéreo","A",IF(Tabla_Ruta_CR_PI[[#This Row],[Tipo]]="Fluvial","F",IF(Tabla_Ruta_CR_PI[[#This Row],[Tipo]]="Marítimo","M","T")))) -> T | F159: =INDEX(Tabla_CL[Modalidad],MATCH(INDEX(Tabla_CD[Divipola CL],MATCH(INDEX(Tabla_Municipios[CD],MATCH(Punto_Instalacion,Tabla_Municipios[Codigo_M],0)),Tabla_CD[Divipola CD],0)),Tabla_CL[Divipola CL],0)) -> Vía Tipo 1 | G159: =INDEX(Tabla_CL[CR a CL (km)],MATCH(INDEX(Tabla_CD[Divipola CL],MATCH(INDEX(Tabla_Municipios[CD],MATCH(Punto_Instalacion,Tabla_Municipios[Codigo_M],0)),Tabla_CD[Divipola CD],0)),Tabla_CL[Divipola CL],0)) -> 891
B160: Centro Logístico a Centro de Distribución | C160: =INDEX(Tabla_Municipios[Municipio],MATCH(INDEX(Tabla_CD[Divipola CL],MATCH(INDEX(Tabla_Municipios[CD],MATCH(Punto_Instalacion,Tabla_Municipios[Codigo_M],0)),Tabla_CD[Divipola CD],0)),Tabla_Municipios[Codigo_M],0)) & " -> " & INDEX(Tabla_Municipios[Municipio],MATCH(INDEX(Tabla_Municipios[CD],MATCH(Punto_Instalacion,Tabla_Municipios[Codigo_M],0)),Tabla_Municipios[Codigo_M],0),0) -> RIOHACHA -> RIOHACHA | D160: T de CL a CD | E160: =IF(Tabla_Ruta_CR_PI[[#This Row],[Tipo]]="NA","NA",IF(Tabla_Ruta_CR_PI[[#This Row],[Tipo]]="Aéreo","A",IF(Tabla_Ruta_CR_PI[[#This Row],[Tipo]]="Fluvial","F",IF(Tabla_Ruta_CR_PI[[#This Row],[Tipo]]="Marítimo","M","T")))) -> NA | F160: =INDEX(Tabla_CD[Modalidad],MATCH(INDEX(Tabla_Municipios[CD],MATCH(Punto_Instalacion,Tabla_Municipios[Codigo_M],0)),Tabla_CD[Divipola CD],0)) -> NA | G160: =INDEX(Tabla_CD[CL a CD (km)],MATCH(INDEX(Tabla_Municipios[CD],MATCH(Punto_Instalacion,Tabla_Municipios[Codigo_M],0)),Tabla_CD[Divipola CD],0)) -> 0
B161: Centro de Distribución a Municipio Tramo 1 | C161: =INDEX(Tabla_Municipios[Municipio],MATCH(INDEX(Tabla_Municipios[CD],MATCH(Punto_Instalacion,Tabla_Municipios[Codigo_M],0)),Tabla_Municipios[Codigo_M],0),0) & " -> " & MUN & " (Tramo 1)" -> RIOHACHA -> URIBIA (Tramo 1) | D161: T de CD a M1 | E161: =IF(Tabla_Ruta_CR_PI[[#This Row],[Tipo]]="NA","NA",IF(Tabla_Ruta_CR_PI[[#This Row],[Tipo]]="Aéreo","A",IF(Tabla_Ruta_CR_PI[[#This Row],[Tipo]]="Fluvial","F",IF(Tabla_Ruta_CR_PI[[#This Row],[Tipo]]="Marítimo","M","T")))) -> T | F161: =INDEX(Tabla_Municipios[Tramo 1 Modalidad (CD-M) ],MATCH(Punto_Instalacion,Tabla_Municipios[Codigo_M],0)) -> Vía Tipo 3 | G161: =INDEX(Tabla_Municipios[Tramo 1 Distancia (Km)],MATCH(Punto_Instalacion,Tabla_Municipios[Codigo_M],0)) -> 95.1
B162: Centro de Distribución a Municipio Tramo 2 | C162: =INDEX(Tabla_Municipios[Municipio],MATCH(INDEX(Tabla_Municipios[CD],MATCH(Punto_Instalacion,Tabla_Municipios[Codigo_M],0)),Tabla_Municipios[Codigo_M],0),0) & " -> " & MUN & " (Tramo 2)" -> RIOHACHA -> URIBIA (Tramo 2) | D162: T de CD a M2 | E162: =IF(Tabla_Ruta_CR_PI[[#This Row],[Tipo]]="NA","NA",IF(Tabla_Ruta_CR_PI[[#This Row],[Tipo]]="Aéreo","A",IF(Tabla_Ruta_CR_PI[[#This Row],[Tipo]]="Fluvial","F",IF(Tabla_Ruta_CR_PI[[#This Row],[Tipo]]="Marítimo","M","T")))) -> NA | F162: =INDEX(Tabla_Municipios[Tramo 2 Modalidad (CD-M) ],MATCH(Punto_Instalacion,Tabla_Municipios[Codigo_M],0)) -> NA | G162: =INDEX(Tabla_Municipios[Tramo 2 Distancia (Km)],MATCH(Punto_Instalacion,Tabla_Municipios[Codigo_M],0)) -> 0
B163: Municipio a Punto de Instalación | C163: =MUN & " -> Punto de Instalación" -> URIBIA -> Punto de Instalación | D163: T de M a PI | E163: =IF(Tabla_Ruta_CR_PI[[#This Row],[Tipo]]="NA","NA",IF(Tabla_Ruta_CR_PI[[#This Row],[Tipo]]="Aéreo","A",IF(Tabla_Ruta_CR_PI[[#This Row],[Tipo]]="Fluvial","F",IF(Tabla_Ruta_CR_PI[[#This Row],[Tipo]]="Marítimo","M","T")))) -> T | F163: Vía Tipo 8 | G163: =INDEX(Tabla_Municipios[Distancia promedio a PI (km)],MATCH(Punto_Instalacion,Tabla_Municipios[Codigo_M],0)) -> 61.46698686
B165: 3.9. Costo de UC en ciudad de referencia (CR) y costo de transporte hasta punto de instalación (PI)
B167: Unidad constructiva | C167: VI_UC_CR | D167: Codigo | E167: Unidades | F167: Peso (Kg) | G167: Densidad (Kg/M3) | H167: T de CR a CL | I167: T de CL a CD | J167: T de CD a M1 | K167: T de CD a M2 | L167: T de M a PI | M167: Costo T | N167: VI+CT | O167: % VI+CT
B168: 1. PANEL | C168: =MIN(Tabla_UCPA[Min_Costo]) -> 1224158.644 | D168: =UCPA_ID -> UCPA12 | E168: =UCPA_NUM -> 2 | F168: =IFERROR(INDEX(Tabla_UCPA[Kg],MATCH(Tabla_Costos_Transporte[[#This Row],[Codigo]],Tabla_UCPA[Codigo],0)),0)*Tabla_Costos_Transporte[[#This Row],[Unidades]] -> 48.90671821 | G168: 278.3000198 | H168: =IF(OR(Km_CR_CL=0,Tabla_Costos_Transporte[[#This Row],[Codigo]]="NA"),0,IF(Mod_CR_CL="T",Var_T_K*POWER(Km_CR_CL,Var_T_Alfa)*POWER(Tabla_Costos_Transporte[[#This Row],[Peso (Kg)]],Var_T_Beta)*INDEX(Tabla_Tipo_Via[Factor],MATCH(Tipo_CR_CL,Tabla_Tipo_Via[Tipo via],0))*(1-Descuento_transporte),IF(Mod_CR_CL="A",Var_A_K*POWER(Km_CR_CL,Var_A_Alfa)*POWER(Tabla_Costos_Transporte[[#This Row],[Peso (Kg)]],Var_A_Beta)*POWER(Tabla_Costos_Transporte[[#This Row],[Densidad (Kg/M3)]],Var_A_Gama)*(1-Descuento_transporte),IF(Mod_CR_CL="F",Var_F_K*POWER(Km_CR_CL,Var_F_Alfa),IF(Mod_CR_CL="M",Var_M_K*POWER(Km_CR_CL,Var_M_Alfa),0))))) -> 2.211436557 | I168: =IF(OR(Km_CL_CD=0,Tabla_Costos_Transporte[[#This Row],[Codigo]]="NA"),0,IF(Mod_CL_CD="T",Var_T_K*POWER(Km_CL_CD,Var_T_Alfa)*POWER(Tabla_Costos_Transporte[[#This Row],[Peso (Kg)]],Var_T_Beta)*INDEX(Tabla_Tipo_Via[Factor],MATCH(Tipo_CL_CD,Tabla_Tipo_Via[Tipo via],0))*(1-Descuento_transporte),IF(Mod_CL_CD="A",Var_A_K*POWER(Km_CL_CD,Var_A_Alfa)*POWER(Tabla_Costos_Transporte[[#This Row],[Peso (Kg)]],Var_A_Beta)*POWER(Tabla_Costos_Transporte[[#This Row],[Densidad (Kg/M3)]],Var_A_Gama)*(1-Descuento_transporte),IF(Mod_CL_CD="F",Var_F_K*POWER(Km_CL_CD,Var_F_Alfa),IF(Mod_CL_CD="M",Var_M_K*POWER(Km_CL_CD,Var_M_Alfa),0))))) -> 0 | J168: =IF(OR(Km_CD_Mun_T1=0,Tabla_Costos_Transporte[[#This Row],[Codigo]]="NA"),0,IF(Mod_CD_Mun_T1="T",Var_T_K*POWER(Km_CD_Mun_T1,Var_T_Alfa)*POWER(Tabla_Costos_Transporte[[#This Row],[Peso (Kg)]],Var_T_Beta)*INDEX(Tabla_Tipo_Via[Factor],MATCH(Tipo_CD_Mun_T1,Tabla_Tipo_Via[Tipo via],0))*(1-Descuento_transporte),IF(Mod_CD_Mun_T1="A",Var_A_K*POWER(Km_CD_Mun_T1,Var_A_Alfa)*POWER(Tabla_Costos_Transporte[[#This Row],[Peso (Kg)]],Var_A_Beta)*POWER(Tabla_Costos_Transporte[[#This Row],[Densidad (Kg/M3)]],Var_A_Gama)*(1-Descuento_transporte),IF(Mod_CD_Mun_T1="F",Var_F_K*POWER(Km_CD_Mun_T1,Var_F_Alfa),IF(Mod_CD_Mun_T1="M",Var_M_K*POWER(Km_CD_Mun_T1,Var_M_Alfa),0))))) -> 10.95753112 | K168: =IF(OR(Km_CD_Mun_T2=0,Tabla_Costos_Transporte[[#This Row],[Codigo]]="NA"),0,IF(Mod_CD_Mun_T2="T",Var_T_K*POWER(Km_CD_Mun_T2,Var_T_Alfa)*POWER(Tabla_Costos_Transporte[[#This Row],[Peso (Kg)]],Var_T_Beta)*INDEX(Tabla_Tipo_Via[Factor],MATCH(Tipo_CD_Mun_T2,Tabla_Tipo_Via[Tipo via],0))*(1-Descuento_transporte),IF(Mod_CD_Mun_T2="A",Var_A_K*POWER(Km_CD_Mun_T2,Var_A_Alfa)*POWER(Tabla_Costos_Transporte[[#This Row],[Peso (Kg)]],Var_A_Beta)*POWER(Tabla_Costos_Transporte[[#This Row],[Densidad (Kg/M3)]],Var_A_Gama)*(1-Descuento_transporte),IF(Mod_CD_Mun_T2="F",Var_F_K*POWER(Km_CD_Mun_T2,Var_F_Alfa),IF(Mod_CD_Mun_T2="M",Var_M_K*POWER(Km_CD_Mun_T2,Var_M_Alfa),0))))) -> 0 | L168: =IF(OR(Km_Mun_PI=0,Tabla_Costos_Transporte[[#This Row],[Codigo]]="NA"),0,IF(Mod_Mun_PI="T",Var_T_K*POWER(Km_Mun_PI,Var_T_Alfa)*POWER(Tabla_Costos_Transporte[[#This Row],[Peso (Kg)]],Var_T_Beta)*INDEX(Tabla_Tipo_Via[Factor],MATCH(Tipo_Mun_PI,Tabla_Tipo_Via[Tipo via],0))*(1-Descuento_transporte),IF(Mod_Mun_PI="A",Var_A_K*POWER(Km_Mun_PI,Var_A_Alfa)*POWER(Tabla_Costos_Transporte[[#This Row],[Peso (Kg)]],Var_A_Beta)*POWER(Tabla_Costos_Transporte[[#This Row],[Densidad (Kg/M3)]],Var_A_Gama)*(1-Descuento_transporte),IF(Mod_Mun_PI="F",Var_F_K*POWER(Km_Mun_PI,Var_F_Alfa),IF(Mod_Mun_PI="M",Var_M_K*POWER(Km_Mun_PI,Var_M_Alfa),0))))) -> 22.71872129 | M168: =SUMPRODUCT(TRANSPOSE(Tabla_Ruta_CR_PI[Distancia (km)]),Tabla_Costos_Transporte[[#This Row],[T de CR a CL]:[T de M a PI]])*Tabla_Costos_Transporte[[#This Row],[Peso (Kg)]] -> 215624.9534 | N168: =Tabla_Costos_Transporte[[#This Row],[VI_UC_CR]]+Tabla_Costos_Transporte[[#This Row],[Costo T]] -> 1439783.597 | O168: =Tabla_Costos_Transporte[[#This Row],[VI+CT]]/SUM(Tabla_Costos_Transporte[VI+CT]) -> 0.1251608925 | XFA168: =_xlfn.XLOOKUP(Tipo_Mun_PI,Tabla_Tipo_Via[Tipo via],Tabla_Tipo_Via[Factor],"NA",0) -> 1.693824906
B169: 2. INVERSOR | C169: =IF(Tipo_Sistema="DC",0,INDEX(Tabla_UCIN[VI_CR],MATCH(Dda_Pico_Seg,Tabla_UCIN[VA_Carga_Min],1))) -> 684627.0907 | D169: =UCIN_ID -> UCIN04 | E169: =IF(Tabla_Costos_Transporte[[#This Row],[Codigo]]="NA",0,1) -> 1 | F169: =IFERROR(INDEX(Tabla_UCIN[Kg],MATCH(Tabla_Costos_Transporte[[#This Row],[Codigo]],Tabla_UCIN[Codigo],0)),0)*Tabla_Costos_Transporte[[#This Row],[Unidades]] -> 4.389763399 | G169: 1056.299617 | H169: =IF(OR(Km_CR_CL=0,Tabla_Costos_Transporte[[#This Row],[Codigo]]="NA"),0,IF(Mod_CR_CL="T",Var_T_K*POWER(Km_CR_CL,Var_T_Alfa)*POWER(Tabla_Costos_Transporte[[#This Row],[Peso (Kg)]],Var_T_Beta)*INDEX(Tabla_Tipo_Via[Factor],MATCH(Tipo_CR_CL,Tabla_Tipo_Via[Tipo via],0))*(1-Descuento_transporte),IF(Mod_CR_CL="A",Var_A_K*POWER(Km_CR_CL,Var_A_Alfa)*POWER(Tabla_Costos_Transporte[[#This Row],[Peso (Kg)]],Var_A_Beta)*POWER(Tabla_Costos_Transporte[[#This Row],[Densidad (Kg/M3)]],Var_A_Gama)*(1-Descuento_transporte),IF(Mod_CR_CL="F",Var_F_K*POWER(Km_CR_CL,Var_F_Alfa),IF(Mod_CR_CL="M",Var_M_K*POWER(Km_CR_CL,Var_M_Alfa),0))))) -> 12.68058711 | I169: =IF(OR(Km_CL_CD=0,Tabla_Costos_Transporte[[#This Row],[Codigo]]="NA"),0,IF(Mod_CL_CD="T",Var_T_K*POWER(Km_CL_CD,Var_T_Alfa)*POWER(Tabla_Costos_Transporte[[#This Row],[Peso (Kg)]],Var_T_Beta)*INDEX(Tabla_Tipo_Via[Factor],MATCH(Tipo_CL_CD,Tabla_Tipo_Via[Tipo via],0))*(1-Descuento_transporte),IF(Mod_CL_CD="A",Var_A_K*POWER(Km_CL_CD,Var_A_Alfa)*POWER(Tabla_Costos_Transporte[[#This Row],[Peso (Kg)]],Var_A_Beta)*POWER(Tabla_Costos_Transporte[[#This Row],[Densidad (Kg/M3)]],Var_A_Gama)*(1-Descuento_transporte),IF(Mod_CL_CD="F",Var_F_K*POWER(Km_CL_CD,Var_F_Alfa),IF(Mod_CL_CD="M",Var_M_K*POWER(Km_CL_CD,Var_M_Alfa),0))))) -> 0 | J169: =IF(OR(Km_CD_Mun_T1=0,Tabla_Costos_Transporte[[#This Row],[Codigo]]="NA"),0,IF(Mod_CD_Mun_T1="T",Var_T_K*POWER(Km_CD_Mun_T1,Var_T_Alfa)*POWER(Tabla_Costos_Transporte[[#This Row],[Peso (Kg)]],Var_T_Beta)*INDEX(Tabla_Tipo_Via[Factor],MATCH(Tipo_CD_Mun_T1,Tabla_Tipo_Via[Tipo via],0))*(1-Descuento_transporte),IF(Mod_CD_Mun_T1="A",Var_A_K*POWER(Km_CD_Mun_T1,Var_A_Alfa)*POWER(Tabla_Costos_Transporte[[#This Row],[Peso (Kg)]],Var_A_Beta)*POWER(Tabla_Costos_Transporte[[#This Row],[Densidad (Kg/M3)]],Var_A_Gama)*(1-Descuento_transporte),IF(Mod_CD_Mun_T1="F",Var_F_K*POWER(Km_CD_Mun_T1,Var_F_Alfa),IF(Mod_CD_Mun_T1="M",Var_M_K*POWER(Km_CD_Mun_T1,Var_M_Alfa),0))))) -> 62.83152342 | K169: =IF(OR(Km_CD_Mun_T2=0,Tabla_Costos_Transporte[[#This Row],[Codigo]]="NA"),0,IF(Mod_CD_Mun_T2="T",Var_T_K*POWER(Km_CD_Mun_T2,Var_T_Alfa)*POWER(Tabla_Costos_Transporte[[#This Row],[Peso (Kg)]],Var_T_Beta)*INDEX(Tabla_Tipo_Via[Factor],MATCH(Tipo_CD_Mun_T2,Tabla_Tipo_Via[Tipo via],0))*(1-Descuento_transporte),IF(Mod_CD_Mun_T2="A",Var_A_K*POWER(Km_CD_Mun_T2,Var_A_Alfa)*POWER(Tabla_Costos_Transporte[[#This Row],[Peso (Kg)]],Var_A_Beta)*POWER(Tabla_Costos_Transporte[[#This Row],[Densidad (Kg/M3)]],Var_A_Gama)*(1-Descuento_transporte),IF(Mod_CD_Mun_T2="F",Var_F_K*POWER(Km_CD_Mun_T2,Var_F_Alfa),IF(Mod_CD_Mun_T2="M",Var_M_K*POWER(Km_CD_Mun_T2,Var_M_Alfa),0))))) -> 0 | L169: =IF(OR(Km_Mun_PI=0,Tabla_Costos_Transporte[[#This Row],[Codigo]]="NA"),0,IF(Mod_Mun_PI="T",Var_T_K*POWER(Km_Mun_PI,Var_T_Alfa)*POWER(Tabla_Costos_Transporte[[#This Row],[Peso (Kg)]],Var_T_Beta)*INDEX(Tabla_Tipo_Via[Factor],MATCH(Tipo_Mun_PI,Tabla_Tipo_Via[Tipo via],0))*(1-Descuento_transporte),IF(Mod_Mun_PI="A",Var_A_K*POWER(Km_Mun_PI,Var_A_Alfa)*POWER(Tabla_Costos_Transporte[[#This Row],[Peso (Kg)]],Var_A_Beta)*POWER(Tabla_Costos_Transporte[[#This Row],[Densidad (Kg/M3)]],Var_A_Gama)*(1-Descuento_transporte),IF(Mod_Mun_PI="F",Var_F_K*POWER(Km_Mun_PI,Var_F_Alfa),IF(Mod_Mun_PI="M",Var_M_K*POWER(Km_Mun_PI,Var_M_Alfa),0))))) -> 130.2713042 | M169: =SUMPRODUCT(TRANSPOSE(Tabla_Ruta_CR_PI[Distancia (km)]),Tabla_Costos_Transporte[[#This Row],[T de CR a CL]:[T de M a PI]])*Tabla_Costos_Transporte[[#This Row],[Peso (Kg)]] -> 110977.8962 | N169: =Tabla_Costos_Transporte[[#This Row],[VI_UC_CR]]+Tabla_Costos_Transporte[[#This Row],[Costo T]] -> 795604.9869 | O169: =Tabla_Costos_Transporte[[#This Row],[VI+CT]]/SUM(Tabla_Costos_Transporte[VI+CT]) -> 0.06916222022 | XFA169: =INDEX(Tabla_Tipo_Via[Factor],MATCH(Tipo_Mun_PI,Tabla_Tipo_Via[Tipo via],0)) -> 1.693824906
B170: 3. REGULADOR | C170: =IF(Dda_Pico_Seg>Limite_Inv_Onda_Seno,0,INDEX(Tabla_UCRG[VI_CR],MATCH(INDEX(Tabla_UCPA[Wp],MATCH(UCPA_ID,Tabla_UCPA[Codigo],0))*UCPA_NUM/INDEX(Tabla_Voltaje_SISFV[Voltaje],MATCH(NdS_Whd,Tabla_Voltaje_SISFV[NdS_Whd_Min],1)),Tabla_UCRG[A_Min]),1)) -> 855857.4981 | D170: =IF(Dda_Pico_Seg>Limite_Inv_Onda_Seno,"NA",INDEX(Tabla_UCRG[Codigo],MATCH(INDEX(Tabla_UCPA[Wp],MATCH(UCPA_ID,Tabla_UCPA[Codigo],0))*UCPA_NUM/INDEX(Tabla_Voltaje_SISFV[Voltaje],MATCH(NdS_Whd,Tabla_Voltaje_SISFV[NdS_Whd_Min],1)),Tabla_UCRG[A_Min]),1)) -> UCRG05 | E170: =IF(Tabla_Costos_Transporte[[#This Row],[Codigo]]="NA",0,1) -> 1 | F170: =IFERROR(INDEX(Tabla_UCRG[Kg],MATCH(Tabla_Costos_Transporte[[#This Row],[Codigo]],Tabla_UCRG[Codigo],0)),0)*Tabla_Costos_Transporte[[#This Row],[Unidades]] -> 1.775477697 | G170: 781.6721029 | H170: =IF(OR(Km_CR_CL=0,Tabla_Costos_Transporte[[#This Row],[Codigo]]="NA"),0,IF(Mod_CR_CL="T",Var_T_K*POWER(Km_CR_CL,Var_T_Alfa)*POWER(Tabla_Costos_Transporte[[#This Row],[Peso (Kg)]],Var_T_Beta)*INDEX(Tabla_Tipo_Via[Factor],MATCH(Tipo_CR_CL,Tabla_Tipo_Via[Tipo via],0))*(1-Descuento_transporte),IF(Mod_CR_CL="A",Var_A_K*POWER(Km_CR_CL,Var_A_Alfa)*POWER(Tabla_Costos_Transporte[[#This Row],[Peso (Kg)]],Var_A_Beta)*POWER(Tabla_Costos_Transporte[[#This Row],[Densidad (Kg/M3)]],Var_A_Gama)*(1-Descuento_transporte),IF(Mod_CR_CL="F",Var_F_K*POWER(Km_CR_CL,Var_F_Alfa),IF(Mod_CR_CL="M",Var_M_K*POWER(Km_CR_CL,Var_M_Alfa),0))))) -> 24.43128399 | I170: =IF(OR(Km_CL_CD=0,Tabla_Costos_Transporte[[#This Row],[Codigo]]="NA"),0,IF(Mod_CL_CD="T",Var_T_K*POWER(Km_CL_CD,Var_T_Alfa)*POWER(Tabla_Costos_Transporte[[#This Row],[Peso (Kg)]],Var_T_Beta)*INDEX(Tabla_Tipo_Via[Factor],MATCH(Tipo_CL_CD,Tabla_Tipo_Via[Tipo via],0))*(1-Descuento_transporte),IF(Mod_CL_CD="A",Var_A_K*POWER(Km_CL_CD,Var_A_Alfa)*POWER(Tabla_Costos_Transporte[[#This Row],[Peso (Kg)]],Var_A_Beta)*POWER(Tabla_Costos_Transporte[[#This Row],[Densidad (Kg/M3)]],Var_A_Gama)*(1-Descuento_transporte),IF(Mod_CL_CD="F",Var_F_K*POWER(Km_CL_CD,Var_F_Alfa),IF(Mod_CL_CD="M",Var_M_K*POWER(Km_CL_CD,Var_M_Alfa),0))))) -> 0 | J170: =IF(OR(Km_CD_Mun_T1=0,Tabla_Costos_Transporte[[#This Row],[Codigo]]="NA"),0,IF(Mod_CD_Mun_T1="T",Var_T_K*POWER(Km_CD_Mun_T1,Var_T_Alfa)*POWER(Tabla_Costos_Transporte[[#This Row],[Peso (Kg)]],Var_T_Beta)*INDEX(Tabla_Tipo_Via[Factor],MATCH(Tipo_CD_Mun_T1,Tabla_Tipo_Via[Tipo via],0))*(1-Descuento_transporte),IF(Mod_CD_Mun_T1="A",Var_A_K*POWER(Km_CD_Mun_T1,Var_A_Alfa)*POWER(Tabla_Costos_Transporte[[#This Row],[Peso (Kg)]],Var_A_Beta)*POWER(Tabla_Costos_Transporte[[#This Row],[Densidad (Kg/M3)]],Var_A_Gama)*(1-Descuento_transporte),IF(Mod_CD_Mun_T1="F",Var_F_K*POWER(Km_CD_Mun_T1,Var_F_Alfa),IF(Mod_CD_Mun_T1="M",Var_M_K*POWER(Km_CD_Mun_T1,Var_M_Alfa),0))))) -> 121.0554984 | K170: =IF(OR(Km_CD_Mun_T2=0,Tabla_Costos_Transporte[[#This Row],[Codigo]]="NA"),0,IF(Mod_CD_Mun_T2="T",Var_T_K*POWER(Km_CD_Mun_T2,Var_T_Alfa)*POWER(Tabla_Costos_Transporte[[#This Row],[Peso (Kg)]],Var_T_Beta)*INDEX(Tabla_Tipo_Via[Factor],MATCH(Tipo_CD_Mun_T2,Tabla_Tipo_Via[Tipo via],0))*(1-Descuento_transporte),IF(Mod_CD_Mun_T2="A",Var_A_K*POWER(Km_CD_Mun_T2,Var_A_Alfa)*POWER(Tabla_Costos_Transporte[[#This Row],[Peso (Kg)]],Var_A_Beta)*POWER(Tabla_Costos_Transporte[[#This Row],[Densidad (Kg/M3)]],Var_A_Gama)*(1-Descuento_transporte),IF(Mod_CD_Mun_T2="F",Var_F_K*POWER(Km_CD_Mun_T2,Var_F_Alfa),IF(Mod_CD_Mun_T2="M",Var_M_K*POWER(Km_CD_Mun_T2,Var_M_Alfa),0))))) -> 0 | L170: =IF(OR(Km_Mun_PI=0,Tabla_Costos_Transporte[[#This Row],[Codigo]]="NA"),0,IF(Mod_Mun_PI="T",Var_T_K*POWER(Km_Mun_PI,Var_T_Alfa)*POWER(Tabla_Costos_Transporte[[#This Row],[Peso (Kg)]],Var_T_Beta)*INDEX(Tabla_Tipo_Via[Factor],MATCH(Tipo_Mun_PI,Tabla_Tipo_Via[Tipo via],0))*(1-Descuento_transporte),IF(Mod_Mun_PI="A",Var_A_K*POWER(Km_Mun_PI,Var_A_Alfa)*POWER(Tabla_Costos_Transporte[[#This Row],[Peso (Kg)]],Var_A_Beta)*POWER(Tabla_Costos_Transporte[[#This Row],[Densidad (Kg/M3)]],Var_A_Gama)*(1-Descuento_transporte),IF(Mod_Mun_PI="F",Var_F_K*POWER(Km_Mun_PI,Var_F_Alfa),IF(Mod_Mun_PI="M",Var_M_K*POWER(Km_Mun_PI,Var_M_Alfa),0))))) -> 250.9895796 | M170: =SUMPRODUCT(TRANSPOSE(Tabla_Ruta_CR_PI[Distancia (km)]),Tabla_Costos_Transporte[[#This Row],[T de CR a CL]:[T de M a PI]])*Tabla_Costos_Transporte[[#This Row],[Peso (Kg)]] -> 86480.36736 | N170: =Tabla_Costos_Transporte[[#This Row],[VI_UC_CR]]+Tabla_Costos_Transporte[[#This Row],[Costo T]] -> 942337.8654 | O170: =Tabla_Costos_Transporte[[#This Row],[VI+CT]]/SUM(Tabla_Costos_Transporte[VI+CT]) -> 0.08191776076
B171: 4. BANCO DE BATERIAS | C171: =IF(Almacenamiento="NO",0,INDEX(Tabla_UCBB[VI_CR],MATCH(NdS_Whd,Tabla_UCBB[Whd_Min]))) -> 2363354.891 | D171: =IF(Almacenamiento="NO","NA",INDEX(Tabla_UCBB[Codigo],MATCH(NdS_Whd,Tabla_UCBB[Whd_Min]))) -> UCBB08 | E171: =IF(Tabla_Costos_Transporte[[#This Row],[Codigo]]="NA",0,1) -> 1 | F171: =IFERROR(INDEX(Tabla_UCBB[Kg],MATCH(Tabla_Costos_Transporte[[#This Row],[Codigo]],Tabla_UCBB[Codigo],0)),0)*Tabla_Costos_Transporte[[#This Row],[Unidades]] -> 120.4 | G171: 1424.600355 | H171: =IF(OR(Km_CR_CL=0,Tabla_Costos_Transporte[[#This Row],[Codigo]]="NA"),0,IF(Mod_CR_CL="T",Var_T_K*POWER(Km_CR_CL,Var_T_Alfa)*POWER(Tabla_Costos_Transporte[[#This Row],[Peso (Kg)]],Var_T_Beta)*INDEX(Tabla_Tipo_Via[Factor],MATCH(Tipo_CR_CL,Tabla_Tipo_Via[Tipo via],0))*(1-Descuento_transporte),IF(Mod_CR_CL="A",Var_A_K*POWER(Km_CR_CL,Var_A_Alfa)*POWER(Tabla_Costos_Transporte[[#This Row],[Peso (Kg)]],Var_A_Beta)*POWER(Tabla_Costos_Transporte[[#This Row],[Densidad (Kg/M3)]],Var_A_Gama)*(1-Descuento_transporte),IF(Mod_CR_CL="F",Var_F_K*POWER(Km_CR_CL,Var_F_Alfa),IF(Mod_CR_CL="M",Var_M_K*POWER(Km_CR_CL,Var_M_Alfa),0))))) -> 1.151385634 | I171: =IF(OR(Km_CL_CD=0,Tabla_Costos_Transporte[[#This Row],[Codigo]]="NA"),0,IF(Mod_CL_CD="T",Var_T_K*POWER(Km_CL_CD,Var_T_Alfa)*POWER(Tabla_Costos_Transporte[[#This Row],[Peso (Kg)]],Var_T_Beta)*INDEX(Tabla_Tipo_Via[Factor],MATCH(Tipo_CL_CD,Tabla_Tipo_Via[Tipo via],0))*(1-Descuento_transporte),IF(Mod_CL_CD="A",Var_A_K*POWER(Km_CL_CD,Var_A_Alfa)*POWER(Tabla_Costos_Transporte[[#This Row],[Peso (Kg)]],Var_A_Beta)*POWER(Tabla_Costos_Transporte[[#This Row],[Densidad (Kg/M3)]],Var_A_Gama)*(1-Descuento_transporte),IF(Mod_CL_CD="F",Var_F_K*POWER(Km_CL_CD,Var_F_Alfa),IF(Mod_CL_CD="M",Var_M_K*POWER(Km_CL_CD,Var_M_Alfa),0))))) -> 0 | J171: =IF(OR(Km_CD_Mun_T1=0,Tabla_Costos_Transporte[[#This Row],[Codigo]]="NA"),0,IF(Mod_CD_Mun_T1="T",Var_T_K*POWER(Km_CD_Mun_T1,Var_T_Alfa)*POWER(Tabla_Costos_Transporte[[#This Row],[Peso (Kg)]],Var_T_Beta)*INDEX(Tabla_Tipo_Via[Factor],MATCH(Tipo_CD_Mun_T1,Tabla_Tipo_Via[Tipo via],0))*(1-Descuento_transporte),IF(Mod_CD_Mun_T1="A",Var_A_K*POWER(Km_CD_Mun_T1,Var_A_Alfa)*POWER(Tabla_Costos_Transporte[[#This Row],[Peso (Kg)]],Var_A_Beta)*POWER(Tabla_Costos_Transporte[[#This Row],[Densidad (Kg/M3)]],Var_A_Gama)*(1-Descuento_transporte),IF(Mod_CD_Mun_T1="F",Var_F_K*POWER(Km_CD_Mun_T1,Var_F_Alfa),IF(Mod_CD_Mun_T1="M",Var_M_K*POWER(Km_CD_Mun_T1,Var_M_Alfa),0))))) -> 5.705044474 | K171: =IF(OR(Km_CD_Mun_T2=0,Tabla_Costos_Transporte[[#This Row],[Codigo]]="NA"),0,IF(Mod_CD_Mun_T2="T",Var_T_K*POWER(Km_CD_Mun_T2,Var_T_Alfa)*POWER(Tabla_Costos_Transporte[[#This Row],[Peso (Kg)]],Var_T_Beta)*INDEX(Tabla_Tipo_Via[Factor],MATCH(Tipo_CD_Mun_T2,Tabla_Tipo_Via[Tipo via],0))*(1-Descuento_transporte),IF(Mod_CD_Mun_T2="A",Var_A_K*POWER(Km_CD_Mun_T2,Var_A_Alfa)*POWER(Tabla_Costos_Transporte[[#This Row],[Peso (Kg)]],Var_A_Beta)*POWER(Tabla_Costos_Transporte[[#This Row],[Densidad (Kg/M3)]],Var_A_Gama)*(1-Descuento_transporte),IF(Mod_CD_Mun_T2="F",Var_F_K*POWER(Km_CD_Mun_T2,Var_F_Alfa),IF(Mod_CD_Mun_T2="M",Var_M_K*POWER(Km_CD_Mun_T2,Var_M_Alfa),0))))) -> 0 | L171: =IF(OR(Km_Mun_PI=0,Tabla_Costos_Transporte[[#This Row],[Codigo]]="NA"),0,IF(Mod_Mun_PI="T",Var_T_K*POWER(Km_Mun_PI,Var_T_Alfa)*POWER(Tabla_Costos_Transporte[[#This Row],[Peso (Kg)]],Var_T_Beta)*INDEX(Tabla_Tipo_Via[Factor],MATCH(Tipo_Mun_PI,Tabla_Tipo_Via[Tipo via],0))*(1-Descuento_transporte),IF(Mod_Mun_PI="A",Var_A_K*POWER(Km_Mun_PI,Var_A_Alfa)*POWER(Tabla_Costos_Transporte[[#This Row],[Peso (Kg)]],Var_A_Beta)*POWER(Tabla_Costos_Transporte[[#This Row],[Densidad (Kg/M3)]],Var_A_Gama)*(1-Descuento_transporte),IF(Mod_Mun_PI="F",Var_F_K*POWER(Km_Mun_PI,Var_F_Alfa),IF(Mod_Mun_PI="M",Var_M_K*POWER(Km_Mun_PI,Var_M_Alfa),0))))) -> 11.82851447 | M171: =SUMPRODUCT(TRANSPOSE(Tabla_Ruta_CR_PI[Distancia (km)]),Tabla_Costos_Transporte[[#This Row],[T de CR a CL]:[T de M a PI]])*Tabla_Costos_Transporte[[#This Row],[Peso (Kg)]] -> 276377.8957 | N171: =Tabla_Costos_Transporte[[#This Row],[VI_UC_CR]]+Tabla_Costos_Transporte[[#This Row],[Costo T]] -> 2639732.787 | O171: =Tabla_Costos_Transporte[[#This Row],[VI+CT]]/SUM(Tabla_Costos_Transporte[VI+CT]) -> 0.2294728959
B172: 5. ESTRUCTURA SOPORTE | C172: =IF(NdS_Wp<=Limite_Wp_Riel,INDEX(Tabla_UCES[VI_CR],MATCH(1,(Tabla_UCES[No_Paneles]=UCPA_NUM)*(Tabla_UCES[Wp_Min]<=INDEX(Tabla_UCPA[Wp],MATCH(UCPA_ID,Tabla_UCPA[Codigo],0)))*(Tabla_UCES[Wp_Max]>=INDEX(Tabla_UCPA[Wp],MATCH(UCPA_ID,Tabla_UCPA[Codigo],0))),0)),MIN(Tabla_UCES[Min_Costo])) -> 1239159.208 | D172: =IF(NdS_Wp<=Limite_Wp_Riel,INDEX(Tabla_UCES[Codigo],MATCH(1,(Tabla_UCES[No_Paneles]=UCPA_NUM)*(Tabla_UCES[Wp_Min]<=IFERROR(INDEX(Tabla_UCPA[Wp],MATCH(UCPA_ID,Tabla_UCPA[Codigo],0)),""))*(Tabla_UCES[Wp_Max]>=IFERROR(INDEX(Tabla_UCPA[Wp],MATCH(UCPA_ID,Tabla_UCPA[Codigo],0)),"")),0)),IFERROR(INDEX(Tabla_UCES[Codigo],MATCH(MIN(Tabla_UCES[Min_Costo]),Tabla_UCES[Min_Costo],0)),"")) -> UCES08 | E172: =ROUNDUP(UCPA_NUM/INDEX(Tabla_UCES[No_Paneles],MATCH(Tabla_Costos_Transporte[[#This Row],[Codigo]],Tabla_UCES[Codigo],0)),0) -> 1 | F172: =IFERROR(INDEX(Tabla_UCES[Kg],MATCH(Tabla_Costos_Transporte[[#This Row],[Codigo]],Tabla_UCES[Codigo],0)),0)*Tabla_Costos_Transporte[[#This Row],[Unidades]] -> 70 | G172: 500 | H172: =IF(OR(Km_CR_CL=0,Tabla_Costos_Transporte[[#This Row],[Codigo]]="NA"),0,IF(Mod_CR_CL="T",Var_T_K*POWER(Km_CR_CL,Var_T_Alfa)*POWER(Tabla_Costos_Transporte[[#This Row],[Peso (Kg)]],Var_T_Beta)*INDEX(Tabla_Tipo_Via[Factor],MATCH(Tipo_CR_CL,Tabla_Tipo_Via[Tipo via],0))*(1-Descuento_transporte),IF(Mod_CR_CL="A",Var_A_K*POWER(Km_CR_CL,Var_A_Alfa)*POWER(Tabla_Costos_Transporte[[#This Row],[Peso (Kg)]],Var_A_Beta)*POWER(Tabla_Costos_Transporte[[#This Row],[Densidad (Kg/M3)]],Var_A_Gama)*(1-Descuento_transporte),IF(Mod_CR_CL="F",Var_F_K*POWER(Km_CR_CL,Var_F_Alfa),IF(Mod_CR_CL="M",Var_M_K*POWER(Km_CR_CL,Var_M_Alfa),0))))) -> 1.705507016 | I172: =IF(OR(Km_CL_CD=0,Tabla_Costos_Transporte[[#This Row],[Codigo]]="NA"),0,IF(Mod_CL_CD="T",Var_T_K*POWER(Km_CL_CD,Var_T_Alfa)*POWER(Tabla_Costos_Transporte[[#This Row],[Peso (Kg)]],Var_T_Beta)*INDEX(Tabla_Tipo_Via[Factor],MATCH(Tipo_CL_CD,Tabla_Tipo_Via[Tipo via],0))*(1-Descuento_transporte),IF(Mod_CL_CD="A",Var_A_K*POWER(Km_CL_CD,Var_A_Alfa)*POWER(Tabla_Costos_Transporte[[#This Row],[Peso (Kg)]],Var_A_Beta)*POWER(Tabla_Costos_Transporte[[#This Row],[Densidad (Kg/M3)]],Var_A_Gama)*(1-Descuento_transporte),IF(Mod_CL_CD="F",Var_F_K*POWER(Km_CL_CD,Var_F_Alfa),IF(Mod_CL_CD="M",Var_M_K*POWER(Km_CL_CD,Var_M_Alfa),0))))) -> 0 | J172: =IF(OR(Km_CD_Mun_T1=0,Tabla_Costos_Transporte[[#This Row],[Codigo]]="NA"),0,IF(Mod_CD_Mun_T1="T",Var_T_K*POWER(Km_CD_Mun_T1,Var_T_Alfa)*POWER(Tabla_Costos_Transporte[[#This Row],[Peso (Kg)]],Var_T_Beta)*INDEX(Tabla_Tipo_Via[Factor],MATCH(Tipo_CD_Mun_T1,Tabla_Tipo_Via[Tipo via],0))*(1-Descuento_transporte),IF(Mod_CD_Mun_T1="A",Var_A_K*POWER(Km_CD_Mun_T1,Var_A_Alfa)*POWER(Tabla_Costos_Transporte[[#This Row],[Peso (Kg)]],Var_A_Beta)*POWER(Tabla_Costos_Transporte[[#This Row],[Densidad (Kg/M3)]],Var_A_Gama)*(1-Descuento_transporte),IF(Mod_CD_Mun_T1="F",Var_F_K*POWER(Km_CD_Mun_T1,Var_F_Alfa),IF(Mod_CD_Mun_T1="M",Var_M_K*POWER(Km_CD_Mun_T1,Var_M_Alfa),0))))) -> 8.450681588 | K172: =IF(OR(Km_CD_Mun_T2=0,Tabla_Costos_Transporte[[#This Row],[Codigo]]="NA"),0,IF(Mod_CD_Mun_T2="T",Var_T_K*POWER(Km_CD_Mun_T2,Var_T_Alfa)*POWER(Tabla_Costos_Transporte[[#This Row],[Peso (Kg)]],Var_T_Beta)*INDEX(Tabla_Tipo_Via[Factor],MATCH(Tipo_CD_Mun_T2,Tabla_Tipo_Via[Tipo via],0))*(1-Descuento_transporte),IF(Mod_CD_Mun_T2="A",Var_A_K*POWER(Km_CD_Mun_T2,Var_A_Alfa)*POWER(Tabla_Costos_Transporte[[#This Row],[Peso (Kg)]],Var_A_Beta)*POWER(Tabla_Costos_Transporte[[#This Row],[Densidad (Kg/M3)]],Var_A_Gama)*(1-Descuento_transporte),IF(Mod_CD_Mun_T2="F",Var_F_K*POWER(Km_CD_Mun_T2,Var_F_Alfa),IF(Mod_CD_Mun_T2="M",Var_M_K*POWER(Km_CD_Mun_T2,Var_M_Alfa),0))))) -> 0 | L172: =IF(OR(Km_Mun_PI=0,Tabla_Costos_Transporte[[#This Row],[Codigo]]="NA"),0,IF(Mod_Mun_PI="T",Var_T_K*POWER(Km_Mun_PI,Var_T_Alfa)*POWER(Tabla_Costos_Transporte[[#This Row],[Peso (Kg)]],Var_T_Beta)*INDEX(Tabla_Tipo_Via[Factor],MATCH(Tipo_Mun_PI,Tabla_Tipo_Via[Tipo via],0))*(1-Descuento_transporte),IF(Mod_Mun_PI="A",Var_A_K*POWER(Km_Mun_PI,Var_A_Alfa)*POWER(Tabla_Costos_Transporte[[#This Row],[Peso (Kg)]],Var_A_Beta)*POWER(Tabla_Costos_Transporte[[#This Row],[Densidad (Kg/M3)]],Var_A_Gama)*(1-Descuento_transporte),IF(Mod_Mun_PI="F",Var_F_K*POWER(Km_Mun_PI,Var_F_Alfa),IF(Mod_Mun_PI="M",Var_M_K*POWER(Km_Mun_PI,Var_M_Alfa),0))))) -> 17.52116217 | M172: =SUMPRODUCT(TRANSPOSE(Tabla_Ruta_CR_PI[Distancia (km)]),Tabla_Costos_Transporte[[#This Row],[T de CR a CL]:[T de M a PI]])*Tabla_Costos_Transporte[[#This Row],[Peso (Kg)]] -> 238016.7731 | N172: =Tabla_Costos_Transporte[[#This Row],[VI_UC_CR]]+Tabla_Costos_Transporte[[#This Row],[Costo T]] -> 1477175.981 | O172: =Tabla_Costos_Transporte[[#This Row],[VI+CT]]/SUM(Tabla_Costos_Transporte[VI+CT]) -> 0.1284114255
B173: 6. RED PANEL GABINETE | C173: =INDEX(Tabla_UCRP[VI_CR],MATCH(INDEX(Tabla_UCPA[Wp],MATCH(UCPA_ID,Tabla_UCPA[Codigo],0))*UCPA_NUM,Tabla_UCRP[Wp_Min])) -> 238039.9693 | D173: =INDEX(Tabla_UCRP[Codigo],MATCH(INDEX(Tabla_UCPA[Wp],MATCH(UCPA_ID,Tabla_UCPA[Codigo],0))*UCPA_NUM,Tabla_UCRP[Wp_Min])) -> UCRP04 | E173: 1 | F173: =IFERROR(INDEX(Tabla_UCRP[Kg],MATCH(Tabla_Costos_Transporte[[#This Row],[Codigo]],Tabla_UCRP[Codigo],0)),0)*Tabla_Costos_Transporte[[#This Row],[Unidades]] -> 3.55 | G173: 781.6721029 | H173: =IF(OR(Km_CR_CL=0,Tabla_Costos_Transporte[[#This Row],[Codigo]]="NA"),0,IF(Mod_CR_CL="T",Var_T_K*POWER(Km_CR_CL,Var_T_Alfa)*POWER(Tabla_Costos_Transporte[[#This Row],[Peso (Kg)]],Var_T_Beta)*INDEX(Tabla_Tipo_Via[Factor],MATCH(Tipo_CR_CL,Tabla_Tipo_Via[Tipo via],0))*(1-Descuento_transporte),IF(Mod_CR_CL="A",Var_A_K*POWER(Km_CR_CL,Var_A_Alfa)*POWER(Tabla_Costos_Transporte[[#This Row],[Peso (Kg)]],Var_A_Beta)*POWER(Tabla_Costos_Transporte[[#This Row],[Densidad (Kg/M3)]],Var_A_Gama)*(1-Descuento_transporte),IF(Mod_CR_CL="F",Var_F_K*POWER(Km_CR_CL,Var_F_Alfa),IF(Mod_CR_CL="M",Var_M_K*POWER(Km_CR_CL,Var_M_Alfa),0))))) -> 14.78919411 | I173: =IF(OR(Km_CL_CD=0,Tabla_Costos_Transporte[[#This Row],[Codigo]]="NA"),0,IF(Mod_CL_CD="T",Var_T_K*POWER(Km_CL_CD,Var_T_Alfa)*POWER(Tabla_Costos_Transporte[[#This Row],[Peso (Kg)]],Var_T_Beta)*INDEX(Tabla_Tipo_Via[Factor],MATCH(Tipo_CL_CD,Tabla_Tipo_Via[Tipo via],0))*(1-Descuento_transporte),IF(Mod_CL_CD="A",Var_A_K*POWER(Km_CL_CD,Var_A_Alfa)*POWER(Tabla_Costos_Transporte[[#This Row],[Peso (Kg)]],Var_A_Beta)*POWER(Tabla_Costos_Transporte[[#This Row],[Densidad (Kg/M3)]],Var_A_Gama)*(1-Descuento_transporte),IF(Mod_CL_CD="F",Var_F_K*POWER(Km_CL_CD,Var_F_Alfa),IF(Mod_CL_CD="M",Var_M_K*POWER(Km_CL_CD,Var_M_Alfa),0))))) -> 0 | J173: =IF(OR(Km_CD_Mun_T1=0,Tabla_Costos_Transporte[[#This Row],[Codigo]]="NA"),0,IF(Mod_CD_Mun_T1="T",Var_T_K*POWER(Km_CD_Mun_T1,Var_T_Alfa)*POWER(Tabla_Costos_Transporte[[#This Row],[Peso (Kg)]],Var_T_Beta)*INDEX(Tabla_Tipo_Via[Factor],MATCH(Tipo_CD_Mun_T1,Tabla_Tipo_Via[Tipo via],0))*(1-Descuento_transporte),IF(Mod_CD_Mun_T1="A",Var_A_K*POWER(Km_CD_Mun_T1,Var_A_Alfa)*POWER(Tabla_Costos_Transporte[[#This Row],[Peso (Kg)]],Var_A_Beta)*POWER(Tabla_Costos_Transporte[[#This Row],[Densidad (Kg/M3)]],Var_A_Gama)*(1-Descuento_transporte),IF(Mod_CD_Mun_T1="F",Var_F_K*POWER(Km_CD_Mun_T1,Var_F_Alfa),IF(Mod_CD_Mun_T1="M",Var_M_K*POWER(Km_CD_Mun_T1,Var_M_Alfa),0))))) -> 73.27954045 | K173: =IF(OR(Km_CD_Mun_T2=0,Tabla_Costos_Transporte[[#This Row],[Codigo]]="NA"),0,IF(Mod_CD_Mun_T2="T",Var_T_K*POWER(Km_CD_Mun_T2,Var_T_Alfa)*POWER(Tabla_Costos_Transporte[[#This Row],[Peso (Kg)]],Var_T_Beta)*INDEX(Tabla_Tipo_Via[Factor],MATCH(Tipo_CD_Mun_T2,Tabla_Tipo_Via[Tipo via],0))*(1-Descuento_transporte),IF(Mod_CD_Mun_T2="A",Var_A_K*POWER(Km_CD_Mun_T2,Var_A_Alfa)*POWER(Tabla_Costos_Transporte[[#This Row],[Peso (Kg)]],Var_A_Beta)*POWER(Tabla_Costos_Transporte[[#This Row],[Densidad (Kg/M3)]],Var_A_Gama)*(1-Descuento_transporte),IF(Mod_CD_Mun_T2="F",Var_F_K*POWER(Km_CD_Mun_T2,Var_F_Alfa),IF(Mod_CD_Mun_T2="M",Var_M_K*POWER(Km_CD_Mun_T2,Var_M_Alfa),0))))) -> 0 | L173: =IF(OR(Km_Mun_PI=0,Tabla_Costos_Transporte[[#This Row],[Codigo]]="NA"),0,IF(Mod_Mun_PI="T",Var_T_K*POWER(Km_Mun_PI,Var_T_Alfa)*POWER(Tabla_Costos_Transporte[[#This Row],[Peso (Kg)]],Var_T_Beta)*INDEX(Tabla_Tipo_Via[Factor],MATCH(Tipo_Mun_PI,Tabla_Tipo_Via[Tipo via],0))*(1-Descuento_transporte),IF(Mod_Mun_PI="A",Var_A_K*POWER(Km_Mun_PI,Var_A_Alfa)*POWER(Tabla_Costos_Transporte[[#This Row],[Peso (Kg)]],Var_A_Beta)*POWER(Tabla_Costos_Transporte[[#This Row],[Densidad (Kg/M3)]],Var_A_Gama)*(1-Descuento_transporte),IF(Mod_Mun_PI="F",Var_F_K*POWER(Km_Mun_PI,Var_F_Alfa),IF(Mod_Mun_PI="M",Var_M_K*POWER(Km_Mun_PI,Var_M_Alfa),0))))) -> 151.9336279 | M173: =SUMPRODUCT(TRANSPOSE(Tabla_Ruta_CR_PI[Distancia (km)]),Tabla_Costos_Transporte[[#This Row],[T de CR a CL]:[T de M a PI]])*Tabla_Costos_Transporte[[#This Row],[Peso (Kg)]] -> 104671.6029 | N173: =Tabla_Costos_Transporte[[#This Row],[VI_UC_CR]]+Tabla_Costos_Transporte[[#This Row],[Costo T]] -> 342711.5722 | O173: =Tabla_Costos_Transporte[[#This Row],[VI+CT]]/SUM(Tabla_Costos_Transporte[VI+CT]) -> 0.02979203703
B174: 7. GABINETE Y ACCESORIOS | C174: =IF(Tipo_Sistema="DC",OFFSET(Tabla_UCGP[VI_CR],0,0,1,1),INDEX(Tabla_UCGP[VI_CR],MATCH(INDEX(Tabla_UCIN[Capacidad (VA)],MATCH(UCIN_ID,Tabla_UCIN[Codigo])),Tabla_UCGP[VA_Inv_Min]))) -> 852186.3844 | D174: =IF(Tipo_Sistema="DC",OFFSET(Tabla_UCGP[Codigo],0,0,1,1),INDEX(Tabla_UCGP[Codigo],MATCH(INDEX(Tabla_UCIN[Capacidad (VA)],MATCH(UCIN_ID,Tabla_UCIN[Codigo],0)),Tabla_UCGP[VA_Inv_Min]))) -> UCGP04 | E174: 1 | F174: =IFERROR(INDEX(Tabla_UCGP[Kg],MATCH(Tabla_Costos_Transporte[[#This Row],[Codigo]],Tabla_UCGP[Codigo],0)),0)*Tabla_Costos_Transporte[[#This Row],[Unidades]] -> 28.08 | G174: 158.3333333 | H174: =IF(OR(Km_CR_CL=0,Tabla_Costos_Transporte[[#This Row],[Codigo]]="NA"),0,IF(Mod_CR_CL="T",Var_T_K*POWER(Km_CR_CL,Var_T_Alfa)*POWER(Tabla_Costos_Transporte[[#This Row],[Peso (Kg)]],Var_T_Beta)*INDEX(Tabla_Tipo_Via[Factor],MATCH(Tipo_CR_CL,Tabla_Tipo_Via[Tipo via],0))*(1-Descuento_transporte),IF(Mod_CR_CL="A",Var_A_K*POWER(Km_CR_CL,Var_A_Alfa)*POWER(Tabla_Costos_Transporte[[#This Row],[Peso (Kg)]],Var_A_Beta)*POWER(Tabla_Costos_Transporte[[#This Row],[Densidad (Kg/M3)]],Var_A_Gama)*(1-Descuento_transporte),IF(Mod_CR_CL="F",Var_F_K*POWER(Km_CR_CL,Var_F_Alfa),IF(Mod_CR_CL="M",Var_M_K*POWER(Km_CR_CL,Var_M_Alfa),0))))) -> 3.305601098 | I174: =IF(OR(Km_CL_CD=0,Tabla_Costos_Transporte[[#This Row],[Codigo]]="NA"),0,IF(Mod_CL_CD="T",Var_T_K*POWER(Km_CL_CD,Var_T_Alfa)*POWER(Tabla_Costos_Transporte[[#This Row],[Peso (Kg)]],Var_T_Beta)*INDEX(Tabla_Tipo_Via[Factor],MATCH(Tipo_CL_CD,Tabla_Tipo_Via[Tipo via],0))*(1-Descuento_transporte),IF(Mod_CL_CD="A",Var_A_K*POWER(Km_CL_CD,Var_A_Alfa)*POWER(Tabla_Costos_Transporte[[#This Row],[Peso (Kg)]],Var_A_Beta)*POWER(Tabla_Costos_Transporte[[#This Row],[Densidad (Kg/M3)]],Var_A_Gama)*(1-Descuento_transporte),IF(Mod_CL_CD="F",Var_F_K*POWER(Km_CL_CD,Var_F_Alfa),IF(Mod_CL_CD="M",Var_M_K*POWER(Km_CL_CD,Var_M_Alfa),0))))) -> 0 | J174: =IF(OR(Km_CD_Mun_T1=0,Tabla_Costos_Transporte[[#This Row],[Codigo]]="NA"),0,IF(Mod_CD_Mun_T1="T",Var_T_K*POWER(Km_CD_Mun_T1,Var_T_Alfa)*POWER(Tabla_Costos_Transporte[[#This Row],[Peso (Kg)]],Var_T_Beta)*INDEX(Tabla_Tipo_Via[Factor],MATCH(Tipo_CD_Mun_T1,Tabla_Tipo_Via[Tipo via],0))*(1-Descuento_transporte),IF(Mod_CD_Mun_T1="A",Var_A_K*POWER(Km_CD_Mun_T1,Var_A_Alfa)*POWER(Tabla_Costos_Transporte[[#This Row],[Peso (Kg)]],Var_A_Beta)*POWER(Tabla_Costos_Transporte[[#This Row],[Densidad (Kg/M3)]],Var_A_Gama)*(1-Descuento_transporte),IF(Mod_CD_Mun_T1="F",Var_F_K*POWER(Km_CD_Mun_T1,Var_F_Alfa),IF(Mod_CD_Mun_T1="M",Var_M_K*POWER(Km_CD_Mun_T1,Var_M_Alfa),0))))) -> 16.37904862 | K174: =IF(OR(Km_CD_Mun_T2=0,Tabla_Costos_Transporte[[#This Row],[Codigo]]="NA"),0,IF(Mod_CD_Mun_T2="T",Var_T_K*POWER(Km_CD_Mun_T2,Var_T_Alfa)*POWER(Tabla_Costos_Transporte[[#This Row],[Peso (Kg)]],Var_T_Beta)*INDEX(Tabla_Tipo_Via[Factor],MATCH(Tipo_CD_Mun_T2,Tabla_Tipo_Via[Tipo via],0))*(1-Descuento_transporte),IF(Mod_CD_Mun_T2="A",Var_A_K*POWER(Km_CD_Mun_T2,Var_A_Alfa)*POWER(Tabla_Costos_Transporte[[#This Row],[Peso (Kg)]],Var_A_Beta)*POWER(Tabla_Costos_Transporte[[#This Row],[Densidad (Kg/M3)]],Var_A_Gama)*(1-Descuento_transporte),IF(Mod_CD_Mun_T2="F",Var_F_K*POWER(Km_CD_Mun_T2,Var_F_Alfa),IF(Mod_CD_Mun_T2="M",Var_M_K*POWER(Km_CD_Mun_T2,Var_M_Alfa),0))))) -> 0 | L174: =IF(OR(Km_Mun_PI=0,Tabla_Costos_Transporte[[#This Row],[Codigo]]="NA"),0,IF(Mod_Mun_PI="T",Var_T_K*POWER(Km_Mun_PI,Var_T_Alfa)*POWER(Tabla_Costos_Transporte[[#This Row],[Peso (Kg)]],Var_T_Beta)*INDEX(Tabla_Tipo_Via[Factor],MATCH(Tipo_Mun_PI,Tabla_Tipo_Via[Tipo via],0))*(1-Descuento_transporte),IF(Mod_Mun_PI="A",Var_A_K*POWER(Km_Mun_PI,Var_A_Alfa)*POWER(Tabla_Costos_Transporte[[#This Row],[Peso (Kg)]],Var_A_Beta)*POWER(Tabla_Costos_Transporte[[#This Row],[Densidad (Kg/M3)]],Var_A_Gama)*(1-Descuento_transporte),IF(Mod_Mun_PI="F",Var_F_K*POWER(Km_Mun_PI,Var_F_Alfa),IF(Mod_Mun_PI="M",Var_M_K*POWER(Km_Mun_PI,Var_M_Alfa),0))))) -> 33.95938708 | M174: =SUMPRODUCT(TRANSPOSE(Tabla_Ruta_CR_PI[Distancia (km)]),Tabla_Costos_Transporte[[#This Row],[T de CR a CL]:[T de M a PI]])*Tabla_Costos_Transporte[[#This Row],[Peso (Kg)]] -> 185056.166 | N174: =Tabla_Costos_Transporte[[#This Row],[VI_UC_CR]]+Tabla_Costos_Transporte[[#This Row],[Costo T]] -> 1037242.55 | O174: =Tabla_Costos_Transporte[[#This Row],[VI+CT]]/SUM(Tabla_Costos_Transporte[VI+CT]) -> 0.09016785827
B175: 8. RED BATERÍA A GABINETE Y ACCESORIOS | C175: =IF(Almacenamiento="NO",0,IF(Tipo_Sistema="DC",OFFSET(Tabla_UCRB[VI_CR],0,0,1,1),INDEX(Tabla_UCRB[VI_CR],MATCH(INDEX(Tabla_UCIN[Capacidad (VA)],MATCH(UCIN_ID,Tabla_UCIN[Codigo])),Tabla_UCRB[VA_Inv_Min])))) -> 641811.9907 | D175: =IF(Almacenamiento="NO","NA",IF(Tipo_Sistema="DC",OFFSET(Tabla_UCRB[Codigo],0,0,1,1),INDEX(Tabla_UCRB[Codigo],MATCH(INDEX(Tabla_UCIN[Capacidad (VA)],MATCH(UCIN_ID,Tabla_UCIN[Codigo],0)),Tabla_UCRB[VA_Inv_Min])))) -> UCRB04 | E175: =IF(Tabla_Costos_Transporte[[#This Row],[Codigo]]="NA",0,1) -> 1 | F175: =IFERROR(INDEX(Tabla_UCRB[Kg],MATCH(Tabla_Costos_Transporte[[#This Row],[Codigo]],Tabla_UCRB[Codigo],0)),0)*Tabla_Costos_Transporte[[#This Row],[Unidades]] -> 28.08 | G175: 781.6721029 | H175: =IF(OR(Km_CR_CL=0,Tabla_Costos_Transporte[[#This Row],[Codigo]]="NA"),0,IF(Mod_CR_CL="T",Var_T_K*POWER(Km_CR_CL,Var_T_Alfa)*POWER(Tabla_Costos_Transporte[[#This Row],[Peso (Kg)]],Var_T_Beta)*INDEX(Tabla_Tipo_Via[Factor],MATCH(Tipo_CR_CL,Tabla_Tipo_Via[Tipo via],0))*(1-Descuento_transporte),IF(Mod_CR_CL="A",Var_A_K*POWER(Km_CR_CL,Var_A_Alfa)*POWER(Tabla_Costos_Transporte[[#This Row],[Peso (Kg)]],Var_A_Beta)*POWER(Tabla_Costos_Transporte[[#This Row],[Densidad (Kg/M3)]],Var_A_Gama)*(1-Descuento_transporte),IF(Mod_CR_CL="F",Var_F_K*POWER(Km_CR_CL,Var_F_Alfa),IF(Mod_CR_CL="M",Var_M_K*POWER(Km_CR_CL,Var_M_Alfa),0))))) -> 3.305601098 | I175: =IF(OR(Km_CL_CD=0,Tabla_Costos_Transporte[[#This Row],[Codigo]]="NA"),0,IF(Mod_CL_CD="T",Var_T_K*POWER(Km_CL_CD,Var_T_Alfa)*POWER(Tabla_Costos_Transporte[[#This Row],[Peso (Kg)]],Var_T_Beta)*INDEX(Tabla_Tipo_Via[Factor],MATCH(Tipo_CL_CD,Tabla_Tipo_Via[Tipo via],0))*(1-Descuento_transporte),IF(Mod_CL_CD="A",Var_A_K*POWER(Km_CL_CD,Var_A_Alfa)*POWER(Tabla_Costos_Transporte[[#This Row],[Peso (Kg)]],Var_A_Beta)*POWER(Tabla_Costos_Transporte[[#This Row],[Densidad (Kg/M3)]],Var_A_Gama)*(1-Descuento_transporte),IF(Mod_CL_CD="F",Var_F_K*POWER(Km_CL_CD,Var_F_Alfa),IF(Mod_CL_CD="M",Var_M_K*POWER(Km_CL_CD,Var_M_Alfa),0))))) -> 0 | J175: =IF(OR(Km_CD_Mun_T1=0,Tabla_Costos_Transporte[[#This Row],[Codigo]]="NA"),0,IF(Mod_CD_Mun_T1="T",Var_T_K*POWER(Km_CD_Mun_T1,Var_T_Alfa)*POWER(Tabla_Costos_Transporte[[#This Row],[Peso (Kg)]],Var_T_Beta)*INDEX(Tabla_Tipo_Via[Factor],MATCH(Tipo_CD_Mun_T1,Tabla_Tipo_Via[Tipo via],0))*(1-Descuento_transporte),IF(Mod_CD_Mun_T1="A",Var_A_K*POWER(Km_CD_Mun_T1,Var_A_Alfa)*POWER(Tabla_Costos_Transporte[[#This Row],[Peso (Kg)]],Var_A_Beta)*POWER(Tabla_Costos_Transporte[[#This Row],[Densidad (Kg/M3)]],Var_A_Gama)*(1-Descuento_transporte),IF(Mod_CD_Mun_T1="F",Var_F_K*POWER(Km_CD_Mun_T1,Var_F_Alfa),IF(Mod_CD_Mun_T1="M",Var_M_K*POWER(Km_CD_Mun_T1,Var_M_Alfa),0))))) -> 16.37904862 | K175: =IF(OR(Km_CD_Mun_T2=0,Tabla_Costos_Transporte[[#This Row],[Codigo]]="NA"),0,IF(Mod_CD_Mun_T2="T",Var_T_K*POWER(Km_CD_Mun_T2,Var_T_Alfa)*POWER(Tabla_Costos_Transporte[[#This Row],[Peso (Kg)]],Var_T_Beta)*INDEX(Tabla_Tipo_Via[Factor],MATCH(Tipo_CD_Mun_T2,Tabla_Tipo_Via[Tipo via],0))*(1-Descuento_transporte),IF(Mod_CD_Mun_T2="A",Var_A_K*POWER(Km_CD_Mun_T2,Var_A_Alfa)*POWER(Tabla_Costos_Transporte[[#This Row],[Peso (Kg)]],Var_A_Beta)*POWER(Tabla_Costos_Transporte[[#This Row],[Densidad (Kg/M3)]],Var_A_Gama)*(1-Descuento_transporte),IF(Mod_CD_Mun_T2="F",Var_F_K*POWER(Km_CD_Mun_T2,Var_F_Alfa),IF(Mod_CD_Mun_T2="M",Var_M_K*POWER(Km_CD_Mun_T2,Var_M_Alfa),0))))) -> 0 | L175: =IF(OR(Km_Mun_PI=0,Tabla_Costos_Transporte[[#This Row],[Codigo]]="NA"),0,IF(Mod_Mun_PI="T",Var_T_K*POWER(Km_Mun_PI,Var_T_Alfa)*POWER(Tabla_Costos_Transporte[[#This Row],[Peso (Kg)]],Var_T_Beta)*INDEX(Tabla_Tipo_Via[Factor],MATCH(Tipo_Mun_PI,Tabla_Tipo_Via[Tipo via],0))*(1-Descuento_transporte),IF(Mod_Mun_PI="A",Var_A_K*POWER(Km_Mun_PI,Var_A_Alfa)*POWER(Tabla_Costos_Transporte[[#This Row],[Peso (Kg)]],Var_A_Beta)*POWER(Tabla_Costos_Transporte[[#This Row],[Densidad (Kg/M3)]],Var_A_Gama)*(1-Descuento_transporte),IF(Mod_Mun_PI="F",Var_F_K*POWER(Km_Mun_PI,Var_F_Alfa),IF(Mod_Mun_PI="M",Var_M_K*POWER(Km_Mun_PI,Var_M_Alfa),0))))) -> 33.95938708 | M175: =SUMPRODUCT(TRANSPOSE(Tabla_Ruta_CR_PI[Distancia (km)]),Tabla_Costos_Transporte[[#This Row],[T de CR a CL]:[T de M a PI]])*Tabla_Costos_Transporte[[#This Row],[Peso (Kg)]] -> 185056.166 | N175: =Tabla_Costos_Transporte[[#This Row],[VI_UC_CR]]+Tabla_Costos_Transporte[[#This Row],[Costo T]] -> 826868.1567 | O175: =Tabla_Costos_Transporte[[#This Row],[VI+CT]]/SUM(Tabla_Costos_Transporte[VI+CT]) -> 0.07187993853
B176: 9. PUESTA A TIERRA | C176: =INDEX(Tabla_UCPT[VI_CR],MATCH(UCPA_NUM,Tabla_UCPT[No_UCPA_Min])) -> 180594.9285 | D176: =INDEX(Tabla_UCPT[Codigo],MATCH(UCPA_NUM,Tabla_UCPT[No_UCPA_Min])) -> UCPT02 | E176: 1 | F176: =IFERROR(INDEX(Tabla_UCPT[Kg],MATCH(Tabla_Costos_Transporte[[#This Row],[Codigo]],Tabla_UCPT[Codigo],0)),0)*Tabla_Costos_Transporte[[#This Row],[Unidades]] -> 11.3 | G176: 4126.842635 | H176: =IF(OR(Km_CR_CL=0,Tabla_Costos_Transporte[[#This Row],[Codigo]]="NA"),0,IF(Mod_CR_CL="T",Var_T_K*POWER(Km_CR_CL,Var_T_Alfa)*POWER(Tabla_Costos_Transporte[[#This Row],[Peso (Kg)]],Var_T_Beta)*INDEX(Tabla_Tipo_Via[Factor],MATCH(Tipo_CR_CL,Tabla_Tipo_Via[Tipo via],0))*(1-Descuento_transporte),IF(Mod_CR_CL="A",Var_A_K*POWER(Km_CR_CL,Var_A_Alfa)*POWER(Tabla_Costos_Transporte[[#This Row],[Peso (Kg)]],Var_A_Beta)*POWER(Tabla_Costos_Transporte[[#This Row],[Densidad (Kg/M3)]],Var_A_Gama)*(1-Descuento_transporte),IF(Mod_CR_CL="F",Var_F_K*POWER(Km_CR_CL,Var_F_Alfa),IF(Mod_CR_CL="M",Var_M_K*POWER(Km_CR_CL,Var_M_Alfa),0))))) -> 6.392135368 | I176: =IF(OR(Km_CL_CD=0,Tabla_Costos_Transporte[[#This Row],[Codigo]]="NA"),0,IF(Mod_CL_CD="T",Var_T_K*POWER(Km_CL_CD,Var_T_Alfa)*POWER(Tabla_Costos_Transporte[[#This Row],[Peso (Kg)]],Var_T_Beta)*INDEX(Tabla_Tipo_Via[Factor],MATCH(Tipo_CL_CD,Tabla_Tipo_Via[Tipo via],0))*(1-Descuento_transporte),IF(Mod_CL_CD="A",Var_A_K*POWER(Km_CL_CD,Var_A_Alfa)*POWER(Tabla_Costos_Transporte[[#This Row],[Peso (Kg)]],Var_A_Beta)*POWER(Tabla_Costos_Transporte[[#This Row],[Densidad (Kg/M3)]],Var_A_Gama)*(1-Descuento_transporte),IF(Mod_CL_CD="F",Var_F_K*POWER(Km_CL_CD,Var_F_Alfa),IF(Mod_CL_CD="M",Var_M_K*POWER(Km_CL_CD,Var_M_Alfa),0))))) -> 0 | J176: =IF(OR(Km_CD_Mun_T1=0,Tabla_Costos_Transporte[[#This Row],[Codigo]]="NA"),0,IF(Mod_CD_Mun_T1="T",Var_T_K*POWER(Km_CD_Mun_T1,Var_T_Alfa)*POWER(Tabla_Costos_Transporte[[#This Row],[Peso (Kg)]],Var_T_Beta)*INDEX(Tabla_Tipo_Via[Factor],MATCH(Tipo_CD_Mun_T1,Tabla_Tipo_Via[Tipo via],0))*(1-Descuento_transporte),IF(Mod_CD_Mun_T1="A",Var_A_K*POWER(Km_CD_Mun_T1,Var_A_Alfa)*POWER(Tabla_Costos_Transporte[[#This Row],[Peso (Kg)]],Var_A_Beta)*POWER(Tabla_Costos_Transporte[[#This Row],[Densidad (Kg/M3)]],Var_A_Gama)*(1-Descuento_transporte),IF(Mod_CD_Mun_T1="F",Var_F_K*POWER(Km_CD_Mun_T1,Var_F_Alfa),IF(Mod_CD_Mun_T1="M",Var_M_K*POWER(Km_CD_Mun_T1,Var_M_Alfa),0))))) -> 31.67263468 | K176: =IF(OR(Km_CD_Mun_T2=0,Tabla_Costos_Transporte[[#This Row],[Codigo]]="NA"),0,IF(Mod_CD_Mun_T2="T",Var_T_K*POWER(Km_CD_Mun_T2,Var_T_Alfa)*POWER(Tabla_Costos_Transporte[[#This Row],[Peso (Kg)]],Var_T_Beta)*INDEX(Tabla_Tipo_Via[Factor],MATCH(Tipo_CD_Mun_T2,Tabla_Tipo_Via[Tipo via],0))*(1-Descuento_transporte),IF(Mod_CD_Mun_T2="A",Var_A_K*POWER(Km_CD_Mun_T2,Var_A_Alfa)*POWER(Tabla_Costos_Transporte[[#This Row],[Peso (Kg)]],Var_A_Beta)*POWER(Tabla_Costos_Transporte[[#This Row],[Densidad (Kg/M3)]],Var_A_Gama)*(1-Descuento_transporte),IF(Mod_CD_Mun_T2="F",Var_F_K*POWER(Km_CD_Mun_T2,Var_F_Alfa),IF(Mod_CD_Mun_T2="M",Var_M_K*POWER(Km_CD_Mun_T2,Var_M_Alfa),0))))) -> 0 | L176: =IF(OR(Km_Mun_PI=0,Tabla_Costos_Transporte[[#This Row],[Codigo]]="NA"),0,IF(Mod_Mun_PI="T",Var_T_K*POWER(Km_Mun_PI,Var_T_Alfa)*POWER(Tabla_Costos_Transporte[[#This Row],[Peso (Kg)]],Var_T_Beta)*INDEX(Tabla_Tipo_Via[Factor],MATCH(Tipo_Mun_PI,Tabla_Tipo_Via[Tipo via],0))*(1-Descuento_transporte),IF(Mod_Mun_PI="A",Var_A_K*POWER(Km_Mun_PI,Var_A_Alfa)*POWER(Tabla_Costos_Transporte[[#This Row],[Peso (Kg)]],Var_A_Beta)*POWER(Tabla_Costos_Transporte[[#This Row],[Densidad (Kg/M3)]],Var_A_Gama)*(1-Descuento_transporte),IF(Mod_Mun_PI="F",Var_F_K*POWER(Km_Mun_PI,Var_F_Alfa),IF(Mod_Mun_PI="M",Var_M_K*POWER(Km_Mun_PI,Var_M_Alfa),0))))) -> 65.66823788 | M176: =SUMPRODUCT(TRANSPOSE(Tabla_Ruta_CR_PI[Distancia (km)]),Tabla_Costos_Transporte[[#This Row],[T de CR a CL]:[T de M a PI]])*Tabla_Costos_Transporte[[#This Row],[Peso (Kg)]] -> 144005.9444 | N176: =Tabla_Costos_Transporte[[#This Row],[VI_UC_CR]]+Tabla_Costos_Transporte[[#This Row],[Costo T]] -> 324600.8729 | O176: =Tabla_Costos_Transporte[[#This Row],[VI+CT]]/SUM(Tabla_Costos_Transporte[VI+CT]) -> 0.02821766759
B177: 10. RED DOMICILIARIA | C177: =IF(Tipo_Sistema="DC",ROUNDUP(1.7213*POWER(NdS_Whd,0.48)/Mod_UCRD_DC,0)*INDEX(Tabla_UCRD[VI_CR],1),ROUNDUP(2.1914*POWER(NdS_Whd,0.442)/Mod_UCRD_AC,0)*INDEX(Tabla_UCRD[VI_CR],2)) -> 1140533.585 | D177: =INDEX(Tabla_UCRD[Codigo],IF(Tipo_Sistema="DC",1,2)) -> UCRD02 | E177: =IF(Tipo_Sistema="DC",ROUNDUP(1.7213*POWER(NdS_Whd,0.48)/Mod_UCRD_DC,0),ROUNDUP(2.1914*POWER(NdS_Whd,0.442)/Mod_UCRD_AC,0)) -> 4 | F177: =IFERROR(INDEX(Tabla_UCRD[Kg],MATCH(Tabla_Costos_Transporte[[#This Row],[Codigo]],Tabla_UCRD[Codigo],0)),0)*Tabla_Costos_Transporte[[#This Row],[Unidades]] -> 43.52 | G177: 781.6721029 | H177: =IF(OR(Km_CR_CL=0,Tabla_Costos_Transporte[[#This Row],[Codigo]]="NA"),0,IF(Mod_CR_CL="T",Var_T_K*POWER(Km_CR_CL,Var_T_Alfa)*POWER(Tabla_Costos_Transporte[[#This Row],[Peso (Kg)]],Var_T_Beta)*INDEX(Tabla_Tipo_Via[Factor],MATCH(Tipo_CR_CL,Tabla_Tipo_Via[Tipo via],0))*(1-Descuento_transporte),IF(Mod_CR_CL="A",Var_A_K*POWER(Km_CR_CL,Var_A_Alfa)*POWER(Tabla_Costos_Transporte[[#This Row],[Peso (Kg)]],Var_A_Beta)*POWER(Tabla_Costos_Transporte[[#This Row],[Densidad (Kg/M3)]],Var_A_Gama)*(1-Descuento_transporte),IF(Mod_CR_CL="F",Var_F_K*POWER(Km_CR_CL,Var_F_Alfa),IF(Mod_CR_CL="M",Var_M_K*POWER(Km_CR_CL,Var_M_Alfa),0))))) -> 2.406524196 | I177: =IF(OR(Km_CL_CD=0,Tabla_Costos_Transporte[[#This Row],[Codigo]]="NA"),0,IF(Mod_CL_CD="T",Var_T_K*POWER(Km_CL_CD,Var_T_Alfa)*POWER(Tabla_Costos_Transporte[[#This Row],[Peso (Kg)]],Var_T_Beta)*INDEX(Tabla_Tipo_Via[Factor],MATCH(Tipo_CL_CD,Tabla_Tipo_Via[Tipo via],0))*(1-Descuento_transporte),IF(Mod_CL_CD="A",Var_A_K*POWER(Km_CL_CD,Var_A_Alfa)*POWER(Tabla_Costos_Transporte[[#This Row],[Peso (Kg)]],Var_A_Beta)*POWER(Tabla_Costos_Transporte[[#This Row],[Densidad (Kg/M3)]],Var_A_Gama)*(1-Descuento_transporte),IF(Mod_CL_CD="F",Var_F_K*POWER(Km_CL_CD,Var_F_Alfa),IF(Mod_CL_CD="M",Var_M_K*POWER(Km_CL_CD,Var_M_Alfa),0))))) -> 0 | J177: =IF(OR(Km_CD_Mun_T1=0,Tabla_Costos_Transporte[[#This Row],[Codigo]]="NA"),0,IF(Mod_CD_Mun_T1="T",Var_T_K*POWER(Km_CD_Mun_T1,Var_T_Alfa)*POWER(Tabla_Costos_Transporte[[#This Row],[Peso (Kg)]],Var_T_Beta)*INDEX(Tabla_Tipo_Via[Factor],MATCH(Tipo_CD_Mun_T1,Tabla_Tipo_Via[Tipo via],0))*(1-Descuento_transporte),IF(Mod_CD_Mun_T1="A",Var_A_K*POWER(Km_CD_Mun_T1,Var_A_Alfa)*POWER(Tabla_Costos_Transporte[[#This Row],[Peso (Kg)]],Var_A_Beta)*POWER(Tabla_Costos_Transporte[[#This Row],[Densidad (Kg/M3)]],Var_A_Gama)*(1-Descuento_transporte),IF(Mod_CD_Mun_T1="F",Var_F_K*POWER(Km_CD_Mun_T1,Var_F_Alfa),IF(Mod_CD_Mun_T1="M",Var_M_K*POWER(Km_CD_Mun_T1,Var_M_Alfa),0))))) -> 11.92417828 | K177: =IF(OR(Km_CD_Mun_T2=0,Tabla_Costos_Transporte[[#This Row],[Codigo]]="NA"),0,IF(Mod_CD_Mun_T2="T",Var_T_K*POWER(Km_CD_Mun_T2,Var_T_Alfa)*POWER(Tabla_Costos_Transporte[[#This Row],[Peso (Kg)]],Var_T_Beta)*INDEX(Tabla_Tipo_Via[Factor],MATCH(Tipo_CD_Mun_T2,Tabla_Tipo_Via[Tipo via],0))*(1-Descuento_transporte),IF(Mod_CD_Mun_T2="A",Var_A_K*POWER(Km_CD_Mun_T2,Var_A_Alfa)*POWER(Tabla_Costos_Transporte[[#This Row],[Peso (Kg)]],Var_A_Beta)*POWER(Tabla_Costos_Transporte[[#This Row],[Densidad (Kg/M3)]],Var_A_Gama)*(1-Descuento_transporte),IF(Mod_CD_Mun_T2="F",Var_F_K*POWER(Km_CD_Mun_T2,Var_F_Alfa),IF(Mod_CD_Mun_T2="M",Var_M_K*POWER(Km_CD_Mun_T2,Var_M_Alfa),0))))) -> 0 | L177: =IF(OR(Km_Mun_PI=0,Tabla_Costos_Transporte[[#This Row],[Codigo]]="NA"),0,IF(Mod_Mun_PI="T",Var_T_K*POWER(Km_Mun_PI,Var_T_Alfa)*POWER(Tabla_Costos_Transporte[[#This Row],[Peso (Kg)]],Var_T_Beta)*INDEX(Tabla_Tipo_Via[Factor],MATCH(Tipo_Mun_PI,Tabla_Tipo_Via[Tipo via],0))*(1-Descuento_transporte),IF(Mod_Mun_PI="A",Var_A_K*POWER(Km_Mun_PI,Var_A_Alfa)*POWER(Tabla_Costos_Transporte[[#This Row],[Peso (Kg)]],Var_A_Beta)*POWER(Tabla_Costos_Transporte[[#This Row],[Densidad (Kg/M3)]],Var_A_Gama)*(1-Descuento_transporte),IF(Mod_Mun_PI="F",Var_F_K*POWER(Km_Mun_PI,Var_F_Alfa),IF(Mod_Mun_PI="M",Var_M_K*POWER(Km_Mun_PI,Var_M_Alfa),0))))) -> 24.7229125 | M177: =SUMPRODUCT(TRANSPOSE(Tabla_Ruta_CR_PI[Distancia (km)]),Tabla_Costos_Transporte[[#This Row],[T de CR a CL]:[T de M a PI]])*Tabla_Costos_Transporte[[#This Row],[Peso (Kg)]] -> 208802.2297 | N177: =Tabla_Costos_Transporte[[#This Row],[VI_UC_CR]]+Tabla_Costos_Transporte[[#This Row],[Costo T]] -> 1349335.815 | O177: =Tabla_Costos_Transporte[[#This Row],[VI+CT]]/SUM(Tabla_Costos_Transporte[VI+CT]) -> 0.1172982351
B178: 11. ELEMENTO DE MEDICIÓN | C178: =Tabla_UCMD[VI_CR] -> 254239.6928 | D178: =INDEX(Tabla_UCMD[],1,1) -> UCMD01 | E178: 1 | F178: =IFERROR(INDEX(Tabla_UCMD[Kg],MATCH(Tabla_Costos_Transporte[[#This Row],[Codigo]],Tabla_UCMD[Codigo],0)),0)*Tabla_Costos_Transporte[[#This Row],[Unidades]] -> 1 | G178: 2314.814815 | H178: =IF(OR(Km_CR_CL=0,Tabla_Costos_Transporte[[#This Row],[Codigo]]="NA"),0,IF(Mod_CR_CL="T",Var_T_K*POWER(Km_CR_CL,Var_T_Alfa)*POWER(Tabla_Costos_Transporte[[#This Row],[Peso (Kg)]],Var_T_Beta)*INDEX(Tabla_Tipo_Via[Factor],MATCH(Tipo_CR_CL,Tabla_Tipo_Via[Tipo via],0))*(1-Descuento_transporte),IF(Mod_CR_CL="A",Var_A_K*POWER(Km_CR_CL,Var_A_Alfa)*POWER(Tabla_Costos_Transporte[[#This Row],[Peso (Kg)]],Var_A_Beta)*POWER(Tabla_Costos_Transporte[[#This Row],[Densidad (Kg/M3)]],Var_A_Gama)*(1-Descuento_transporte),IF(Mod_CR_CL="F",Var_F_K*POWER(Km_CR_CL,Var_F_Alfa),IF(Mod_CR_CL="M",Var_M_K*POWER(Km_CR_CL,Var_M_Alfa),0))))) -> 37.03113862 | I178: =IF(OR(Km_CL_CD=0,Tabla_Costos_Transporte[[#This Row],[Codigo]]="NA"),0,IF(Mod_CL_CD="T",Var_T_K*POWER(Km_CL_CD,Var_T_Alfa)*POWER(Tabla_Costos_Transporte[[#This Row],[Peso (Kg)]],Var_T_Beta)*INDEX(Tabla_Tipo_Via[Factor],MATCH(Tipo_CL_CD,Tabla_Tipo_Via[Tipo via],0))*(1-Descuento_transporte),IF(Mod_CL_CD="A",Var_A_K*POWER(Km_CL_CD,Var_A_Alfa)*POWER(Tabla_Costos_Transporte[[#This Row],[Peso (Kg)]],Var_A_Beta)*POWER(Tabla_Costos_Transporte[[#This Row],[Densidad (Kg/M3)]],Var_A_Gama)*(1-Descuento_transporte),IF(Mod_CL_CD="F",Var_F_K*POWER(Km_CL_CD,Var_F_Alfa),IF(Mod_CL_CD="M",Var_M_K*POWER(Km_CL_CD,Var_M_Alfa),0))))) -> 0 | J178: =IF(OR(Km_CD_Mun_T1=0,Tabla_Costos_Transporte[[#This Row],[Codigo]]="NA"),0,IF(Mod_CD_Mun_T1="T",Var_T_K*POWER(Km_CD_Mun_T1,Var_T_Alfa)*POWER(Tabla_Costos_Transporte[[#This Row],[Peso (Kg)]],Var_T_Beta)*INDEX(Tabla_Tipo_Via[Factor],MATCH(Tipo_CD_Mun_T1,Tabla_Tipo_Via[Tipo via],0))*(1-Descuento_transporte),IF(Mod_CD_Mun_T1="A",Var_A_K*POWER(Km_CD_Mun_T1,Var_A_Alfa)*POWER(Tabla_Costos_Transporte[[#This Row],[Peso (Kg)]],Var_A_Beta)*POWER(Tabla_Costos_Transporte[[#This Row],[Densidad (Kg/M3)]],Var_A_Gama)*(1-Descuento_transporte),IF(Mod_CD_Mun_T1="F",Var_F_K*POWER(Km_CD_Mun_T1,Var_F_Alfa),IF(Mod_CD_Mun_T1="M",Var_M_K*POWER(Km_CD_Mun_T1,Var_M_Alfa),0))))) -> 183.4869974 | K178: =IF(OR(Km_CD_Mun_T2=0,Tabla_Costos_Transporte[[#This Row],[Codigo]]="NA"),0,IF(Mod_CD_Mun_T2="T",Var_T_K*POWER(Km_CD_Mun_T2,Var_T_Alfa)*POWER(Tabla_Costos_Transporte[[#This Row],[Peso (Kg)]],Var_T_Beta)*INDEX(Tabla_Tipo_Via[Factor],MATCH(Tipo_CD_Mun_T2,Tabla_Tipo_Via[Tipo via],0))*(1-Descuento_transporte),IF(Mod_CD_Mun_T2="A",Var_A_K*POWER(Km_CD_Mun_T2,Var_A_Alfa)*POWER(Tabla_Costos_Transporte[[#This Row],[Peso (Kg)]],Var_A_Beta)*POWER(Tabla_Costos_Transporte[[#This Row],[Densidad (Kg/M3)]],Var_A_Gama)*(1-Descuento_transporte),IF(Mod_CD_Mun_T2="F",Var_F_K*POWER(Km_CD_Mun_T2,Var_F_Alfa),IF(Mod_CD_Mun_T2="M",Var_M_K*POWER(Km_CD_Mun_T2,Var_M_Alfa),0))))) -> 0 | L178: =IF(OR(Km_Mun_PI=0,Tabla_Costos_Transporte[[#This Row],[Codigo]]="NA"),0,IF(Mod_Mun_PI="T",Var_T_K*POWER(Km_Mun_PI,Var_T_Alfa)*POWER(Tabla_Costos_Transporte[[#This Row],[Peso (Kg)]],Var_T_Beta)*INDEX(Tabla_Tipo_Via[Factor],MATCH(Tipo_Mun_PI,Tabla_Tipo_Via[Tipo via],0))*(1-Descuento_transporte),IF(Mod_Mun_PI="A",Var_A_K*POWER(Km_Mun_PI,Var_A_Alfa)*POWER(Tabla_Costos_Transporte[[#This Row],[Peso (Kg)]],Var_A_Beta)*POWER(Tabla_Costos_Transporte[[#This Row],[Densidad (Kg/M3)]],Var_A_Gama)*(1-Descuento_transporte),IF(Mod_Mun_PI="F",Var_F_K*POWER(Km_Mun_PI,Var_F_Alfa),IF(Mod_Mun_PI="M",Var_M_K*POWER(Km_Mun_PI,Var_M_Alfa),0))))) -> 380.4314959 | M178: =SUMPRODUCT(TRANSPOSE(Tabla_Ruta_CR_PI[Distancia (km)]),Tabla_Costos_Transporte[[#This Row],[T de CR a CL]:[T de M a PI]])*Tabla_Costos_Transporte[[#This Row],[Peso (Kg)]] -> 73828.33573 | N178: =Tabla_Costos_Transporte[[#This Row],[VI_UC_CR]]+Tabla_Costos_Transporte[[#This Row],[Costo T]] -> 328068.0285 | O178: =Tabla_Costos_Transporte[[#This Row],[VI+CT]]/SUM(Tabla_Costos_Transporte[VI+CT]) -> 0.02851906865
B181: 4. PARÁMETROS GASTOS DE ADMINISTRACIÓN, MANTENIMIENTO Y GESTIÓN COMERCIAL
B183: 4.1. Parámetros de gastos que dependen del número de usuarios atendidos por el prestador (NU)
B185: Estimación de gastos de personal administrativo, servicios generales y software comercial
B186: Variable | C186: Parámetro | D186: Valor
B187: constante (Col$ 2021-Dic /(Usuario - día)) | C187: C | D187: 9614.32
B188: Usuarios | C188: α | D188: -0.307
B190: 4.2. Parámetros Seguros Inversiones
B192: Prima anual seguros inversiones | C192: 0.005117
B194: 4.3. Parámetros costos de repuestos / mantenimientos correctivos
B196: Unidad constructiva | C196: Tasa de falla anual
B197: 1. PANEL | C197: 0.003
B198: 2. INVERSOR | C198: 0.0075
B199: 3. REGULADOR | C199: 0.0075
B200: 4. BANCO DE BATERIAS | C200: 0.01
B201: 5. ESTRUCTURA SOPORTE | C201: 0.002
B202: 6. RED PANEL GABINETE | C202: 0.0075
B203: 7. GABINETE Y ACCESORIOS | C203: 0.0075
B204: 8. RED BATERÍA A GABINETE Y ACCESORIOS | C204: 0.0075
B205: 9. PUESTA A TIERRA | C205: 0.0075
B206: 10. RED DOMICILIARIA | C206: 0.0075
B207: 11. ELEMENTO DE MEDICIÓN | C207: 0.0075
B209: 4.4. Parámetros visitas a usuarios (instalación / mantenimiento preventivo / mantenimiento correctivo)
B211: Días laborables al año | C211: 240
B212: Técnicos x cuadrilla | C212: 2
B213: Costo cuadrilla ($ / año) ($ 2021-Dic) | C213: 120966435.4
B215: 4.5 Tiempo y costo de visita por cuadrilla según el tipo de visita
B217: Wp_Min | C217: Wp_Max | D217: UC Panel (h / tec) | E217: UC Inversor (h / tec) | F217: UC Regulador (h / tec) | G217: UC Banco Baterias (h / tec) | H217: Otras UC (h / tec) | I217: Total SISFV (h / tec)
B218: 0.01 | C218: 33.06878307 | D218: 0.3333333333 | E218: 0 | F218: 0.2666666667 | G218: 0.1333333333 | H218: 0.25 | I218: =Tabla_Tiempos_Preventivo_UC[[#This Row],[UC Panel (h / tec)]]+Tabla_Tiempos_Preventivo_UC[[#This Row],[Otras UC (h / tec)]]+IF(UCIN_ID<>"NA",Tabla_Tiempos_Preventivo_UC[[#This Row],[UC Inversor (h / tec)]],0)+IF(Dda_Pico_Seg>Limite_Inv_Onda_Seno,0,Tabla_Tiempos_Preventivo_UC[[#This Row],[UC Regulador (h / tec)]])+IF(Almacenamiento="NO",0,Tabla_Tiempos_Preventivo_UC[[#This Row],[UC Banco Baterias (h / tec)]]) -> 0.9833333333
B219: 33.07878307 | C219: 49.6031746 | D219: 0.3333333333 | E219: 0 | F219: 0.2666666667 | G219: 0.1333333333 | H219: 0.25 | I219: =Tabla_Tiempos_Preventivo_UC[[#This Row],[UC Panel (h / tec)]]+Tabla_Tiempos_Preventivo_UC[[#This Row],[Otras UC (h / tec)]]+IF(UCIN_ID<>"NA",Tabla_Tiempos_Preventivo_UC[[#This Row],[UC Inversor (h / tec)]],0)+IF(Dda_Pico_Seg>Limite_Inv_Onda_Seno,0,Tabla_Tiempos_Preventivo_UC[[#This Row],[UC Regulador (h / tec)]])+IF(Almacenamiento="NO",0,Tabla_Tiempos_Preventivo_UC[[#This Row],[UC Banco Baterias (h / tec)]]) -> 0.9833333333
B220: 49.6131746 | C220: 115.7407407 | D220: 0.3666666667 | E220: 0 | F220: 0.2666666667 | G220: 0.1333333333 | H220: 0.2666666667 | I220: =Tabla_Tiempos_Preventivo_UC[[#This Row],[UC Panel (h / tec)]]+Tabla_Tiempos_Preventivo_UC[[#This Row],[Otras UC (h / tec)]]+IF(UCIN_ID<>"NA",Tabla_Tiempos_Preventivo_UC[[#This Row],[UC Inversor (h / tec)]],0)+IF(Dda_Pico_Seg>Limite_Inv_Onda_Seno,0,Tabla_Tiempos_Preventivo_UC[[#This Row],[UC Regulador (h / tec)]])+IF(Almacenamiento="NO",0,Tabla_Tiempos_Preventivo_UC[[#This Row],[UC Banco Baterias (h / tec)]]) -> 1.033333333
B221: 115.7507407 | C221: 248.015873 | D221: 0.3666666667 | E221: 0 | F221: 0.2666666667 | G221: 0.1333333333 | H221: 0.2666666667 | I221: =Tabla_Tiempos_Preventivo_UC[[#This Row],[UC Panel (h / tec)]]+Tabla_Tiempos_Preventivo_UC[[#This Row],[Otras UC (h / tec)]]+IF(UCIN_ID<>"NA",Tabla_Tiempos_Preventivo_UC[[#This Row],[UC Inversor (h / tec)]],0)+IF(Dda_Pico_Seg>Limite_Inv_Onda_Seno,0,Tabla_Tiempos_Preventivo_UC[[#This Row],[UC Regulador (h / tec)]])+IF(Almacenamiento="NO",0,Tabla_Tiempos_Preventivo_UC[[#This Row],[UC Banco Baterias (h / tec)]]) -> 1.033333333
B222: 248.025873 | C222: 330.6878307 | D222: 0.3833333333 | E222: 0.3666666667 | F222: 0.3 | G222: 0.1666666667 | H222: 0.2833333333 | I222: =Tabla_Tiempos_Preventivo_UC[[#This Row],[UC Panel (h / tec)]]+Tabla_Tiempos_Preventivo_UC[[#This Row],[Otras UC (h / tec)]]+IF(UCIN_ID<>"NA",Tabla_Tiempos_Preventivo_UC[[#This Row],[UC Inversor (h / tec)]],0)+IF(Dda_Pico_Seg>Limite_Inv_Onda_Seno,0,Tabla_Tiempos_Preventivo_UC[[#This Row],[UC Regulador (h / tec)]])+IF(Almacenamiento="NO",0,Tabla_Tiempos_Preventivo_UC[[#This Row],[UC Banco Baterias (h / tec)]]) -> 1.5
B223: 330.6978307 | C223: 496.031746 | D223: 0.3833333333 | E223: 0.3666666667 | F223: 0.3 | G223: 0.1666666667 | H223: 0.2833333333 | I223: =Tabla_Tiempos_Preventivo_UC[[#This Row],[UC Panel (h / tec)]]+Tabla_Tiempos_Preventivo_UC[[#This Row],[Otras UC (h / tec)]]+IF(UCIN_ID<>"NA",Tabla_Tiempos_Preventivo_UC[[#This Row],[UC Inversor (h / tec)]],0)+IF(Dda_Pico_Seg>Limite_Inv_Onda_Seno,0,Tabla_Tiempos_Preventivo_UC[[#This Row],[UC Regulador (h / tec)]])+IF(Almacenamiento="NO",0,Tabla_Tiempos_Preventivo_UC[[#This Row],[UC Banco Baterias (h / tec)]]) -> 1.5
B224: 496.041746 | C224: 744.047619 | D224: 0.4 | E224: 0.3833333333 | F224: 0.3 | G224: 0.1666666667 | H224: 0.3 | I224: =Tabla_Tiempos_Preventivo_UC[[#This Row],[UC Panel (h / tec)]]+Tabla_Tiempos_Preventivo_UC[[#This Row],[Otras UC (h / tec)]]+IF(UCIN_ID<>"NA",Tabla_Tiempos_Preventivo_UC[[#This Row],[UC Inversor (h / tec)]],0)+IF(Dda_Pico_Seg>Limite_Inv_Onda_Seno,0,Tabla_Tiempos_Preventivo_UC[[#This Row],[UC Regulador (h / tec)]])+IF(Almacenamiento="NO",0,Tabla_Tiempos_Preventivo_UC[[#This Row],[UC Banco Baterias (h / tec)]]) -> 1.55
B225: 744.057619 | C225: 992.0634921 | D225: 0.4166666667 | E225: 0.3833333333 | F225: 0.3 | G225: 0.1666666667 | H225: 0.3 | I225: =Tabla_Tiempos_Preventivo_UC[[#This Row],[UC Panel (h / tec)]]+Tabla_Tiempos_Preventivo_UC[[#This Row],[Otras UC (h / tec)]]+IF(UCIN_ID<>"NA",Tabla_Tiempos_Preventivo_UC[[#This Row],[UC Inversor (h / tec)]],0)+IF(Dda_Pico_Seg>Limite_Inv_Onda_Seno,0,Tabla_Tiempos_Preventivo_UC[[#This Row],[UC Regulador (h / tec)]])+IF(Almacenamiento="NO",0,Tabla_Tiempos_Preventivo_UC[[#This Row],[UC Banco Baterias (h / tec)]]) -> 1.566666667
B226: 992.0734921 | C226: 1488.095238 | D226: 0.4833333333 | E226: 0.45 | F226: 0.3666666667 | G226: 0.2166666667 | H226: 0.35 | I226: =Tabla_Tiempos_Preventivo_UC[[#This Row],[UC Panel (h / tec)]]+Tabla_Tiempos_Preventivo_UC[[#This Row],[Otras UC (h / tec)]]+IF(UCIN_ID<>"NA",Tabla_Tiempos_Preventivo_UC[[#This Row],[UC Inversor (h / tec)]],0)+IF(Dda_Pico_Seg>Limite_Inv_Onda_Seno,0,Tabla_Tiempos_Preventivo_UC[[#This Row],[UC Regulador (h / tec)]])+IF(Almacenamiento="NO",0,Tabla_Tiempos_Preventivo_UC[[#This Row],[UC Banco Baterias (h / tec)]]) -> 1.866666667
B227: 1488.105238 | C227: 1984.126984 | D227: 0.5166666667 | E227: 0.45 | F227: 0.3666666667 | G227: 0.2166666667 | H227: 0.35 | I227: =Tabla_Tiempos_Preventivo_UC[[#This Row],[UC Panel (h / tec)]]+Tabla_Tiempos_Preventivo_UC[[#This Row],[Otras UC (h / tec)]]+IF(UCIN_ID<>"NA",Tabla_Tiempos_Preventivo_UC[[#This Row],[UC Inversor (h / tec)]],0)+IF(Dda_Pico_Seg>Limite_Inv_Onda_Seno,0,Tabla_Tiempos_Preventivo_UC[[#This Row],[UC Regulador (h / tec)]])+IF(Almacenamiento="NO",0,Tabla_Tiempos_Preventivo_UC[[#This Row],[UC Banco Baterias (h / tec)]]) -> 1.9
B228: 1984.136984 | C228: 2976.190476 | D228: 0.6333333333 | E228: 0.5 | F228: 0.3666666667 | G228: 0.2166666667 | H228: 0.3666666667 | I228: =Tabla_Tiempos_Preventivo_UC[[#This Row],[UC Panel (h / tec)]]+Tabla_Tiempos_Preventivo_UC[[#This Row],[Otras UC (h / tec)]]+IF(UCIN_ID<>"NA",Tabla_Tiempos_Preventivo_UC[[#This Row],[UC Inversor (h / tec)]],0)+IF(Dda_Pico_Seg>Limite_Inv_Onda_Seno,0,Tabla_Tiempos_Preventivo_UC[[#This Row],[UC Regulador (h / tec)]])+IF(Almacenamiento="NO",0,Tabla_Tiempos_Preventivo_UC[[#This Row],[UC Banco Baterias (h / tec)]]) -> 2.083333333
B229: 2976.200476 | C229: 4960.31746 | D229: 0.7166666667 | E229: 0.5 | F229: 0.3666666667 | G229: 0.2166666667 | H229: 0.3666666667 | I229: =Tabla_Tiempos_Preventivo_UC[[#This Row],[UC Panel (h / tec)]]+Tabla_Tiempos_Preventivo_UC[[#This Row],[Otras UC (h / tec)]]+IF(UCIN_ID<>"NA",Tabla_Tiempos_Preventivo_UC[[#This Row],[UC Inversor (h / tec)]],0)+IF(Dda_Pico_Seg>Limite_Inv_Onda_Seno,0,Tabla_Tiempos_Preventivo_UC[[#This Row],[UC Regulador (h / tec)]])+IF(Almacenamiento="NO",0,Tabla_Tiempos_Preventivo_UC[[#This Row],[UC Banco Baterias (h / tec)]]) -> 2.166666667
B230: 4960.32746 | C230: 7440.47619 | D230: 0.9166666667 | E230: 0.5333333333 | F230: 0.3833333333 | G230: 0.25 | H230: 0.3666666667 | I230: =Tabla_Tiempos_Preventivo_UC[[#This Row],[UC Panel (h / tec)]]+Tabla_Tiempos_Preventivo_UC[[#This Row],[Otras UC (h / tec)]]+IF(UCIN_ID<>"NA",Tabla_Tiempos_Preventivo_UC[[#This Row],[UC Inversor (h / tec)]],0)+IF(Dda_Pico_Seg>Limite_Inv_Onda_Seno,0,Tabla_Tiempos_Preventivo_UC[[#This Row],[UC Regulador (h / tec)]])+IF(Almacenamiento="NO",0,Tabla_Tiempos_Preventivo_UC[[#This Row],[UC Banco Baterias (h / tec)]]) -> 2.45
B231: 7440.48619 | C231: 9920.634921 | D231: 1.033333333 | E231: 0.5333333333 | F231: 0.3833333333 | G231: 0.25 | H231: 0.3666666667 | I231: =Tabla_Tiempos_Preventivo_UC[[#This Row],[UC Panel (h / tec)]]+Tabla_Tiempos_Preventivo_UC[[#This Row],[Otras UC (h / tec)]]+IF(UCIN_ID<>"NA",Tabla_Tiempos_Preventivo_UC[[#This Row],[UC Inversor (h / tec)]],0)+IF(Dda_Pico_Seg>Limite_Inv_Onda_Seno,0,Tabla_Tiempos_Preventivo_UC[[#This Row],[UC Regulador (h / tec)]])+IF(Almacenamiento="NO",0,Tabla_Tiempos_Preventivo_UC[[#This Row],[UC Banco Baterias (h / tec)]]) -> 2.566666667
B233: Wp_Min | C233: Wp_Max | D233: Instalacion (h / tec) | E233: Preventivo (h / tec) | F233: Correctivo (h / tec)
B234: 0.01 | C234: 33.06878307 | D234: 12 | E234: =INDEX(Tabla_Tiempos_Preventivo_UC[Total SISFV (h / tec)],MATCH(Tabla_Tiempo_Visitas[[#This Row],[Wp_Max]],Tabla_Tiempos_Preventivo_UC[Wp_Max],0)) -> 0.9833333333 | F234: 8
B235: 33.07878307 | C235: 49.6031746 | D235: 12 | E235: =INDEX(Tabla_Tiempos_Preventivo_UC[Total SISFV (h / tec)],MATCH(Tabla_Tiempo_Visitas[[#This Row],[Wp_Max]],Tabla_Tiempos_Preventivo_UC[Wp_Max],0)) -> 0.9833333333 | F235: 8
B236: 49.6131746 | C236: 115.7407407 | D236: 28 | E236: =INDEX(Tabla_Tiempos_Preventivo_UC[Total SISFV (h / tec)],MATCH(Tabla_Tiempo_Visitas[[#This Row],[Wp_Max]],Tabla_Tiempos_Preventivo_UC[Wp_Max],0)) -> 1.033333333 | F236: 8
B237: 115.7507407 | C237: 248.015873 | D237: 28 | E237: =INDEX(Tabla_Tiempos_Preventivo_UC[Total SISFV (h / tec)],MATCH(Tabla_Tiempo_Visitas[[#This Row],[Wp_Max]],Tabla_Tiempos_Preventivo_UC[Wp_Max],0)) -> 1.033333333 | F237: 8
B238: 248.025873 | C238: 330.6878307 | D238: 40 | E238: =INDEX(Tabla_Tiempos_Preventivo_UC[Total SISFV (h / tec)],MATCH(Tabla_Tiempo_Visitas[[#This Row],[Wp_Max]],Tabla_Tiempos_Preventivo_UC[Wp_Max],0)) -> 1.5 | F238: 8
B239: 330.6978307 | C239: 496.031746 | D239: 40 | E239: =INDEX(Tabla_Tiempos_Preventivo_UC[Total SISFV (h / tec)],MATCH(Tabla_Tiempo_Visitas[[#This Row],[Wp_Max]],Tabla_Tiempos_Preventivo_UC[Wp_Max],0)) -> 1.5 | F239: 8
B240: 496.041746 | C240: 744.047619 | D240: 58 | E240: =INDEX(Tabla_Tiempos_Preventivo_UC[Total SISFV (h / tec)],MATCH(Tabla_Tiempo_Visitas[[#This Row],[Wp_Max]],Tabla_Tiempos_Preventivo_UC[Wp_Max],0)) -> 1.55 | F240: 8
B241: 744.057619 | C241: 992.0634921 | D241: 58 | E241: =INDEX(Tabla_Tiempos_Preventivo_UC[Total SISFV (h / tec)],MATCH(Tabla_Tiempo_Visitas[[#This Row],[Wp_Max]],Tabla_Tiempos_Preventivo_UC[Wp_Max],0)) -> 1.566666667 | F241: 8
B242: 992.0734921 | C242: 1488.095238 | D242: 70 | E242: =INDEX(Tabla_Tiempos_Preventivo_UC[Total SISFV (h / tec)],MATCH(Tabla_Tiempo_Visitas[[#This Row],[Wp_Max]],Tabla_Tiempos_Preventivo_UC[Wp_Max],0)) -> 1.866666667 | F242: 8
B243: 1488.105238 | C243: 1984.126984 | D243: 70 | E243: =INDEX(Tabla_Tiempos_Preventivo_UC[Total SISFV (h / tec)],MATCH(Tabla_Tiempo_Visitas[[#This Row],[Wp_Max]],Tabla_Tiempos_Preventivo_UC[Wp_Max],0)) -> 1.9 | F243: 8
B244: 1984.136984 | C244: 2976.190476 | D244: 118 | E244: =INDEX(Tabla_Tiempos_Preventivo_UC[Total SISFV (h / tec)],MATCH(Tabla_Tiempo_Visitas[[#This Row],[Wp_Max]],Tabla_Tiempos_Preventivo_UC[Wp_Max],0)) -> 2.083333333 | F244: 8
B245: 2976.200476 | C245: 4960.31746 | D245: 118 | E245: =INDEX(Tabla_Tiempos_Preventivo_UC[Total SISFV (h / tec)],MATCH(Tabla_Tiempo_Visitas[[#This Row],[Wp_Max]],Tabla_Tiempos_Preventivo_UC[Wp_Max],0)) -> 2.166666667 | F245: 8
B246: 4960.32746 | C246: 7440.47619 | D246: 160 | E246: =INDEX(Tabla_Tiempos_Preventivo_UC[Total SISFV (h / tec)],MATCH(Tabla_Tiempo_Visitas[[#This Row],[Wp_Max]],Tabla_Tiempos_Preventivo_UC[Wp_Max],0)) -> 2.45 | F246: 8
B247: 7440.48619 | C247: 9920.634921 | D247: 160 | E247: =INDEX(Tabla_Tiempos_Preventivo_UC[Total SISFV (h / tec)],MATCH(Tabla_Tiempo_Visitas[[#This Row],[Wp_Max]],Tabla_Tiempos_Preventivo_UC[Wp_Max],0)) -> 2.566666667 | F247: 8
B249: Actividad | C249: Tiempo x visita (horas / tec)
B250: Educación al usuario | C250: 0.25
B252: Horas laborales x día | C252: 8
B254: Distancia promedio entre usuarios (km) | C254: =INDEX(Tabla_Municipios[Distancia promedio a PI (km)],MATCH(Punto_Instalacion,Tabla_Municipios[Codigo_M],0)) -> 61.46698686
B255: Desplazamiento promedio en la zona (km / h) | C255: =INDEX(Tabla_Municipios[Velocidad cuadrilla (km/h)],MATCH(Punto_Instalacion,Tabla_Municipios[Codigo_M],0)) -> 15
B256: Tiempo desplazamiento entre usuarios (h) | C256: =Distancia_usuario / Velocidad_cuadrilla -> 4.097799124
... 17 more rows
